BIOGUIDE_ID,OFFICE,QUARTER,PROGRAM,CATEGORY,SORT SEQUENCE,DATE,TRANSCODE,RECORDID,PAYEE,START DATE,END DATE,PURPOSE,AMOUNT,YEAR
,2018 OFFICE OF THE SPEAKER,Q3,GENERAL EXPENDITURES,FRANKED MAIL,DETAIL,2018-07-30,AP,1004914,UNITED STATES POSTAL SERVICE,2018-06-01,2018-06-30,FRANKED MAIL,253.98,2018
,2018 OFFICE OF THE SPEAKER,Q3,GENERAL EXPENDITURES,FRANKED MAIL,DETAIL,2018-08-29,AP,1010761,UNITED STATES POSTAL SERVICE,2018-07-01,2018-07-31,FRANKED MAIL,102.53,2018
,2018 OFFICE OF THE SPEAKER,Q3,GENERAL EXPENDITURES,FRANKED MAIL,DETAIL,2018-09-26,AP,1018428,UNITED STATES POSTAL SERVICE,2018-08-01,2018-08-31,FRANKED MAIL,73.55,2018
,2018 OFFICE OF THE SPEAKER,Q3,GENERAL EXPENDITURES,FRANKED MAIL,SUBTOTAL,   ,   ,   ,   ,   ,   ,FRANKED MAIL TOTALS:,430.06,2018
,2018 OFFICE OF THE SPEAKER,Q3,GENERAL EXPENDITURES,PERSONNEL COMPENSATION,DETAIL,   ,   ,   ,ALTHOUSE JOSHUA S,2018-07-01,2018-07-06,CONSERVATIVE OUTREACH DIRECTOR,1333.33,2018
,2018 OFFICE OF THE SPEAKER,Q3,GENERAL EXPENDITURES,PERSONNEL COMPENSATION,DETAIL,   ,   ,   ,ALTHOUSE JOSHUA S,2018-07-01,2018-07-06,CONSERVATIVE OUTREACH DIRECTOR (OTHER COMPENSATION),3333.33,2018
,2018 OFFICE OF THE SPEAKER,Q3,GENERAL EXPENDITURES,PERSONNEL COMPENSATION,DETAIL,   ,   ,   ,ANDRES DOUGLAS R,2018-07-01,2018-09-30,PRESS SECRETARY,28022.49,2018
,2018 OFFICE OF THE SPEAKER,Q3,GENERAL EXPENDITURES,PERSONNEL COMPENSATION,DETAIL,   ,   ,   ,ANDREWS THOMAS S,2018-07-01,2018-09-14,MEMBER SERVICES DIRECTOR,26722.22,2018
,2018 OFFICE OF THE SPEAKER,Q3,GENERAL EXPENDITURES,PERSONNEL COMPENSATION,DETAIL,   ,   ,   ,ANDREWS THOMAS S,2018-09-01,2018-09-14,MEMBER SERVICES DIRECTOR (OTHER COMPENSATION),3069.44,2018
,2018 OFFICE OF THE SPEAKER,Q3,GENERAL EXPENDITURES,PERSONNEL COMPENSATION,DETAIL,   ,   ,   ,ANTELL GEOFFREY,2018-07-01,2018-09-30,ASST TO THE SPEAKER FOR POLICY,42033.75,2018
,2018 OFFICE OF THE SPEAKER,Q3,GENERAL EXPENDITURES,PERSONNEL COMPENSATION,DETAIL,   ,   ,   ,APPLE MATTHEW J,2018-07-01,2018-09-30,STAFF ASSISTANT,8750.01,2018
,2018 OFFICE OF THE SPEAKER,Q3,GENERAL EXPENDITURES,PERSONNEL COMPENSATION,DETAIL,   ,   ,   ,APPLE MATTHEW J,2018-05-01,2018-07-31,STAFF ASSISTANT (OVERTIME),422.77,2018
,2018 OFFICE OF THE SPEAKER,Q3,GENERAL EXPENDITURES,PERSONNEL COMPENSATION,DETAIL,   ,   ,   ,ARRIETA-WALDEN MAYA E,2018-07-01,2018-09-30,COMMUNICATIONS ADVISOR,16250.01,2018
,2018 OFFICE OF THE SPEAKER,Q3,GENERAL EXPENDITURES,PERSONNEL COMPENSATION,DETAIL,   ,   ,   ,BATTAGLIA JACQUELINE P,2018-09-19,2018-09-30,STAFF ASSISTANT  SPECIAL EVENT,1166.67,2018
,2018 OFFICE OF THE SPEAKER,Q3,GENERAL EXPENDITURES,PERSONNEL COMPENSATION,DETAIL,   ,   ,   ,BENJAMIN WILLIAM C.,2018-07-01,2018-09-30,SYSTEM ADMINISTRATOR,13250.01,2018
,2018 OFFICE OF THE SPEAKER,Q3,GENERAL EXPENDITURES,PERSONNEL COMPENSATION,DETAIL,   ,   ,   ,BLAKE KRISTENE,2018-07-01,2018-09-07,DIR OF ADMIN OPERATIONS,25125,2018
,2018 OFFICE OF THE SPEAKER,Q3,GENERAL EXPENDITURES,PERSONNEL COMPENSATION,DETAIL,   ,   ,   ,BLAKE KRISTENE,2018-09-01,2018-09-07,DIR OF ADMIN OPERATIONS (OTHER COMPENSATION),5625,2018
,2018 OFFICE OF THE SPEAKER,Q3,GENERAL EXPENDITURES,PERSONNEL COMPENSATION,DETAIL,   ,   ,   ,BLANKENSHIP APRIL L.,2018-07-01,2018-09-30,FINANCIAL ADMINISTRATOR,5702.76,2018
,2018 OFFICE OF THE SPEAKER,Q3,GENERAL EXPENDITURES,PERSONNEL COMPENSATION,DETAIL,   ,   ,   ,BUCK BRENDAN K,2018-07-01,2018-09-30,COUNSELOR TO THE SPEAKER,43125,2018
,2018 OFFICE OF THE SPEAKER,Q3,GENERAL EXPENDITURES,PERSONNEL COMPENSATION,DETAIL,   ,   ,   ,BURKS JONATHAN,2018-07-01,2018-09-30,CHIEF OF STAFF,43125,2018
,2018 OFFICE OF THE SPEAKER,Q3,GENERAL EXPENDITURES,PERSONNEL COMPENSATION,DETAIL,   ,   ,   ,CALLAS GEORGE A,2018-07-01,2018-07-11,CHIEF TAX COUNSEL,5215.71,2018
,2018 OFFICE OF THE SPEAKER,Q3,GENERAL EXPENDITURES,PERSONNEL COMPENSATION,DETAIL,   ,   ,   ,CALLAS GEORGE A,2018-07-01,2018-07-11,CHIEF TAX COUNSEL (OTHER COMPENSATION),7112.33,2018
,2018 OFFICE OF THE SPEAKER,Q3,GENERAL EXPENDITURES,PERSONNEL COMPENSATION,DETAIL,   ,   ,   ,CAMERON JESSICA E,2018-07-01,2018-07-31,LAW CLERK,6250,2018
,2018 OFFICE OF THE SPEAKER,Q3,GENERAL EXPENDITURES,PERSONNEL COMPENSATION,DETAIL,   ,   ,   ,CAMERON JESSICA E,2018-07-01,2018-07-31,LAW CLERK (OTHER COMPENSATION),2552.08,2018
,2018 OFFICE OF THE SPEAKER,Q3,GENERAL EXPENDITURES,PERSONNEL COMPENSATION,DETAIL,   ,   ,   ,COYLE SARAH M,2018-06-01,2018-09-30,FLOOR ASSISTANT,13326.39,2018
,2018 OFFICE OF THE SPEAKER,Q3,GENERAL EXPENDITURES,PERSONNEL COMPENSATION,DETAIL,   ,   ,   ,DOCKERY DERRICK D,2018-07-01,2018-09-30,INTERGOVERNMENTAL OUTREACH DIR,20000.01,2018
,2018 OFFICE OF THE SPEAKER,Q3,GENERAL EXPENDITURES,PERSONNEL COMPENSATION,DETAIL,   ,   ,   ,DRESSLER JEFFREY A,2018-07-01,2018-09-30,ASST TO THE SPEAKER FOR POLICY,28022.49,2018
,2018 OFFICE OF THE SPEAKER,Q3,GENERAL EXPENDITURES,PERSONNEL COMPENSATION,DETAIL,   ,   ,   ,EASBY-SMITH ANNE S.,2018-07-01,2018-09-13,SPECIAL EVENTS COORDINATOR,24333.33,2018
,2018 OFFICE OF THE SPEAKER,Q3,GENERAL EXPENDITURES,PERSONNEL COMPENSATION,DETAIL,   ,   ,   ,EASBY-SMITH ANNE S.,2018-09-01,2018-09-13,SPECIAL EVENTS COORDINATOR (OTHER COMPENSATION),5000,2018
,2018 OFFICE OF THE SPEAKER,Q3,GENERAL EXPENDITURES,PERSONNEL COMPENSATION,DETAIL,   ,   ,   ,EDWARDS SPENCER M,2018-07-01,2018-09-20,DIRECTOR OF PRESS OPERATIONS,17460.45,2018
,2018 OFFICE OF THE SPEAKER,Q3,GENERAL EXPENDITURES,PERSONNEL COMPENSATION,DETAIL,   ,   ,   ,EDWARDS SPENCER M,2018-09-01,2018-09-20,DIRECTOR OF PRESS OPERATIONS (OTHER COMPENSATION),3273.83,2018
,2018 OFFICE OF THE SPEAKER,Q3,GENERAL EXPENDITURES,PERSONNEL COMPENSATION,DETAIL,   ,   ,   ,EICHHORN JARED D.,2018-06-01,2018-06-15,CLOAKROOM DIRECTOR (OTHER COMPENSATION),4166.67,2018
,2018 OFFICE OF THE SPEAKER,Q3,GENERAL EXPENDITURES,PERSONNEL COMPENSATION,DETAIL,   ,   ,   ,EPLEY MARK D,2018-07-01,2018-09-30,SENIOR ADVISOR AND GENERAL COU,43125,2018
,2018 OFFICE OF THE SPEAKER,Q3,GENERAL EXPENDITURES,PERSONNEL COMPENSATION,DETAIL,   ,   ,   ,FOLTZ DEVON N,2018-07-01,2018-07-13,DEPUTY FLOOR DIRECTOR/COUNSEL,5055.56,2018
,2018 OFFICE OF THE SPEAKER,Q3,GENERAL EXPENDITURES,PERSONNEL COMPENSATION,DETAIL,   ,   ,   ,FOLTZ DEVON N,2018-07-01,2018-07-13,DEPUTY FLOOR DIRECTOR/COUNSEL (OTHER COMPENSATION),5833.33,2018
,2018 OFFICE OF THE SPEAKER,Q3,GENERAL EXPENDITURES,PERSONNEL COMPENSATION,DETAIL,   ,   ,   ,GALLAGHER MEGAN E,2018-08-20,2018-09-30,STAFF ASSISTANT,3986.11,2018
,2018 OFFICE OF THE SPEAKER,Q3,GENERAL EXPENDITURES,PERSONNEL COMPENSATION,DETAIL,   ,   ,   ,GILLESPIE JAMES M,2018-06-01,2018-09-30,FLOOR ASSISTANT,12338.88,2018
,2018 OFFICE OF THE SPEAKER,Q3,GENERAL EXPENDITURES,PERSONNEL COMPENSATION,DETAIL,   ,   ,   ,GUAGLIANONE PAUL D,2018-07-01,2018-09-30,DIRECTOR OF CONSERVATIVE COALI,15866.67,2018
,2018 OFFICE OF THE SPEAKER,Q3,GENERAL EXPENDITURES,PERSONNEL COMPENSATION,DETAIL,   ,   ,   ,HALPERN HUGH N.,2018-07-01,2018-09-30,FLOOR DIRECTOR - STATUTORY,43125,2018
,2018 OFFICE OF THE SPEAKER,Q3,GENERAL EXPENDITURES,PERSONNEL COMPENSATION,DETAIL,   ,   ,   ,HEMINGWAY JENNIFER A,2018-07-01,2018-09-30,DIRECTOR OF HOUSE OPERATIONS,43125,2018
,2018 OFFICE OF THE SPEAKER,Q3,GENERAL EXPENDITURES,PERSONNEL COMPENSATION,DETAIL,   ,   ,   ,HERRLE CYNTHIA A.,2018-07-01,2018-09-30,ASST TO THE SPEAKER FOR POLICY,42000,2018
,2018 OFFICE OF THE SPEAKER,Q3,GENERAL EXPENDITURES,PERSONNEL COMPENSATION,DETAIL,   ,   ,   ,HIGGINS CASEY,2018-07-01,2018-09-30,ASSIST TO SPEAKER FOR POLICY,39603.75,2018
,2018 OFFICE OF THE SPEAKER,Q3,GENERAL EXPENDITURES,PERSONNEL COMPENSATION,DETAIL,   ,   ,   ,KEARNEY EMILY M,2018-07-01,2018-09-07,SPECIAL EVENTS SCHEDULING ASST,8375,2018
,2018 OFFICE OF THE SPEAKER,Q3,GENERAL EXPENDITURES,PERSONNEL COMPENSATION,DETAIL,   ,   ,   ,KEARNEY EMILY M,2018-09-08,2018-09-30,DIR SPEC EVENTS/PROTOCOL,5111.11,2018
,2018 OFFICE OF THE SPEAKER,Q3,GENERAL EXPENDITURES,PERSONNEL COMPENSATION,DETAIL,   ,   ,   ,KEARNEY EMILY M,2018-05-01,2018-05-31,SPECIAL EVENTS SCHEDULING ASST (OVERTIME),605.76,2018
,2018 OFFICE OF THE SPEAKER,Q3,GENERAL EXPENDITURES,PERSONNEL COMPENSATION,DETAIL,   ,   ,   ,KOHLER JOHN D,2018-07-01,2018-09-30,CORRESPONDENCE ASSISTANT,6249.99,2018
,2018 OFFICE OF THE SPEAKER,Q3,GENERAL EXPENDITURES,PERSONNEL COMPENSATION,DETAIL,   ,   ,   ,KOHLER JOHN D,2018-07-01,2018-07-31,CORRESPONDENCE ASSISTANT (OVERTIME),144.23,2018
,2018 OFFICE OF THE SPEAKER,Q3,GENERAL EXPENDITURES,PERSONNEL COMPENSATION,DETAIL,   ,   ,   ,LETSCH ANDREW D,2018-07-01,2018-08-20,STAFF ASSISTANT,5555.55,2018
,2018 OFFICE OF THE SPEAKER,Q3,GENERAL EXPENDITURES,PERSONNEL COMPENSATION,DETAIL,   ,   ,   ,LETSCH ANDREW D,2018-08-21,2018-09-30,SPECIAL ASST TO THE SPEAKER,5555.56,2018
,2018 OFFICE OF THE SPEAKER,Q3,GENERAL EXPENDITURES,PERSONNEL COMPENSATION,DETAIL,   ,   ,   ,LETSCH ANDREW D,2018-05-01,2018-07-31,STAFF ASSISTANT (OVERTIME),997.89,2018
,2018 OFFICE OF THE SPEAKER,Q3,GENERAL EXPENDITURES,PERSONNEL COMPENSATION,DETAIL,   ,   ,   ,MANECKE KIMBERLY,2018-07-01,2018-09-07,DEPUTY DIRECTOR OF SCHEDULING,11538.9,2018
,2018 OFFICE OF THE SPEAKER,Q3,GENERAL EXPENDITURES,PERSONNEL COMPENSATION,DETAIL,   ,   ,   ,MANECKE KIMBERLY,2018-09-08,2018-09-30,DEPUTY DIRECTOR OF SCHEDULING/,4536.11,2018
,2018 OFFICE OF THE SPEAKER,Q3,GENERAL EXPENDITURES,PERSONNEL COMPENSATION,DETAIL,   ,   ,   ,MCCANN EDWARD D.,2018-07-01,2018-08-03,ASSIST TO SPEAKER FOR POLICY,14945.34,2018
,2018 OFFICE OF THE SPEAKER,Q3,GENERAL EXPENDITURES,PERSONNEL COMPENSATION,DETAIL,   ,   ,   ,MCCANN EDWARD D.,2018-08-01,2018-08-03,ASSIST TO SPEAKER FOR POLICY (OTHER COMPENSATION),6793.33,2018
,2018 OFFICE OF THE SPEAKER,Q3,GENERAL EXPENDITURES,PERSONNEL COMPENSATION,DETAIL,   ,   ,   ,MILLER WILLIAM,2018-07-01,2018-08-20,SPECIAL ASSISTANT TO THE SPEAK,10756.11,2018
,2018 OFFICE OF THE SPEAKER,Q3,GENERAL EXPENDITURES,PERSONNEL COMPENSATION,DETAIL,   ,   ,   ,MUNDAY J M.,2018-07-01,2018-09-30,DIRECTOR OF INFORMATION TECHNO,38212.5,2018
,2018 OFFICE OF THE SPEAKER,Q3,GENERAL EXPENDITURES,PERSONNEL COMPENSATION,DETAIL,   ,   ,   ,O'TOOLE RYAN T,2018-06-01,2018-09-30,CLOAKROOM DIRECTOR,20458.34,2018
,2018 OFFICE OF THE SPEAKER,Q3,GENERAL EXPENDITURES,PERSONNEL COMPENSATION,DETAIL,   ,   ,   ,PARKS STEPHANIE M,2018-07-01,2018-09-30,ASSISTANT TO SPEAKER FOR POLIC,32499.99,2018
,2018 OFFICE OF THE SPEAKER,Q3,GENERAL EXPENDITURES,PERSONNEL COMPENSATION,DETAIL,   ,   ,   ,POINTER KATHERINE C,2018-06-01,2018-07-15,FLOOR ASSISTANT,2980.55,2018
,2018 OFFICE OF THE SPEAKER,Q3,GENERAL EXPENDITURES,PERSONNEL COMPENSATION,DETAIL,   ,   ,   ,POINTER KATHERINE C,2018-07-16,2018-09-30,DEPUTY FLOOR DIRECTOR,16666.67,2018
,2018 OFFICE OF THE SPEAKER,Q3,GENERAL EXPENDITURES,PERSONNEL COMPENSATION,DETAIL,   ,   ,   ,RICCI MICHAEL,2018-07-01,2018-09-30,DIRECTOR OF COMMUNICATIONS,42102.75,2018
,2018 OFFICE OF THE SPEAKER,Q3,GENERAL EXPENDITURES,PERSONNEL COMPENSATION,DETAIL,   ,   ,   ,RYAN MADELINE E,2018-07-01,2018-09-07,STAFF ASSISTANT,7444.44,2018
,2018 OFFICE OF THE SPEAKER,Q3,GENERAL EXPENDITURES,PERSONNEL COMPENSATION,DETAIL,   ,   ,   ,RYAN MADELINE E,2018-09-08,2018-09-30,DIRECTOR OF ADMIN OPERATIONS,3833.33,2018
,2018 OFFICE OF THE SPEAKER,Q3,GENERAL EXPENDITURES,PERSONNEL COMPENSATION,DETAIL,   ,   ,   ,RYAN MADELINE E,2018-05-01,2018-06-30,STAFF ASSISTANT (OVERTIME),316.4,2018
,2018 OFFICE OF THE SPEAKER,Q3,GENERAL EXPENDITURES,PERSONNEL COMPENSATION,DETAIL,   ,   ,   ,SAKWA JENNA P,2018-07-01,2018-09-30,MEDIA AFFAIRS DIRECTOR,26748.75,2018
,2018 OFFICE OF THE SPEAKER,Q3,GENERAL EXPENDITURES,PERSONNEL COMPENSATION,DETAIL,   ,   ,   ,SMITH CALEB J,2018-07-01,2018-09-30,DIGITAL COMMUNICATIONS DIRECTO,33117.51,2018
,2018 OFFICE OF THE SPEAKER,Q3,GENERAL EXPENDITURES,PERSONNEL COMPENSATION,DETAIL,   ,   ,   ,SMYTHE AUGUSTINE,2018-07-01,2018-09-30,POLICY DIRECTOR,43125,2018
,2018 OFFICE OF THE SPEAKER,Q3,GENERAL EXPENDITURES,PERSONNEL COMPENSATION,DETAIL,   ,   ,   ,SPETH ANDREW D.,2018-07-01,2018-09-30,DEPUTY CHIEF OF STAFF,21000,2018
,2018 OFFICE OF THE SPEAKER,Q3,GENERAL EXPENDITURES,PERSONNEL COMPENSATION,DETAIL,   ,   ,   ,STRONG ASHLEE A,2018-07-01,2018-09-30,PRESS SECRETARY,40712.49,2018
,2018 OFFICE OF THE SPEAKER,Q3,GENERAL EXPENDITURES,PERSONNEL COMPENSATION,DETAIL,   ,   ,   ,VANDEHEY VANESSA P,2018-07-16,2018-09-30,FLOOR ASSISTANT,11458.33,2018
,2018 OFFICE OF THE SPEAKER,Q3,GENERAL EXPENDITURES,PERSONNEL COMPENSATION,DETAIL,   ,   ,   ,WALTZ PAIGE M,2018-07-01,2018-09-30,DIGITAL MEDIA COORDINATOR,16250.01,2018
,2018 OFFICE OF THE SPEAKER,Q3,GENERAL EXPENDITURES,PERSONNEL COMPENSATION,DETAIL,   ,   ,   ,WEAVER KIEL P.,2018-07-01,2018-09-30,ASST TO SPEAKER FOR POLICY,42033.75,2018
,2018 OFFICE OF THE SPEAKER,Q3,GENERAL EXPENDITURES,PERSONNEL COMPENSATION,DETAIL,   ,   ,   ,WICKISER VICTORIA H,2018-07-01,2018-09-30,DIRECTOR OF SCHEDULING,28022.49,2018
,2018 OFFICE OF THE SPEAKER,Q3,GENERAL EXPENDITURES,PERSONNEL COMPENSATION,DETAIL,   ,   ,   ,WRIGHT MIA R,2018-07-01,2018-09-30,STAFF ASSISTANT,8750.01,2018
,2018 OFFICE OF THE SPEAKER,Q3,GENERAL EXPENDITURES,PERSONNEL COMPENSATION,DETAIL,   ,   ,   ,WRIGHT MIA R,2018-05-01,2018-07-31,STAFF ASSISTANT (OVERTIME),176.68,2018
,2018 OFFICE OF THE SPEAKER,Q3,GENERAL EXPENDITURES,PERSONNEL COMPENSATION,SUBTOTAL,   ,   ,   ,   ,   ,   ,PERSONNEL COMPENSATION TOTALS:,1174904.25,2018
,2018 OFFICE OF THE SPEAKER,Q3,GENERAL EXPENDITURES,TRAVEL,DETAIL,2018-07-02,AP,E0636547,WALTZ PAIGE M.,2018-06-14,2018-06-14,TAXI/PARKING/TOLLS,43,2018
,2018 OFFICE OF THE SPEAKER,Q3,GENERAL EXPENDITURES,TRAVEL,DETAIL,2018-07-18,AP,E0641968,EPLEY MARK D.,2018-07-16,2018-07-16,TAXI/PARKING/TOLLS,8,2018
,2018 OFFICE OF THE SPEAKER,Q3,GENERAL EXPENDITURES,TRAVEL,DETAIL,2018-07-27,AP,E0643339,DRESSLER JEFFREY A.,2018-06-20,2018-07-13,TAXI/PARKING/TOLLS,223,2018
,2018 OFFICE OF THE SPEAKER,Q3,GENERAL EXPENDITURES,TRAVEL,DETAIL,2018-08-15,AP,E0646786,CITIBANK GOV CARD SERVICE,2018-07-23,2018-07-27,COMMERCIAL TRANSPORTATION,148.39,2018
,2018 OFFICE OF THE SPEAKER,Q3,GENERAL EXPENDITURES,TRAVEL,DETAIL,2018-08-15,AP,E0646786,CITIBANK GOV CARD SERVICE,2018-07-23,2018-07-27,LODGING,1222.32,2018
,2018 OFFICE OF THE SPEAKER,Q3,GENERAL EXPENDITURES,TRAVEL,DETAIL,2018-08-27,AP,E0650125,KEARNEY EMILY M.,2018-07-23,2018-07-27,MEALS,142.31,2018
,2018 OFFICE OF THE SPEAKER,Q3,GENERAL EXPENDITURES,TRAVEL,DETAIL,2018-08-27,AP,E0650125,KEARNEY EMILY M.,2018-07-23,2018-07-27,TAXI/PARKING/TOLLS,71.41,2018
,2018 OFFICE OF THE SPEAKER,Q3,GENERAL EXPENDITURES,TRAVEL,DETAIL,2018-08-28,AP,E0650466,WALTZ PAIGE M.,2018-07-12,2018-07-12,TAXI/PARKING/TOLLS,25,2018
,2018 OFFICE OF THE SPEAKER,Q3,GENERAL EXPENDITURES,TRAVEL,DETAIL,2018-09-11,AP,E0653181,CITIBANK GOV CARD SERVICE,2018-08-16,2018-08-20,COMMERCIAL TRANSPORTATION,695.6,2018
,2018 OFFICE OF THE SPEAKER,Q3,GENERAL EXPENDITURES,TRAVEL,DETAIL,2018-09-18,AP,E0655510,SMYTHE AUGUSTINE,2018-07-11,2018-07-25,TAXI/PARKING/TOLLS,8.95,2018
,2018 OFFICE OF THE SPEAKER,Q3,GENERAL EXPENDITURES,TRAVEL,DETAIL,2018-09-21,AP,E0656122,DRESSLER JEFFREY A.,2018-07-19,2018-08-06,TAXI/PARKING/TOLLS,72,2018
,2018 OFFICE OF THE SPEAKER,Q3,GENERAL EXPENDITURES,TRAVEL,DETAIL,2018-09-21,AP,E0656122,DRESSLER JEFFREY A.,2018-08-28,2018-09-07,TAXI/PARKING/TOLLS,60,2018
,2018 OFFICE OF THE SPEAKER,Q3,GENERAL EXPENDITURES,TRAVEL,DETAIL,2018-09-25,AP,1018007,WEAVER KIEL P.,2018-08-16,2018-08-20,LODGING,679.96,2018
,2018 OFFICE OF THE SPEAKER,Q3,GENERAL EXPENDITURES,TRAVEL,DETAIL,2018-09-25,AP,1018007,WEAVER KIEL P.,2018-08-16,2018-08-20,TAXI/PARKING/TOLLS,125,2018
,2018 OFFICE OF THE SPEAKER,Q3,GENERAL EXPENDITURES,TRAVEL,SUBTOTAL,   ,   ,   ,   ,   ,   ,TRAVEL TOTALS:,3524.94,2018
,2018 OFFICE OF THE SPEAKER,Q3,GENERAL EXPENDITURES,RENT  COMMUNICATION  UTILITIES,DETAIL,2018-07-26,GL,EMS0080133, ,2018-06-01,2018-06-30,DC TELECOM EQUIP (TRANSFER),164,2018
,2018 OFFICE OF THE SPEAKER,Q3,GENERAL EXPENDITURES,RENT  COMMUNICATION  UTILITIES,DETAIL,2018-07-26,GL,EMS0080133, ,2018-06-01,2018-06-30,DC TELECOM SERV (TRANSFER),956,2018
,2018 OFFICE OF THE SPEAKER,Q3,GENERAL EXPENDITURES,RENT  COMMUNICATION  UTILITIES,DETAIL,2018-07-26,GL,EMS0080133, ,2018-06-01,2018-06-30,DC TELECOM TOLLS (TRANSFER),5420.92,2018
,2018 OFFICE OF THE SPEAKER,Q3,GENERAL EXPENDITURES,RENT  COMMUNICATION  UTILITIES,DETAIL,2018-07-30,AP,E0644373,AT&T,2018-06-10,2018-07-09,TELECOMSRV/EQ/TOLL CHARGE,194.5,2018
,2018 OFFICE OF THE SPEAKER,Q3,GENERAL EXPENDITURES,RENT  COMMUNICATION  UTILITIES,DETAIL,2018-08-25,AP,E0650503,AT&T,2018-07-10,2018-08-09,TELECOMSRV/EQ/TOLL CHARGE,199.67,2018
,2018 OFFICE OF THE SPEAKER,Q3,GENERAL EXPENDITURES,RENT  COMMUNICATION  UTILITIES,DETAIL,2018-08-27,GL,EMS0080878, ,2018-07-01,2018-07-31,DC TELECOM EQUIP (TRANSFER),160,2018
,2018 OFFICE OF THE SPEAKER,Q3,GENERAL EXPENDITURES,RENT  COMMUNICATION  UTILITIES,DETAIL,2018-08-27,GL,EMS0080878, ,2018-07-01,2018-07-31,DC TELECOM SERV (TRANSFER),956,2018
,2018 OFFICE OF THE SPEAKER,Q3,GENERAL EXPENDITURES,RENT  COMMUNICATION  UTILITIES,DETAIL,2018-08-27,GL,EMS0080878, ,2018-07-01,2018-07-31,DC TELECOM TOLLS (TRANSFER),5223.66,2018
,2018 OFFICE OF THE SPEAKER,Q3,GENERAL EXPENDITURES,RENT  COMMUNICATION  UTILITIES,DETAIL,2018-09-25,GL,EMS0081714, ,2018-08-01,2018-08-31,DC TELECOM EQUIP (TRANSFER),156,2018
,2018 OFFICE OF THE SPEAKER,Q3,GENERAL EXPENDITURES,RENT  COMMUNICATION  UTILITIES,DETAIL,2018-09-25,GL,EMS0081714, ,2018-08-01,2018-08-31,DC TELECOM SERV (TRANSFER),956,2018
,2018 OFFICE OF THE SPEAKER,Q3,GENERAL EXPENDITURES,RENT  COMMUNICATION  UTILITIES,DETAIL,2018-09-25,GL,EMS0081714, ,2018-08-01,2018-08-31,DC TELECOM TOLLS (TRANSFER),5317.89,2018
,2018 OFFICE OF THE SPEAKER,Q3,GENERAL EXPENDITURES,RENT  COMMUNICATION  UTILITIES,SUBTOTAL,   ,   ,   ,   ,   ,   ,RENT  COMMUNICATION  UTILITIES TOTALS:,19704.64,2018
,2018 OFFICE OF THE SPEAKER,Q3,GENERAL EXPENDITURES,PRINTING AND REPRODUCTION,DETAIL,2018-07-09,AP,E0639126,ACCURATE WORD LLC,2018-06-29,2018-06-29,PRINTING & REPRODUCTION,59.95,2018
,2018 OFFICE OF THE SPEAKER,Q3,GENERAL EXPENDITURES,PRINTING AND REPRODUCTION,DETAIL,2018-08-02,AP,E0645299,ACCURATE WORD LLC,2018-07-24,2018-07-24,PRINTING & REPRODUCTION,59.95,2018
,2018 OFFICE OF THE SPEAKER,Q3,GENERAL EXPENDITURES,PRINTING AND REPRODUCTION,DETAIL,2018-08-02,AP,E0645304,ACCURATE WORD LLC,2018-07-18,2018-07-18,PRINTING & REPRODUCTION,59.95,2018
,2018 OFFICE OF THE SPEAKER,Q3,GENERAL EXPENDITURES,PRINTING AND REPRODUCTION,DETAIL,2018-09-11,AP,E0653638,ACCURATE WORD LLC,2018-08-27,2018-08-27,PRINTING & REPRODUCTION,59.95,2018
,2018 OFFICE OF THE SPEAKER,Q3,GENERAL EXPENDITURES,PRINTING AND REPRODUCTION,DETAIL,2018-09-15,AP,E0654550,ACCURATE WORD LLC,2018-08-23,2018-08-23,PRINTING & REPRODUCTION,59.95,2018
,2018 OFFICE OF THE SPEAKER,Q3,GENERAL EXPENDITURES,PRINTING AND REPRODUCTION,DETAIL,2018-09-20,AP,E0656099,ACCURATE WORD LLC,2018-09-12,2018-09-12,PRINTING & REPRODUCTION,119.9,2018
,2018 OFFICE OF THE SPEAKER,Q3,GENERAL EXPENDITURES,PRINTING AND REPRODUCTION,DETAIL,2018-09-25,GL,PIX0081715, ,2018-09-01,2018-09-30,PHOTOGRAPHIC (TRANSFER),16,2018
,2018 OFFICE OF THE SPEAKER,Q3,GENERAL EXPENDITURES,PRINTING AND REPRODUCTION,SUBTOTAL,   ,   ,   ,   ,   ,   ,PRINTING AND REPRODUCTION TOTALS:,435.65,2018
,2018 OFFICE OF THE SPEAKER,Q3,GENERAL EXPENDITURES,OTHER SERVICES,DETAIL,2018-07-11,AP,E0638897,ZIGNAL LABS INC,2018-08-01,2018-08-31,WEB DEV HST EMAIL & RLTD SERV,1250,2018
,2018 OFFICE OF THE SPEAKER,Q3,GENERAL EXPENDITURES,OTHER SERVICES,DETAIL,2018-07-16,AP,1001320,LEIDOS DIGITAL SOLUTIONS INC,2018-07-01,2018-07-31,TECHNOLOGY SERVICE CONTRACTS,1860,2018
,2018 OFFICE OF THE SPEAKER,Q3,GENERAL EXPENDITURES,OTHER SERVICES,DETAIL,2018-07-19,AP,1004523,CITI PCARD-MAILCHIMP    MONTHLY,2018-05-29,2018-06-28,WEB DEV HST EMAIL & RLTD SERV,2079.95,2018
,2018 OFFICE OF THE SPEAKER,Q3,GENERAL EXPENDITURES,OTHER SERVICES,DETAIL,2018-07-19,AP,1004523,CITI PCARD-PREMIUMBEAT.COM,2018-05-29,2018-06-28,WEB DEV HST EMAIL & RLTD SERV,49,2018
,2018 OFFICE OF THE SPEAKER,Q3,GENERAL EXPENDITURES,OTHER SERVICES,DETAIL,2018-07-19,AP,1004523,CITI PCARD-SPROUT SOCIAL,2018-05-29,2018-06-28,WEB DEV HST EMAIL & RLTD SERV,59,2018
,2018 OFFICE OF THE SPEAKER,Q3,GENERAL EXPENDITURES,OTHER SERVICES,DETAIL,2018-08-01,AP,1005115,FIRESIDE21,2018-06-01,2018-06-30,WEB DEV HST EMAIL & RLTD SERV,350,2018
,2018 OFFICE OF THE SPEAKER,Q3,GENERAL EXPENDITURES,OTHER SERVICES,DETAIL,2018-08-15,AP,E0646089,KEARNEY EMILY M.,2018-07-23,2018-07-26,TRAINING,995,2018
,2018 OFFICE OF THE SPEAKER,Q3,GENERAL EXPENDITURES,OTHER SERVICES,DETAIL,2018-08-16,AP,1009743,LEIDOS DIGITAL SOLUTIONS INC,2018-08-01,2018-08-31,TECHNOLOGY SERVICE CONTRACTS,1860,2018
,2018 OFFICE OF THE SPEAKER,Q3,GENERAL EXPENDITURES,OTHER SERVICES,DETAIL,2018-08-17,AP,1010486,CITI PCARD-MAILCHIMP    MONTHLY,2018-06-29,2018-07-27,WEB DEV HST EMAIL & RLTD SERV,2079.95,2018
,2018 OFFICE OF THE SPEAKER,Q3,GENERAL EXPENDITURES,OTHER SERVICES,DETAIL,2018-08-17,AP,1010486,CITI PCARD-SPROUT SOCIAL INC,2018-06-29,2018-07-27,WEB DEV HST EMAIL & RLTD SERV,59,2018
,2018 OFFICE OF THE SPEAKER,Q3,GENERAL EXPENDITURES,OTHER SERVICES,DETAIL,2018-08-28,AP,E0650466,WALTZ PAIGE M.,2018-07-23,2018-07-23,WEB DEV HST EMAIL & RLTD SERV,49,2018
,2018 OFFICE OF THE SPEAKER,Q3,GENERAL EXPENDITURES,OTHER SERVICES,DETAIL,2018-08-31,AP,1011726,FIRESIDE21,2018-07-01,2018-07-31,WEB DEV HST EMAIL & RLTD SERV,350,2018
,2018 OFFICE OF THE SPEAKER,Q3,GENERAL EXPENDITURES,OTHER SERVICES,DETAIL,2018-09-16,AP,1014674,LEIDOS DIGITAL SOLUTIONS INC,2018-09-01,2018-09-30,TECHNOLOGY SERVICE CONTRACTS,1860,2018
,2018 OFFICE OF THE SPEAKER,Q3,GENERAL EXPENDITURES,OTHER SERVICES,DETAIL,2018-09-18,AP,E0654871,NEW TARGET INC,2018-07-02,2018-07-26,WEB DEV HST EMAIL & RLTD SERV,5035.79,2018
,2018 OFFICE OF THE SPEAKER,Q3,GENERAL EXPENDITURES,OTHER SERVICES,DETAIL,2018-09-18,AP,E0655509,ZIGNAL LABS INC,2018-09-01,2018-09-30,WEB DEV HST EMAIL & RLTD SERV,1250,2018
,2018 OFFICE OF THE SPEAKER,Q3,GENERAL EXPENDITURES,OTHER SERVICES,DETAIL,2018-09-19,AP,E0655539,NEW TARGET INC,2018-08-01,2018-08-31,WEB DEV HST EMAIL & RLTD SERV,1258.96,2018
,2018 OFFICE OF THE SPEAKER,Q3,GENERAL EXPENDITURES,OTHER SERVICES,DETAIL,2018-09-20,AP,E0654547,ZIGNAL LABS INC,2018-10-01,2018-10-31,WEB DEV HST EMAIL & RLTD SERV,1250,2018
,2018 OFFICE OF THE SPEAKER,Q3,GENERAL EXPENDITURES,OTHER SERVICES,DETAIL,2018-09-26,AP,1019131,CITI PCARD-MAILCHIMP    MONTHLY,2018-07-28,2018-08-28,WEB DEV HST EMAIL & RLTD SERV,2079.95,2018
,2018 OFFICE OF THE SPEAKER,Q3,GENERAL EXPENDITURES,OTHER SERVICES,DETAIL,2018-09-26,AP,1019131,CITI PCARD-SPROUT SOCIAL INC,2018-07-28,2018-08-28,WEB DEV HST EMAIL & RLTD SERV,59,2018
,2018 OFFICE OF THE SPEAKER,Q3,GENERAL EXPENDITURES,OTHER SERVICES,SUBTOTAL,   ,   ,   ,   ,   ,   ,OTHER SERVICES TOTALS:,23834.6,2018
,2018 OFFICE OF THE SPEAKER,Q3,GENERAL EXPENDITURES,SUPPLIES AND MATERIALS,DETAIL,2018-07-06,AP,E0638562,COCA-COLA BOTTLING COMPANY CONSOLIDATED,2018-06-29,2018-06-29,FOOD & BEVERAGE,66.42,2018
,2018 OFFICE OF THE SPEAKER,Q3,GENERAL EXPENDITURES,SUPPLIES AND MATERIALS,DETAIL,2018-07-09,AP,E0638260,FIRST CHOICE COFFEE SERVICES,2018-06-28,2018-06-28,FOOD & BEVERAGE,741.16,2018
,2018 OFFICE OF THE SPEAKER,Q3,GENERAL EXPENDITURES,SUPPLIES AND MATERIALS,DETAIL,2018-07-09,AP,E0638260,FIRST CHOICE COFFEE SERVICES,2018-06-28,2018-06-28,OFFICE SUPPLIES (OUTSIDE),117.52,2018
,2018 OFFICE OF THE SPEAKER,Q3,GENERAL EXPENDITURES,SUPPLIES AND MATERIALS,DETAIL,2018-07-16,AP,E0639764,EASBY-SMITH ANNE S.,2018-06-26,2018-06-26,FOOD & BEVERAGE,19.03,2018
,2018 OFFICE OF THE SPEAKER,Q3,GENERAL EXPENDITURES,SUPPLIES AND MATERIALS,DETAIL,2018-07-19,AP,1004523,CITI PCARD-ADOBE  CREATIVE CLOUD,2018-05-29,2018-06-28,SOFTWARE  LESS THAN  $500,148.03,2018
,2018 OFFICE OF THE SPEAKER,Q3,GENERAL EXPENDITURES,SUPPLIES AND MATERIALS,DETAIL,2018-07-19,AP,1004523,CITI PCARD-AMAZON MKTPLACE PMTS,2018-05-29,2018-06-28,OFFICE SUPPLIES (OUTSIDE),50.97,2018
,2018 OFFICE OF THE SPEAKER,Q3,GENERAL EXPENDITURES,SUPPLIES AND MATERIALS,DETAIL,2018-07-19,AP,1004523,CITI PCARD-AMAZON MKTPLACE PMTS W,2018-05-29,2018-06-28,OFFICE SUPPLIES (OUTSIDE),143.18,2018
,2018 OFFICE OF THE SPEAKER,Q3,GENERAL EXPENDITURES,SUPPLIES AND MATERIALS,DETAIL,2018-07-19,AP,1004523,CITI PCARD-CAFE RIO FALLS CHURCH,2018-05-29,2018-06-28,FOOD & BEVERAGE,1154.33,2018
,2018 OFFICE OF THE SPEAKER,Q3,GENERAL EXPENDITURES,SUPPLIES AND MATERIALS,DETAIL,2018-07-19,AP,1004523,CITI PCARD-CVS/PHARMACY,2018-05-29,2018-06-28,OFFICE SUPPLIES (OUTSIDE),26.68,2018
,2018 OFFICE OF THE SPEAKER,Q3,GENERAL EXPENDITURES,SUPPLIES AND MATERIALS,DETAIL,2018-07-19,AP,1004523,CITI PCARD-DT,2018-05-29,2018-06-28,FOOD & BEVERAGE,795.3,2018
,2018 OFFICE OF THE SPEAKER,Q3,GENERAL EXPENDITURES,SUPPLIES AND MATERIALS,DETAIL,2018-07-19,AP,1004523,CITI PCARD-DT 656 CATERING,2018-05-29,2018-06-28,FOOD & BEVERAGE,1946.7,2018
,2018 OFFICE OF THE SPEAKER,Q3,GENERAL EXPENDITURES,SUPPLIES AND MATERIALS,DETAIL,2018-07-19,AP,1004523,CITI PCARD-MEDIUM RARE BARRAC,2018-05-29,2018-06-28,FOOD & BEVERAGE,-0.46,2018
,2018 OFFICE OF THE SPEAKER,Q3,GENERAL EXPENDITURES,SUPPLIES AND MATERIALS,DETAIL,2018-07-19,AP,1004523,CITI PCARD-NEW YORK TIMES DIGITAL,2018-05-29,2018-06-28,PUBLICATIONS/REFERENCE MAT'L,17.97,2018
,2018 OFFICE OF THE SPEAKER,Q3,GENERAL EXPENDITURES,SUPPLIES AND MATERIALS,DETAIL,2018-07-19,AP,1004523,CITI PCARD-WWW COSTCO COM,2018-05-29,2018-06-28,FOOD & BEVERAGE,379.8,2018
,2018 OFFICE OF THE SPEAKER,Q3,GENERAL EXPENDITURES,SUPPLIES AND MATERIALS,DETAIL,2018-07-20,AP,E0641965,FIRST CHOICE COFFEE SERVICES,2018-07-12,2018-07-12,FOOD & BEVERAGE,462.52,2018
,2018 OFFICE OF THE SPEAKER,Q3,GENERAL EXPENDITURES,SUPPLIES AND MATERIALS,DETAIL,2018-07-20,AP,E0641965,FIRST CHOICE COFFEE SERVICES,2018-07-12,2018-07-12,OFFICE SUPPLIES (OUTSIDE),65.84,2018
,2018 OFFICE OF THE SPEAKER,Q3,GENERAL EXPENDITURES,SUPPLIES AND MATERIALS,DETAIL,2018-07-20,AP,E0641966,FIRST CHOICE COFFEE SERVICES,2018-07-05,2018-07-05,FOOD & BEVERAGE,216.06,2018
,2018 OFFICE OF THE SPEAKER,Q3,GENERAL EXPENDITURES,SUPPLIES AND MATERIALS,DETAIL,2018-07-20,AP,E0641966,FIRST CHOICE COFFEE SERVICES,2018-07-05,2018-07-05,OFFICE SUPPLIES (OUTSIDE),164.8,2018
,2018 OFFICE OF THE SPEAKER,Q3,GENERAL EXPENDITURES,SUPPLIES AND MATERIALS,DETAIL,2018-07-20,AP,E0641967,COCA-COLA BOTTLING COMPANY CONSOLIDATED,2018-07-13,2018-07-13,FOOD & BEVERAGE,66.42,2018
,2018 OFFICE OF THE SPEAKER,Q3,GENERAL EXPENDITURES,SUPPLIES AND MATERIALS,DETAIL,2018-07-24,AP,E0641974,DESIGN CUISINE,2018-07-04,2018-07-04,FOOD & BEVERAGE,18838,2018
,2018 OFFICE OF THE SPEAKER,Q3,GENERAL EXPENDITURES,SUPPLIES AND MATERIALS,DETAIL,2018-07-27,AP,E0643338,FIRST CHOICE COFFEE SERVICES,2018-07-20,2018-07-20,FOOD & BEVERAGE,391.26,2018
,2018 OFFICE OF THE SPEAKER,Q3,GENERAL EXPENDITURES,SUPPLIES AND MATERIALS,DETAIL,2018-07-27,AP,E0643338,FIRST CHOICE COFFEE SERVICES,2018-07-20,2018-07-20,OFFICE SUPPLIES (OUTSIDE),84.46,2018
,2018 OFFICE OF THE SPEAKER,Q3,GENERAL EXPENDITURES,SUPPLIES AND MATERIALS,DETAIL,2018-07-31,GL,RMS0080260, ,2018-07-01,2018-07-31,OFFICE SUPPLY (TRANSFER),245.62,2018
,2018 OFFICE OF THE SPEAKER,Q3,GENERAL EXPENDITURES,SUPPLIES AND MATERIALS,DETAIL,2018-08-02,AP,E0645305,FIRST CHOICE COFFEE SERVICES,2018-07-26,2018-07-26,FOOD & BEVERAGE,216.26,2018
,2018 OFFICE OF THE SPEAKER,Q3,GENERAL EXPENDITURES,SUPPLIES AND MATERIALS,DETAIL,2018-08-14,AP,E0646647,FIRST CHOICE COFFEE SERVICES,2018-08-02,2018-08-02,FOOD & BEVERAGE,114.12,2018
,2018 OFFICE OF THE SPEAKER,Q3,GENERAL EXPENDITURES,SUPPLIES AND MATERIALS,DETAIL,2018-08-17,AP,1010486,CITI PCARD-ADOBE  CREATIVE CLOUD,2018-06-29,2018-07-27,SOFTWARE  LESS THAN  $500,148.03,2018
,2018 OFFICE OF THE SPEAKER,Q3,GENERAL EXPENDITURES,SUPPLIES AND MATERIALS,DETAIL,2018-08-17,AP,1010486,CITI PCARD-ALEXANDRIA FAMOUS DAVE,2018-06-29,2018-07-27,FOOD & BEVERAGE,597.46,2018
,2018 OFFICE OF THE SPEAKER,Q3,GENERAL EXPENDITURES,SUPPLIES AND MATERIALS,DETAIL,2018-08-17,AP,1010486,CITI PCARD-AMAZON MKTPLACE PMTS,2018-06-29,2018-07-27,OFFICE SUPPLIES (OUTSIDE),29.96,2018
,2018 OFFICE OF THE SPEAKER,Q3,GENERAL EXPENDITURES,SUPPLIES AND MATERIALS,DETAIL,2018-08-17,AP,1010486,CITI PCARD-CAFE RIO FALLS CHURCH,2018-06-29,2018-07-27,FOOD & BEVERAGE,1177.42,2018
,2018 OFFICE OF THE SPEAKER,Q3,GENERAL EXPENDITURES,SUPPLIES AND MATERIALS,DETAIL,2018-08-17,AP,1010486,CITI PCARD-JETTIES MACOMB,2018-06-29,2018-07-27,FOOD & BEVERAGE,581.08,2018
,2018 OFFICE OF THE SPEAKER,Q3,GENERAL EXPENDITURES,SUPPLIES AND MATERIALS,DETAIL,2018-08-17,AP,1010486,CITI PCARD-MATCHBOX CAPITOL HILL,2018-06-29,2018-07-27,FOOD & BEVERAGE,127.05,2018
,2018 OFFICE OF THE SPEAKER,Q3,GENERAL EXPENDITURES,SUPPLIES AND MATERIALS,DETAIL,2018-08-17,AP,1010486,CITI PCARD-NEW YORK TIMES DIGITAL,2018-06-29,2018-07-27,PUBLICATIONS/REFERENCE MAT'L,17.97,2018
,2018 OFFICE OF THE SPEAKER,Q3,GENERAL EXPENDITURES,SUPPLIES AND MATERIALS,DETAIL,2018-08-17,AP,1010486,CITI PCARD-WWW COSTCO COM,2018-06-29,2018-07-27,FOOD & BEVERAGE,379.8,2018
,2018 OFFICE OF THE SPEAKER,Q3,GENERAL EXPENDITURES,SUPPLIES AND MATERIALS,DETAIL,2018-08-27,AP,E0650501,COCA-COLA BOTTLING COMPANY CONSOLIDATED,2018-08-17,2018-08-17,FOOD & BEVERAGE,103.32,2018
,2018 OFFICE OF THE SPEAKER,Q3,GENERAL EXPENDITURES,SUPPLIES AND MATERIALS,DETAIL,2018-08-27,AP,E0650504,FIRST CHOICE COFFEE SERVICES,2018-08-16,2018-08-16,FOOD & BEVERAGE,457.32,2018
,2018 OFFICE OF THE SPEAKER,Q3,GENERAL EXPENDITURES,SUPPLIES AND MATERIALS,DETAIL,2018-08-27,AP,E0650504,FIRST CHOICE COFFEE SERVICES,2018-08-16,2018-08-16,OFFICE SUPPLIES (OUTSIDE),381.34,2018
,2018 OFFICE OF THE SPEAKER,Q3,GENERAL EXPENDITURES,SUPPLIES AND MATERIALS,DETAIL,2018-09-17,AP,E0654542,COCA-COLA BOTTLING COMPANY CONSOLIDATED,2018-09-07,2018-09-07,FOOD & BEVERAGE,95.94,2018
,2018 OFFICE OF THE SPEAKER,Q3,GENERAL EXPENDITURES,SUPPLIES AND MATERIALS,DETAIL,2018-09-17,AP,E0654548,FIRST CHOICE COFFEE SERVICES,2018-09-05,2018-09-05,FOOD & BEVERAGE,549.84,2018
,2018 OFFICE OF THE SPEAKER,Q3,GENERAL EXPENDITURES,SUPPLIES AND MATERIALS,DETAIL,2018-09-17,AP,E0654548,FIRST CHOICE COFFEE SERVICES,2018-09-05,2018-09-05,OFFICE SUPPLIES (OUTSIDE),30.6,2018
,2018 OFFICE OF THE SPEAKER,Q3,GENERAL EXPENDITURES,SUPPLIES AND MATERIALS,DETAIL,2018-09-20,AP,1013922,FIRST CHOICE COFFEE SERVICES,2018-09-13,2018-09-13,FOOD & BEVERAGE,875.68,2018
,2018 OFFICE OF THE SPEAKER,Q3,GENERAL EXPENDITURES,SUPPLIES AND MATERIALS,DETAIL,2018-09-26,AP,1018561,FIRST CHOICE COFFEE SERVICES,2018-09-20,2018-09-20,FOOD & BEVERAGE,346.62,2018
,2018 OFFICE OF THE SPEAKER,Q3,GENERAL EXPENDITURES,SUPPLIES AND MATERIALS,DETAIL,2018-09-26,AP,1019131,CITI PCARD-ADOBE  CREATIVE CLOUD,2018-07-28,2018-08-28,SOFTWARE  LESS THAN  $500,148.03,2018
,2018 OFFICE OF THE SPEAKER,Q3,GENERAL EXPENDITURES,SUPPLIES AND MATERIALS,DETAIL,2018-09-26,AP,1019131,CITI PCARD-CBI PARALLELS,2018-07-28,2018-08-28,SOFTWARE  LESS THAN  $500,49.99,2018
,2018 OFFICE OF THE SPEAKER,Q3,GENERAL EXPENDITURES,SUPPLIES AND MATERIALS,DETAIL,2018-09-26,AP,1019131,CITI PCARD-NEW YORK TIMES DIGITAL,2018-07-28,2018-08-28,PUBLICATIONS/REFERENCE MAT'L,17.97,2018
,2018 OFFICE OF THE SPEAKER,Q3,GENERAL EXPENDITURES,SUPPLIES AND MATERIALS,DETAIL,2018-09-26,AP,1019131,CITI PCARD-TCD TTA-RESEARCH &CPE,2018-07-28,2018-08-28,PUBLICATIONS/REFERENCE MAT'L,110.08,2018
,2018 OFFICE OF THE SPEAKER,Q3,GENERAL EXPENDITURES,SUPPLIES AND MATERIALS,SUBTOTAL,   ,   ,   ,   ,   ,   ,SUPPLIES AND MATERIALS TOTALS:,32697.49,2018
,2018 OFFICE OF THE SPEAKER,Q3,GENERAL EXPENDITURES,EQUIPMENT,DETAIL,2018-07-16,AP,E0639687,GULF PARTYLINE CORPORATION,2018-06-01,2018-06-30,COMPUTER SOFTW PURCH  LESS THAN $10 000,1800,2018
,2018 OFFICE OF THE SPEAKER,Q3,GENERAL EXPENDITURES,EQUIPMENT,DETAIL,2018-07-31,GL,MNT0080188, ,2018-07-01,2018-07-31,MAINTENANCE / REPAIRS,773,2018
,2018 OFFICE OF THE SPEAKER,Q3,GENERAL EXPENDITURES,EQUIPMENT,DETAIL,2018-08-17,AP,E0649039,GULF PARTYLINE CORPORATION,2018-07-01,2018-07-31,COMPUTER SOFTW PURCH  LESS THAN $10 000,1800,2018
,2018 OFFICE OF THE SPEAKER,Q3,GENERAL EXPENDITURES,EQUIPMENT,DETAIL,2018-08-31,GL,MNT0081088, ,2018-08-01,2018-08-31,MAINTENANCE / REPAIRS,773,2018
,2018 OFFICE OF THE SPEAKER,Q3,GENERAL EXPENDITURES,EQUIPMENT,DETAIL,2018-09-25,AP,1015767,GULF PARTYLINE CORPORATION,2018-08-01,2018-08-31,COMPUTER SOFTW PURCH  LESS THAN $10 000,1800,2018
,2018 OFFICE OF THE SPEAKER,Q3,GENERAL EXPENDITURES,EQUIPMENT,DETAIL,2018-09-28,GL,MNT0081912, ,2018-09-01,2018-09-30,MAINTENANCE / REPAIRS,773,2018
,2018 OFFICE OF THE SPEAKER,Q3,GENERAL EXPENDITURES,EQUIPMENT,SUBTOTAL,   ,   ,   ,   ,   ,   ,EQUIPMENT TOTALS:,7719,2018
,2018 OFFICE OF THE SPEAKER,Q3,GENERAL EXPENDITURES,EQUIPMENT,SUBTOTAL,   ,   ,   ,   ,   ,   ,GENERAL EXPENDITURES TOTALS:,1263250.63,2018
,2018 OFFICE OF THE SPEAKER,Q3,CONFERENCE SECRETARY,PERSONNEL COMPENSATION,DETAIL,   ,   ,   ,ROMAN MARK J.,2018-07-01,2018-09-30,SHARED EMPLOYEE,24999.99,2018
,2018 OFFICE OF THE SPEAKER,Q3,CONFERENCE SECRETARY,PERSONNEL COMPENSATION,SUBTOTAL,   ,   ,   ,   ,   ,   ,PERSONNEL COMPENSATION TOTALS:,24999.99,2018
,2018 OFFICE OF THE SPEAKER,Q3,CONFERENCE SECRETARY,PERSONNEL COMPENSATION,SUBTOTAL,   ,   ,   ,   ,   ,   ,CONFERENCE SECRETARY TOTALS:,24999.99,2018
,2018 OFFICE OF THE SPEAKER,Q3,NRCC,PERSONNEL COMPENSATION,DETAIL,   ,   ,   ,BUSH NICHOLAS J,2018-07-01,2018-09-30,SHARED EMPLOYEE,24999.99,2018
,2018 OFFICE OF THE SPEAKER,Q3,NRCC,PERSONNEL COMPENSATION,SUBTOTAL,   ,   ,   ,   ,   ,   ,PERSONNEL COMPENSATION TOTALS:,24999.99,2018
,2018 OFFICE OF THE SPEAKER,Q3,NRCC,PERSONNEL COMPENSATION,SUBTOTAL,   ,   ,   ,   ,   ,   ,NRCC TOTALS:,24999.99,2018
,2018 OFFICE OF THE SPEAKER,Q3,CONFERENCE VICE CHAIR,PERSONNEL COMPENSATION,DETAIL,   ,   ,   ,LARSON SALLY R,2018-07-01,2018-09-30,SHARED EMPLOYEE,24999.99,2018
,2018 OFFICE OF THE SPEAKER,Q3,CONFERENCE VICE CHAIR,PERSONNEL COMPENSATION,SUBTOTAL,   ,   ,   ,   ,   ,   ,PERSONNEL COMPENSATION TOTALS:,24999.99,2018
,2018 OFFICE OF THE SPEAKER,Q3,CONFERENCE VICE CHAIR,PERSONNEL COMPENSATION,SUBTOTAL,   ,   ,   ,   ,   ,   ,CONFERENCE VICE CHAIR TOTALS:,24999.99,2018
,2018 OFFICE OF THE SPEAKER,Q3,REPUBLICAN POLICY COMMITTEE,PERSONNEL COMPENSATION,DETAIL,   ,   ,   ,HOFMAN RYAN,2018-07-01,2018-09-30,SHARED EMPLOYEE,7200,2018
,2018 OFFICE OF THE SPEAKER,Q3,REPUBLICAN POLICY COMMITTEE,PERSONNEL COMPENSATION,DETAIL,   ,   ,   ,HUSTON JOHNATHON B,2018-07-01,2018-09-30,SHARED EMPLOYEE,11100,2018
,2018 OFFICE OF THE SPEAKER,Q3,REPUBLICAN POLICY COMMITTEE,PERSONNEL COMPENSATION,DETAIL,   ,   ,   ,VREEBURG JACOBUS A,2018-07-01,2018-09-30,SHARED EMPLOYEE,20000.01,2018
,2018 OFFICE OF THE SPEAKER,Q3,REPUBLICAN POLICY COMMITTEE,PERSONNEL COMPENSATION,SUBTOTAL,   ,   ,   ,   ,   ,   ,PERSONNEL COMPENSATION TOTALS:,38300.01,2018
,2018 OFFICE OF THE SPEAKER,Q3,REPUBLICAN POLICY COMMITTEE,PERSONNEL COMPENSATION,SUBTOTAL,   ,   ,   ,   ,   ,   ,REPUBLICAN POLICY COMMITTEE TOTALS:,38300.01,2018
,2018 OFFICE OF THE SPEAKER,Q3,REPUBLICAN POLICY COMMITTEE,PERSONNEL COMPENSATION,GRAND TOTAL FOR ORGANIZATION,   ,   ,   ,   ,   ,   ,OFFICE TOTALS: ,1376550.61,2018
,2018 OFFICE OF THE MAJORITY LEADER,Q3,GENERAL EXPENDITURES,PERSONNEL COMPENSATION,DETAIL,   ,   ,   ,BIEN CHRISTOPHER A,2018-07-01,2018-08-31,FLOOR ASSISTANT,11500,2018
,2018 OFFICE OF THE MAJORITY LEADER,Q3,GENERAL EXPENDITURES,PERSONNEL COMPENSATION,DETAIL,   ,   ,   ,BIEN CHRISTOPHER A,2018-09-01,2018-09-30,DEPUTY DIR OF FLOOR OPERATIONS,7250,2018
,2018 OFFICE OF THE MAJORITY LEADER,Q3,GENERAL EXPENDITURES,PERSONNEL COMPENSATION,DETAIL,   ,   ,   ,BUCHANAN NATALIE L,2018-07-01,2018-09-30,DIR OF MEMBER SERVICES,35500,2018
,2018 OFFICE OF THE MAJORITY LEADER,Q3,GENERAL EXPENDITURES,PERSONNEL COMPENSATION,DETAIL,   ,   ,   ,CAMERON CHRISTINA E,2018-09-13,2018-09-30,COMMUNICATIONS AIDE,2400,2018
,2018 OFFICE OF THE MAJORITY LEADER,Q3,GENERAL EXPENDITURES,PERSONNEL COMPENSATION,DETAIL,   ,   ,   ,CHAMBERS KELLY A.,2018-07-01,2018-09-30,DIR OF LEGISLATIVE OPERATIONS,37000,2018
,2018 OFFICE OF THE MAJORITY LEADER,Q3,GENERAL EXPENDITURES,PERSONNEL COMPENSATION,DETAIL,   ,   ,   ,DUNHAM WILL,2018-07-01,2018-09-30,POLICY DIRECTOR,40000,2018
,2018 OFFICE OF THE MAJORITY LEADER,Q3,GENERAL EXPENDITURES,PERSONNEL COMPENSATION,DETAIL,   ,   ,   ,FLORIO JOHN A,2018-07-01,2018-09-30,STRATEGIC COMMUNICATIONS & DIG,19000,2018
,2018 OFFICE OF THE MAJORITY LEADER,Q3,GENERAL EXPENDITURES,PERSONNEL COMPENSATION,DETAIL,   ,   ,   ,GOURDIKIAN ALEXANDRA G,2018-07-01,2018-09-30,SCHEDULER,20500,2018
,2018 OFFICE OF THE MAJORITY LEADER,Q3,GENERAL EXPENDITURES,PERSONNEL COMPENSATION,DETAIL,   ,   ,   ,HILL PRESTON W,2018-07-01,2018-09-30,SPECIAL ASSISTANT,12000,2018
,2018 OFFICE OF THE MAJORITY LEADER,Q3,GENERAL EXPENDITURES,PERSONNEL COMPENSATION,DETAIL,   ,   ,   ,HUMES ALEXANDRA W,2018-07-01,2018-09-30,STAFF ASSISTANT,8500,2018
,2018 OFFICE OF THE MAJORITY LEADER,Q3,GENERAL EXPENDITURES,PERSONNEL COMPENSATION,DETAIL,   ,   ,   ,KARR ELIZABETH B,2018-07-01,2018-09-30,CHIEF OF STAFF,43125,2018
,2018 OFFICE OF THE MAJORITY LEADER,Q3,GENERAL EXPENDITURES,PERSONNEL COMPENSATION,DETAIL,   ,   ,   ,LEGANSKI JOHN G,2018-07-01,2018-09-30,DIRECTOR OF FLOOR OPERATIONS,31000,2018
,2018 OFFICE OF THE MAJORITY LEADER,Q3,GENERAL EXPENDITURES,PERSONNEL COMPENSATION,DETAIL,   ,   ,   ,LORAINE JENNIFER A,2018-07-01,2018-09-30,SR POLICY ADVISOR  & COUNSEL,35000,2018
,2018 OFFICE OF THE MAJORITY LEADER,Q3,GENERAL EXPENDITURES,PERSONNEL COMPENSATION,DETAIL,   ,   ,   ,MAHAN ROGER A,2018-08-01,2018-08-15,SHARED EMPLOYEE,333.88,2018
,2018 OFFICE OF THE MAJORITY LEADER,Q3,GENERAL EXPENDITURES,PERSONNEL COMPENSATION,DETAIL,   ,   ,   ,MEYER KATHERINE R,2018-07-01,2018-09-30,SENIOR POLICY ADVISOR,35500,2018
,2018 OFFICE OF THE MAJORITY LEADER,Q3,GENERAL EXPENDITURES,PERSONNEL COMPENSATION,DETAIL,   ,   ,   ,MIN JAMES B.,2018-07-01,2018-09-30,DEPUTY CHIEF OF STAFF/COUNSEL,33750,2018
,2018 OFFICE OF THE MAJORITY LEADER,Q3,GENERAL EXPENDITURES,PERSONNEL COMPENSATION,DETAIL,   ,   ,   ,MURPHY CULLEN D,2018-07-01,2018-09-30,STAFF AIDE,7000,2018
,2018 OFFICE OF THE MAJORITY LEADER,Q3,GENERAL EXPENDITURES,PERSONNEL COMPENSATION,DETAIL,   ,   ,   ,MURRY LUKE A,2018-07-01,2018-09-30,NATIONAL SECURITY ADVISOR,35500,2018
,2018 OFFICE OF THE MAJORITY LEADER,Q3,GENERAL EXPENDITURES,PERSONNEL COMPENSATION,DETAIL,   ,   ,   ,PERRINE ERIN M,2018-07-01,2018-09-30,PRESS SECRETARY,23500,2018
,2018 OFFICE OF THE MAJORITY LEADER,Q3,GENERAL EXPENDITURES,PERSONNEL COMPENSATION,DETAIL,   ,   ,   ,SEITZ MATTHEW B,2018-07-01,2018-09-30,SPEECHWRITER,19250,2018
,2018 OFFICE OF THE MAJORITY LEADER,Q3,GENERAL EXPENDITURES,PERSONNEL COMPENSATION,DETAIL,   ,   ,   ,SPARKS MATTHEW E,2018-07-01,2018-09-30,DIRECTOR OF COMMUNICATIONS,32750,2018
,2018 OFFICE OF THE MAJORITY LEADER,Q3,GENERAL EXPENDITURES,PERSONNEL COMPENSATION,DETAIL,   ,   ,   ,SPECHT BRITTAN G,2018-07-01,2018-09-30,SENIOR POLICY ADVISOR,35500,2018
,2018 OFFICE OF THE MAJORITY LEADER,Q3,GENERAL EXPENDITURES,PERSONNEL COMPENSATION,DETAIL,   ,   ,   ,STIPICEVIC KRISTIN,2018-07-01,2018-09-30,EXECUTIVE ASSISTANT,12750,2018
,2018 OFFICE OF THE MAJORITY LEADER,Q3,GENERAL EXPENDITURES,PERSONNEL COMPENSATION,SUBTOTAL,   ,   ,   ,   ,   ,   ,PERSONNEL COMPENSATION TOTALS:,538608.88,2018
,2018 OFFICE OF THE MAJORITY LEADER,Q3,GENERAL EXPENDITURES,TRAVEL,DETAIL,2018-07-11,AP,E0639403,MURRY LUKE A,2018-06-04,2018-06-12,TAXI/PARKING/TOLLS,95.01,2018
,2018 OFFICE OF THE MAJORITY LEADER,Q3,GENERAL EXPENDITURES,TRAVEL,DETAIL,2018-07-11,AP,E0639403,MURRY LUKE A,2018-06-27,2018-06-27,TAXI/PARKING/TOLLS,41.12,2018
,2018 OFFICE OF THE MAJORITY LEADER,Q3,GENERAL EXPENDITURES,TRAVEL,DETAIL,2018-07-11,AP,E0639403,MURRY LUKE A,2018-06-29,2018-06-29,TAXI/PARKING/TOLLS,23.07,2018
,2018 OFFICE OF THE MAJORITY LEADER,Q3,GENERAL EXPENDITURES,TRAVEL,DETAIL,2018-07-11,AP,E0639562,PERRINE ERIN M.,2018-06-25,2018-06-25,COMMERCIAL TRANSPORTATION,186,2018
,2018 OFFICE OF THE MAJORITY LEADER,Q3,GENERAL EXPENDITURES,TRAVEL,DETAIL,2018-08-16,AP,E0649766,DUNHAM WILL,2018-06-29,2018-06-29,TAXI/PARKING/TOLLS,27.98,2018
,2018 OFFICE OF THE MAJORITY LEADER,Q3,GENERAL EXPENDITURES,TRAVEL,DETAIL,2018-08-16,AP,E0649766,DUNHAM WILL,2018-07-31,2018-07-31,TAXI/PARKING/TOLLS,25,2018
,2018 OFFICE OF THE MAJORITY LEADER,Q3,GENERAL EXPENDITURES,TRAVEL,DETAIL,2018-08-28,AP,E0650833,SPARKS MATTHEW E.,2018-08-13,2018-08-15,COMMERCIAL TRANSPORTATION,882,2018
,2018 OFFICE OF THE MAJORITY LEADER,Q3,GENERAL EXPENDITURES,TRAVEL,DETAIL,2018-08-28,AP,E0650883,SPARKS MATTHEW E.,2018-08-13,2018-08-15,LODGING,224.4,2018
,2018 OFFICE OF THE MAJORITY LEADER,Q3,GENERAL EXPENDITURES,TRAVEL,DETAIL,2018-08-28,AP,E0650883,SPARKS MATTHEW E.,2018-08-13,2018-08-15,CAR RENTAL,215.74,2018
,2018 OFFICE OF THE MAJORITY LEADER,Q3,GENERAL EXPENDITURES,TRAVEL,DETAIL,2018-08-28,AP,E0650883,SPARKS MATTHEW E.,2018-08-15,2018-08-15,GASOLINE,44.32,2018
,2018 OFFICE OF THE MAJORITY LEADER,Q3,GENERAL EXPENDITURES,TRAVEL,DETAIL,2018-08-28,AP,E0650883,SPARKS MATTHEW E.,2018-08-16,2018-08-16,TAXI/PARKING/TOLLS,51,2018
,2018 OFFICE OF THE MAJORITY LEADER,Q3,GENERAL EXPENDITURES,TRAVEL,DETAIL,2018-09-27,AP,E0657213,SPARKS MATTHEW E.,2018-08-27,2018-08-27,COMMERCIAL TRANSPORTATION,297,2018
,2018 OFFICE OF THE MAJORITY LEADER,Q3,GENERAL EXPENDITURES,TRAVEL,DETAIL,2018-09-27,AP,E0657217,MURRY LUKE A,2018-08-22,2018-08-22,TAXI/PARKING/TOLLS,20,2018
,2018 OFFICE OF THE MAJORITY LEADER,Q3,GENERAL EXPENDITURES,TRAVEL,DETAIL,2018-09-29,AP,E0657728,PERRINE ERIN M.,2018-08-25,2018-08-26,COMMERCIAL TRANSPORTATION,291,2018
,2018 OFFICE OF THE MAJORITY LEADER,Q3,GENERAL EXPENDITURES,TRAVEL,DETAIL,2018-09-29,AP,E0657728,PERRINE ERIN M.,2018-08-25,2018-08-26,LODGING,205.9,2018
,2018 OFFICE OF THE MAJORITY LEADER,Q3,GENERAL EXPENDITURES,TRAVEL,DETAIL,2018-09-29,AP,E0657728,PERRINE ERIN M.,2018-08-26,2018-08-26,TAXI/PARKING/TOLLS,8.84,2018
,2018 OFFICE OF THE MAJORITY LEADER,Q3,GENERAL EXPENDITURES,TRAVEL,SUBTOTAL,   ,   ,   ,   ,   ,   ,TRAVEL TOTALS:,2638.38,2018
,2018 OFFICE OF THE MAJORITY LEADER,Q3,GENERAL EXPENDITURES,RENT  COMMUNICATION  UTILITIES,DETAIL,2018-07-19,AP,1004523,CITI PCARD-USPS PO,2018-05-29,2018-06-28,POSTAGE / COURIER / BOX RENTAL,80,2018
,2018 OFFICE OF THE MAJORITY LEADER,Q3,GENERAL EXPENDITURES,RENT  COMMUNICATION  UTILITIES,DETAIL,2018-07-26,GL,EMS0080133, ,2018-06-01,2018-06-30,DC TELECOM EQUIP (TRANSFER),249,2018
,2018 OFFICE OF THE MAJORITY LEADER,Q3,GENERAL EXPENDITURES,RENT  COMMUNICATION  UTILITIES,DETAIL,2018-07-26,GL,EMS0080133, ,2018-06-01,2018-06-30,DC TELECOM SERV (TRANSFER),232,2018
,2018 OFFICE OF THE MAJORITY LEADER,Q3,GENERAL EXPENDITURES,RENT  COMMUNICATION  UTILITIES,DETAIL,2018-07-26,GL,EMS0080133, ,2018-06-01,2018-06-30,DC TELECOM TOLLS (TRANSFER),2466.19,2018
,2018 OFFICE OF THE MAJORITY LEADER,Q3,GENERAL EXPENDITURES,RENT  COMMUNICATION  UTILITIES,DETAIL,2018-08-17,AP,1010486,CITI PCARD-USPS PO,2018-06-29,2018-07-27,POSTAGE / COURIER / BOX RENTAL,150,2018
,2018 OFFICE OF THE MAJORITY LEADER,Q3,GENERAL EXPENDITURES,RENT  COMMUNICATION  UTILITIES,DETAIL,2018-08-27,GL,EMS0080878, ,2018-07-01,2018-07-31,DC TELECOM EQUIP (TRANSFER),136,2018
,2018 OFFICE OF THE MAJORITY LEADER,Q3,GENERAL EXPENDITURES,RENT  COMMUNICATION  UTILITIES,DETAIL,2018-08-27,GL,EMS0080878, ,2018-07-01,2018-07-31,DC TELECOM SERV (TRANSFER),247.5,2018
,2018 OFFICE OF THE MAJORITY LEADER,Q3,GENERAL EXPENDITURES,RENT  COMMUNICATION  UTILITIES,DETAIL,2018-08-27,GL,EMS0080878, ,2018-07-01,2018-07-31,DC TELECOM TOLLS (TRANSFER),2470.3,2018
,2018 OFFICE OF THE MAJORITY LEADER,Q3,GENERAL EXPENDITURES,RENT  COMMUNICATION  UTILITIES,DETAIL,2018-09-25,GL,EMS0081714, ,2018-08-01,2018-08-31,DC TELECOM EQUIP (TRANSFER),40,2018
,2018 OFFICE OF THE MAJORITY LEADER,Q3,GENERAL EXPENDITURES,RENT  COMMUNICATION  UTILITIES,DETAIL,2018-09-25,GL,EMS0081714, ,2018-08-01,2018-08-31,DC TELECOM SERV (TRANSFER),247.5,2018
,2018 OFFICE OF THE MAJORITY LEADER,Q3,GENERAL EXPENDITURES,RENT  COMMUNICATION  UTILITIES,DETAIL,2018-09-25,GL,EMS0081714, ,2018-08-01,2018-08-31,DC TELECOM TOLLS (TRANSFER),2655.92,2018
,2018 OFFICE OF THE MAJORITY LEADER,Q3,GENERAL EXPENDITURES,RENT  COMMUNICATION  UTILITIES,DETAIL,2018-09-26,AP,1019131,CITI PCARD-FACEBK EKTV2H22U,2018-07-28,2018-08-28,MISC. COMMUNICATIONS,25,2018
,2018 OFFICE OF THE MAJORITY LEADER,Q3,GENERAL EXPENDITURES,RENT  COMMUNICATION  UTILITIES,DETAIL,2018-09-26,AP,1019131,CITI PCARD-FACEBK T4JNLGJZT,2018-07-28,2018-08-28,MISC. COMMUNICATIONS,50,2018
,2018 OFFICE OF THE MAJORITY LEADER,Q3,GENERAL EXPENDITURES,RENT  COMMUNICATION  UTILITIES,DETAIL,2018-09-26,AP,1019131,CITI PCARD-FACEBK UZHZSGNZT,2018-07-28,2018-08-28,MISC. COMMUNICATIONS,30.94,2018
,2018 OFFICE OF THE MAJORITY LEADER,Q3,GENERAL EXPENDITURES,RENT  COMMUNICATION  UTILITIES,DETAIL,2018-09-26,AP,1019131,CITI PCARD-TWITTER ONLINE ADS,2018-07-28,2018-08-28,MISC. COMMUNICATIONS,99,2018
,2018 OFFICE OF THE MAJORITY LEADER,Q3,GENERAL EXPENDITURES,RENT  COMMUNICATION  UTILITIES,DETAIL,2018-09-26,AP,1019131,CITI PCARD-USPS PO,2018-07-28,2018-08-28,POSTAGE / COURIER / BOX RENTAL,13.35,2018
,2018 OFFICE OF THE MAJORITY LEADER,Q3,GENERAL EXPENDITURES,RENT  COMMUNICATION  UTILITIES,DETAIL,2018-09-27,AP,E0657207,GULF PARTYLINE CORPORATION,2018-08-01,2018-08-31,TELECOMSRV/EQ/TOLL CHARGE,4000,2018
,2018 OFFICE OF THE MAJORITY LEADER,Q3,GENERAL EXPENDITURES,RENT  COMMUNICATION  UTILITIES,SUBTOTAL,   ,   ,   ,   ,   ,   ,RENT  COMMUNICATION  UTILITIES TOTALS:,13192.7,2018
,2018 OFFICE OF THE MAJORITY LEADER,Q3,GENERAL EXPENDITURES,PRINTING AND REPRODUCTION,DETAIL,2018-07-11,AP,E0639562,PERRINE ERIN M.,2018-06-25,2018-06-25,PRINTING & REPRODUCTION,29.34,2018
,2018 OFFICE OF THE MAJORITY LEADER,Q3,GENERAL EXPENDITURES,PRINTING AND REPRODUCTION,DETAIL,2018-07-30,GL,PIX0080134, ,2018-07-01,2018-07-31,PHOTOGRAPHIC (TRANSFER),21,2018
,2018 OFFICE OF THE MAJORITY LEADER,Q3,GENERAL EXPENDITURES,PRINTING AND REPRODUCTION,DETAIL,2018-09-26,AP,E0657208,ACCURATE WORD LLC,2018-09-17,2018-09-17,PRINTING & REPRODUCTION,39.95,2018
,2018 OFFICE OF THE MAJORITY LEADER,Q3,GENERAL EXPENDITURES,PRINTING AND REPRODUCTION,SUBTOTAL,   ,   ,   ,   ,   ,   ,PRINTING AND REPRODUCTION TOTALS:,90.29,2018
,2018 OFFICE OF THE MAJORITY LEADER,Q3,GENERAL EXPENDITURES,OTHER SERVICES,DETAIL,2018-07-10,AP,E0639400,ENGAGE LLC,2018-07-01,2018-07-31,WEB DEV HST EMAIL & RLTD SERV,500,2018
,2018 OFFICE OF THE MAJORITY LEADER,Q3,GENERAL EXPENDITURES,OTHER SERVICES,DETAIL,2018-07-16,AP,1001396,HOUSECALL LLC,2018-07-01,2018-07-31,TECHNOLOGY SERVICE CONTRACTS,5125,2018
,2018 OFFICE OF THE MAJORITY LEADER,Q3,GENERAL EXPENDITURES,OTHER SERVICES,DETAIL,2018-07-24,AP,1004514,FIRESIDE21,2018-06-01,2018-06-30,WEB DEV HST EMAIL & RLTD SERV,585,2018
,2018 OFFICE OF THE MAJORITY LEADER,Q3,GENERAL EXPENDITURES,OTHER SERVICES,DETAIL,2018-08-16,AP,1009815,HOUSECALL LLC,2018-08-01,2018-08-31,TECHNOLOGY SERVICE CONTRACTS,5125,2018
,2018 OFFICE OF THE MAJORITY LEADER,Q3,GENERAL EXPENDITURES,OTHER SERVICES,DETAIL,2018-08-21,AP,1006693,FIRESIDE21,2018-07-01,2018-07-31,WEB DEV HST EMAIL & RLTD SERV,585,2018
,2018 OFFICE OF THE MAJORITY LEADER,Q3,GENERAL EXPENDITURES,OTHER SERVICES,DETAIL,2018-09-16,AP,1014746,HOUSECALL LLC,2018-09-01,2018-09-30,TECHNOLOGY SERVICE CONTRACTS,5125,2018
,2018 OFFICE OF THE MAJORITY LEADER,Q3,GENERAL EXPENDITURES,OTHER SERVICES,DETAIL,2018-09-25,AP,1018613,FIRESIDE21,2018-08-01,2018-08-31,WEB DEV HST EMAIL & RLTD SERV,585,2018
,2018 OFFICE OF THE MAJORITY LEADER,Q3,GENERAL EXPENDITURES,OTHER SERVICES,DETAIL,2018-09-26,AP,E0657205,ENGAGE LLC,2018-08-01,2018-08-31,WEB DEV HST EMAIL & RLTD SERV,500,2018
,2018 OFFICE OF THE MAJORITY LEADER,Q3,GENERAL EXPENDITURES,OTHER SERVICES,DETAIL,2018-09-26,AP,E0657231,ENGAGE LLC,2018-09-01,2018-09-30,WEB DEV HST EMAIL & RLTD SERV,500,2018
,2018 OFFICE OF THE MAJORITY LEADER,Q3,GENERAL EXPENDITURES,OTHER SERVICES,SUBTOTAL,   ,   ,   ,   ,   ,   ,OTHER SERVICES TOTALS:,18630,2018
,2018 OFFICE OF THE MAJORITY LEADER,Q3,GENERAL EXPENDITURES,SUPPLIES AND MATERIALS,DETAIL,2018-07-11,AP,E0639401,MIN JAMES B.,2018-06-29,2018-06-29,FOOD & BEVERAGE,357.52,2018
,2018 OFFICE OF THE MAJORITY LEADER,Q3,GENERAL EXPENDITURES,SUPPLIES AND MATERIALS,DETAIL,2018-07-11,AP,E0639401,MIN JAMES B.,2018-06-29,2018-06-29,OFFICE SUPPLIES (OUTSIDE),129.99,2018
,2018 OFFICE OF THE MAJORITY LEADER,Q3,GENERAL EXPENDITURES,SUPPLIES AND MATERIALS,DETAIL,2018-07-11,AP,E0639402,MIN JAMES B.,2018-06-21,2018-06-21,FOOD & BEVERAGE,79.68,2018
,2018 OFFICE OF THE MAJORITY LEADER,Q3,GENERAL EXPENDITURES,SUPPLIES AND MATERIALS,DETAIL,2018-07-11,AP,E0639402,MIN JAMES B.,2018-06-28,2018-06-28,FOOD & BEVERAGE,162.86,2018
,2018 OFFICE OF THE MAJORITY LEADER,Q3,GENERAL EXPENDITURES,SUPPLIES AND MATERIALS,DETAIL,2018-07-11,AP,E0639573,MIN JAMES B.,2018-06-15,2018-06-15,FOOD & BEVERAGE,63.98,2018
,2018 OFFICE OF THE MAJORITY LEADER,Q3,GENERAL EXPENDITURES,SUPPLIES AND MATERIALS,DETAIL,2018-07-19,AP,1004523,CITI PCARD-AMAZON.COM AMZN.COM/BI,2018-05-29,2018-06-28,OFFICE SUPPLIES (OUTSIDE),93.96,2018
,2018 OFFICE OF THE MAJORITY LEADER,Q3,GENERAL EXPENDITURES,SUPPLIES AND MATERIALS,DETAIL,2018-07-19,AP,1004523,CITI PCARD-CAFE RIO FALLS CHURCH,2018-05-29,2018-06-28,FOOD & BEVERAGE,628.15,2018
,2018 OFFICE OF THE MAJORITY LEADER,Q3,GENERAL EXPENDITURES,SUPPLIES AND MATERIALS,DETAIL,2018-07-19,AP,1004523,CITI PCARD-CHICK-FIL-A,2018-05-29,2018-06-28,FOOD & BEVERAGE,582.4,2018
,2018 OFFICE OF THE MAJORITY LEADER,Q3,GENERAL EXPENDITURES,SUPPLIES AND MATERIALS,DETAIL,2018-07-19,AP,1004523,CITI PCARD-CORNER BAKERY,2018-05-29,2018-06-28,FOOD & BEVERAGE,401.5,2018
,2018 OFFICE OF THE MAJORITY LEADER,Q3,GENERAL EXPENDITURES,SUPPLIES AND MATERIALS,DETAIL,2018-07-19,AP,1004523,CITI PCARD-DEWAR'S CANDY SHOP,2018-05-29,2018-06-28,FOOD & BEVERAGE,274.5,2018
,2018 OFFICE OF THE MAJORITY LEADER,Q3,GENERAL EXPENDITURES,SUPPLIES AND MATERIALS,DETAIL,2018-07-19,AP,1004523,CITI PCARD-DT 656 CATERING,2018-05-29,2018-06-28,FOOD & BEVERAGE,215.93,2018
,2018 OFFICE OF THE MAJORITY LEADER,Q3,GENERAL EXPENDITURES,SUPPLIES AND MATERIALS,DETAIL,2018-07-19,AP,1004523,CITI PCARD-FIRST CHOICE COFFEE SE,2018-05-29,2018-06-28,OFFICE SUPPLIES (OUTSIDE),926.95,2018
,2018 OFFICE OF THE MAJORITY LEADER,Q3,GENERAL EXPENDITURES,SUPPLIES AND MATERIALS,DETAIL,2018-07-19,AP,1004523,CITI PCARD-FTP FINANCIAL TIMES,2018-05-29,2018-06-28,OFFICE SUPPLIES (OUTSIDE),59.5,2018
,2018 OFFICE OF THE MAJORITY LEADER,Q3,GENERAL EXPENDITURES,SUPPLIES AND MATERIALS,DETAIL,2018-07-19,AP,1004523,CITI PCARD-INT IN  MISSION BBQ CA,2018-05-29,2018-06-28,FOOD & BEVERAGE,565.54,2018
,2018 OFFICE OF THE MAJORITY LEADER,Q3,GENERAL EXPENDITURES,SUPPLIES AND MATERIALS,DETAIL,2018-07-19,AP,1004523,CITI PCARD-LA TIMES SUBSCRIPTION,2018-05-29,2018-06-28,PUBLICATIONS/REFERENCE MAT'L,15.96,2018
,2018 OFFICE OF THE MAJORITY LEADER,Q3,GENERAL EXPENDITURES,SUPPLIES AND MATERIALS,DETAIL,2018-07-19,AP,1004523,CITI PCARD-NEW YORK TIMES DIGITAL,2018-05-29,2018-06-28,PUBLICATIONS/REFERENCE MAT'L,37.01,2018
,2018 OFFICE OF THE MAJORITY LEADER,Q3,GENERAL EXPENDITURES,SUPPLIES AND MATERIALS,DETAIL,2018-07-19,AP,1004523,CITI PCARD-TAYLOR GOURMET 1116H L,2018-05-29,2018-06-28,FOOD & BEVERAGE,773.5,2018
,2018 OFFICE OF THE MAJORITY LEADER,Q3,GENERAL EXPENDITURES,SUPPLIES AND MATERIALS,DETAIL,2018-07-19,AP,1004523,CITI PCARD-THE INFORMATION,2018-05-29,2018-06-28,PUBLICATIONS/REFERENCE MAT'L,39,2018
,2018 OFFICE OF THE MAJORITY LEADER,Q3,GENERAL EXPENDITURES,SUPPLIES AND MATERIALS,DETAIL,2018-07-26,AP,E0643591,MIN JAMES B.,2018-07-17,2018-07-17,FOOD & BEVERAGE,87.46,2018
,2018 OFFICE OF THE MAJORITY LEADER,Q3,GENERAL EXPENDITURES,SUPPLIES AND MATERIALS,DETAIL,2018-07-26,GL,FRM0080363, ,2018-07-17,2018-07-17,FRAMING (TRANSFER),34,2018
,2018 OFFICE OF THE MAJORITY LEADER,Q3,GENERAL EXPENDITURES,SUPPLIES AND MATERIALS,DETAIL,2018-07-31,GL,RMS0080260, ,2018-07-01,2018-07-31,OFFICE SUPPLY (TRANSFER),273.52,2018
,2018 OFFICE OF THE MAJORITY LEADER,Q3,GENERAL EXPENDITURES,SUPPLIES AND MATERIALS,DETAIL,2018-08-07,AP,1005924,DEER PARK,2018-06-30,2018-06-30,WATER,83.91,2018
,2018 OFFICE OF THE MAJORITY LEADER,Q3,GENERAL EXPENDITURES,SUPPLIES AND MATERIALS,DETAIL,2018-08-17,AP,1010486,CITI PCARD-AMAZON MKTPLACE PMTS,2018-06-29,2018-07-27,OFFICE SUPPLIES (OUTSIDE),44.5,2018
,2018 OFFICE OF THE MAJORITY LEADER,Q3,GENERAL EXPENDITURES,SUPPLIES AND MATERIALS,DETAIL,2018-08-17,AP,1010486,CITI PCARD-AMAZON MKTPLACE PMTS W,2018-06-29,2018-07-27,OFFICE SUPPLIES (OUTSIDE),46.33,2018
,2018 OFFICE OF THE MAJORITY LEADER,Q3,GENERAL EXPENDITURES,SUPPLIES AND MATERIALS,DETAIL,2018-08-17,AP,1010486,CITI PCARD-AMAZON.COM AMZN.COM/BI,2018-06-29,2018-07-27,WATER,63.98,2018
,2018 OFFICE OF THE MAJORITY LEADER,Q3,GENERAL EXPENDITURES,SUPPLIES AND MATERIALS,DETAIL,2018-08-17,AP,1010486,CITI PCARD-AMAZON.COM AMZN.COM/BI,2018-06-29,2018-07-27,OFFICE SUPPLIES (OUTSIDE),25.74,2018
,2018 OFFICE OF THE MAJORITY LEADER,Q3,GENERAL EXPENDITURES,SUPPLIES AND MATERIALS,DETAIL,2018-08-17,AP,1010486,CITI PCARD-CHICK-FIL-A,2018-06-29,2018-07-27,FOOD & BEVERAGE,905.59,2018
,2018 OFFICE OF THE MAJORITY LEADER,Q3,GENERAL EXPENDITURES,SUPPLIES AND MATERIALS,DETAIL,2018-08-17,AP,1010486,CITI PCARD-D J WALL-ST-JOURNAL,2018-06-29,2018-07-27,PUBLICATIONS/REFERENCE MAT'L,78.24,2018
,2018 OFFICE OF THE MAJORITY LEADER,Q3,GENERAL EXPENDITURES,SUPPLIES AND MATERIALS,DETAIL,2018-08-17,AP,1010486,CITI PCARD-FIRST CHOICE COFFEE SE,2018-06-29,2018-07-27,OFFICE SUPPLIES (OUTSIDE),572.16,2018
,2018 OFFICE OF THE MAJORITY LEADER,Q3,GENERAL EXPENDITURES,SUPPLIES AND MATERIALS,DETAIL,2018-08-17,AP,1010486,CITI PCARD-FTP FINANCIAL TIMES,2018-06-29,2018-07-27,OFFICE SUPPLIES (OUTSIDE),59.5,2018
,2018 OFFICE OF THE MAJORITY LEADER,Q3,GENERAL EXPENDITURES,SUPPLIES AND MATERIALS,DETAIL,2018-08-17,AP,1010486,CITI PCARD-LA TIMES SUBSCRIPTION,2018-06-29,2018-07-27,PUBLICATIONS/REFERENCE MAT'L,24.51,2018
,2018 OFFICE OF THE MAJORITY LEADER,Q3,GENERAL EXPENDITURES,SUPPLIES AND MATERIALS,DETAIL,2018-08-17,AP,1010486,CITI PCARD-LE PAIN QUOTIDIEN,2018-06-29,2018-07-27,FOOD & BEVERAGE,355.3,2018
,2018 OFFICE OF THE MAJORITY LEADER,Q3,GENERAL EXPENDITURES,SUPPLIES AND MATERIALS,DETAIL,2018-08-17,AP,1010486,CITI PCARD-READYREFRESH BY NESTLE,2018-06-29,2018-07-27,OFFICE SUPPLIES (OUTSIDE),448.49,2018
,2018 OFFICE OF THE MAJORITY LEADER,Q3,GENERAL EXPENDITURES,SUPPLIES AND MATERIALS,DETAIL,2018-08-17,AP,1010486,CITI PCARD-THE INFORMATION,2018-06-29,2018-07-27,PUBLICATIONS/REFERENCE MAT'L,39,2018
,2018 OFFICE OF THE MAJORITY LEADER,Q3,GENERAL EXPENDITURES,SUPPLIES AND MATERIALS,DETAIL,2018-08-22,AP,E0649767,MIN JAMES B.,2018-08-09,2018-08-09,FOOD & BEVERAGE,310.52,2018
,2018 OFFICE OF THE MAJORITY LEADER,Q3,GENERAL EXPENDITURES,SUPPLIES AND MATERIALS,DETAIL,2018-08-27,AP,1010982,DEER PARK,2018-07-31,2018-07-31,WATER,120.73,2018
,2018 OFFICE OF THE MAJORITY LEADER,Q3,GENERAL EXPENDITURES,SUPPLIES AND MATERIALS,DETAIL,2018-08-31,GL,RMS0081182, ,2018-08-01,2018-08-31,OFFICE SUPPLY (TRANSFER),169.63,2018
,2018 OFFICE OF THE MAJORITY LEADER,Q3,GENERAL EXPENDITURES,SUPPLIES AND MATERIALS,DETAIL,2018-09-25,AP,1018816,DEER PARK,2018-08-31,2018-08-31,WATER,360.3,2018
,2018 OFFICE OF THE MAJORITY LEADER,Q3,GENERAL EXPENDITURES,SUPPLIES AND MATERIALS,DETAIL,2018-09-26,AP,1019131,CITI PCARD-AMAZON MKTPLACE PMTS W,2018-07-28,2018-08-28,OFFICE SUPPLIES (OUTSIDE),26.96,2018
,2018 OFFICE OF THE MAJORITY LEADER,Q3,GENERAL EXPENDITURES,SUPPLIES AND MATERIALS,DETAIL,2018-09-26,AP,1019131,CITI PCARD-AMAZON.COM AMZN.COM/BI,2018-07-28,2018-08-28,OFFICE SUPPLIES (OUTSIDE),94.88,2018
,2018 OFFICE OF THE MAJORITY LEADER,Q3,GENERAL EXPENDITURES,SUPPLIES AND MATERIALS,DETAIL,2018-09-26,AP,1019131,CITI PCARD-AMZN MKTP US AMZN.COM/,2018-07-28,2018-08-28,OFFICE SUPPLIES (OUTSIDE),111.74,2018
,2018 OFFICE OF THE MAJORITY LEADER,Q3,GENERAL EXPENDITURES,SUPPLIES AND MATERIALS,DETAIL,2018-09-26,AP,1019131,CITI PCARD-D J WALL-ST-JOURNAL,2018-07-28,2018-08-28,PUBLICATIONS/REFERENCE MAT'L,39.12,2018
,2018 OFFICE OF THE MAJORITY LEADER,Q3,GENERAL EXPENDITURES,SUPPLIES AND MATERIALS,DETAIL,2018-09-26,AP,1019131,CITI PCARD-FIRST CHOICE COFFEE SE,2018-07-28,2018-08-28,FOOD & BEVERAGE,670.73,2018
,2018 OFFICE OF THE MAJORITY LEADER,Q3,GENERAL EXPENDITURES,SUPPLIES AND MATERIALS,DETAIL,2018-09-26,AP,1019131,CITI PCARD-FIRST CHOICE COFFEE SE,2018-07-28,2018-08-28,OFFICE SUPPLIES (OUTSIDE),114.87,2018
,2018 OFFICE OF THE MAJORITY LEADER,Q3,GENERAL EXPENDITURES,SUPPLIES AND MATERIALS,DETAIL,2018-09-26,AP,1019131,CITI PCARD-FTP FINANCIAL TIMES,2018-07-28,2018-08-28,PUBLICATIONS/REFERENCE MAT'L,59.5,2018
,2018 OFFICE OF THE MAJORITY LEADER,Q3,GENERAL EXPENDITURES,SUPPLIES AND MATERIALS,DETAIL,2018-09-26,AP,1019131,CITI PCARD-LA TIMES SUBSCRIPTION,2018-07-28,2018-08-28,PUBLICATIONS/REFERENCE MAT'L,15.96,2018
,2018 OFFICE OF THE MAJORITY LEADER,Q3,GENERAL EXPENDITURES,SUPPLIES AND MATERIALS,DETAIL,2018-09-26,AP,1019131,CITI PCARD-NEW YORK TIMES DIGITAL,2018-07-28,2018-08-28,PUBLICATIONS/REFERENCE MAT'L,4.23,2018
,2018 OFFICE OF THE MAJORITY LEADER,Q3,GENERAL EXPENDITURES,SUPPLIES AND MATERIALS,DETAIL,2018-09-26,AP,1019131,CITI PCARD-READYREFRESH BY NESTLE,2018-07-28,2018-08-28,WATER,408.88,2018
,2018 OFFICE OF THE MAJORITY LEADER,Q3,GENERAL EXPENDITURES,SUPPLIES AND MATERIALS,DETAIL,2018-09-26,AP,1019131,CITI PCARD-THE INFORMATION,2018-07-28,2018-08-28,PUBLICATIONS/REFERENCE MAT'L,39,2018
,2018 OFFICE OF THE MAJORITY LEADER,Q3,GENERAL EXPENDITURES,SUPPLIES AND MATERIALS,DETAIL,2018-09-28,GL,RMS0082045, ,2018-09-01,2018-09-30,OFFICE SUPPLY (TRANSFER),431.71,2018
,2018 OFFICE OF THE MAJORITY LEADER,Q3,GENERAL EXPENDITURES,SUPPLIES AND MATERIALS,DETAIL,2018-09-29,AP,E0657723,MIN JAMES B.,2018-09-21,2018-09-21,HABITATION EXPENSE,359.52,2018
,2018 OFFICE OF THE MAJORITY LEADER,Q3,GENERAL EXPENDITURES,SUPPLIES AND MATERIALS,SUBTOTAL,   ,   ,   ,   ,   ,   ,SUPPLIES AND MATERIALS TOTALS:,11888.44,2018
,2018 OFFICE OF THE MAJORITY LEADER,Q3,GENERAL EXPENDITURES,EQUIPMENT,DETAIL,2018-07-11,AP,E0639670,GULF PARTYLINE CORPORATION,2018-06-01,2018-06-30,COMPUTER SOFTW PURCH  LESS THAN $10 000,4000,2018
,2018 OFFICE OF THE MAJORITY LEADER,Q3,GENERAL EXPENDITURES,EQUIPMENT,DETAIL,2018-07-31,GL,MNT0080188, ,2018-07-01,2018-07-31,MAINTENANCE / REPAIRS,276.4,2018
,2018 OFFICE OF THE MAJORITY LEADER,Q3,GENERAL EXPENDITURES,EQUIPMENT,DETAIL,2018-08-22,AP,E0649768,GULF PARTYLINE CORPORATION,2018-07-01,2018-07-31,COMPUTER SOFTW PURCH  LESS THAN $10 000,4000,2018
,2018 OFFICE OF THE MAJORITY LEADER,Q3,GENERAL EXPENDITURES,EQUIPMENT,DETAIL,2018-08-31,GL,MNT0081088, ,2018-08-01,2018-08-31,MAINTENANCE / REPAIRS,276.4,2018
,2018 OFFICE OF THE MAJORITY LEADER,Q3,GENERAL EXPENDITURES,EQUIPMENT,DETAIL,2018-09-28,GL,MNT0081912, ,2018-09-01,2018-09-30,MAINTENANCE / REPAIRS,276.4,2018
,2018 OFFICE OF THE MAJORITY LEADER,Q3,GENERAL EXPENDITURES,EQUIPMENT,SUBTOTAL,   ,   ,   ,   ,   ,   ,EQUIPMENT TOTALS:,8829.2,2018
,2018 OFFICE OF THE MAJORITY LEADER,Q3,GENERAL EXPENDITURES,EQUIPMENT,SUBTOTAL,   ,   ,   ,   ,   ,   ,GENERAL EXPENDITURES TOTALS:,593877.89,2018
,2018 OFFICE OF THE MAJORITY LEADER,Q3,GENERAL EXPENDITURES,EQUIPMENT,GRAND TOTAL FOR ORGANIZATION,   ,   ,   ,   ,   ,   ,OFFICE TOTALS: ,593877.89,2018
,2018 OFFICE OF THE MINORITY LEADER,Q3,GENERAL EXPENDITURES,FRANKED MAIL,DETAIL,2018-07-30,AP,1004914,UNITED STATES POSTAL SERVICE,2018-06-01,2018-06-30,FRANKED MAIL,1.63,2018
,2018 OFFICE OF THE MINORITY LEADER,Q3,GENERAL EXPENDITURES,FRANKED MAIL,SUBTOTAL,   ,   ,   ,   ,   ,   ,FRANKED MAIL TOTALS:,1.63,2018
,2018 OFFICE OF THE MINORITY LEADER,Q3,GENERAL EXPENDITURES,PERSONNEL COMPENSATION,DETAIL,   ,   ,   ,AMADOR ADELA,2018-07-01,2018-09-30,SENIOR POLICY ADVISOR/MEMBER S,20000.01,2018
,2018 OFFICE OF THE MINORITY LEADER,Q3,GENERAL EXPENDITURES,PERSONNEL COMPENSATION,DETAIL,   ,   ,   ,ANDROFF BLAKE J,2018-07-01,2018-09-30,EXC DIR DEM POL & COMM CMTE,41250,2018
,2018 OFFICE OF THE MINORITY LEADER,Q3,GENERAL EXPENDITURES,PERSONNEL COMPENSATION,DETAIL,   ,   ,   ,BERRET EMILY C,2018-07-01,2018-09-30,DIR OF OPERATIONS & ADVISOR,24999.99,2018
,2018 OFFICE OF THE MINORITY LEADER,Q3,GENERAL EXPENDITURES,PERSONNEL COMPENSATION,DETAIL,   ,   ,   ,BROWN GABRIELLE I,2018-07-01,2018-08-17,PRESS SECRETARY,9138.89,2018
,2018 OFFICE OF THE MINORITY LEADER,Q3,GENERAL EXPENDITURES,PERSONNEL COMPENSATION,DETAIL,   ,   ,   ,BROWN GABRIELLE I,2018-08-01,2018-08-17,PRESS SECRETARY (OTHER COMPENSATION),5833.33,2018
,2018 OFFICE OF THE MINORITY LEADER,Q3,GENERAL EXPENDITURES,PERSONNEL COMPENSATION,DETAIL,   ,   ,   ,CAPRON MARGARET W.,2018-07-01,2018-09-30,SENIOR ADV POLICY & COMM,34424.25,2018
,2018 OFFICE OF THE MINORITY LEADER,Q3,GENERAL EXPENDITURES,PERSONNEL COMPENSATION,DETAIL,   ,   ,   ,CHERRY STEPHANIE,2018-07-01,2018-09-30,DIRECTOR OF MEDIA AFFAIRS,20000.01,2018
,2018 OFFICE OF THE MINORITY LEADER,Q3,GENERAL EXPENDITURES,PERSONNEL COMPENSATION,DETAIL,   ,   ,   ,CONNELLY HENRY V,2018-07-01,2018-09-30,DEPUTY COMMUNICATIONS DIRECTOR,32499.99,2018
,2018 OFFICE OF THE MINORITY LEADER,Q3,GENERAL EXPENDITURES,PERSONNEL COMPENSATION,DETAIL,   ,   ,   ,DEGRAFF KENNETH B.,2018-07-01,2018-09-30,SENIOR POLICY ADVISOR,31250.01,2018
,2018 OFFICE OF THE MINORITY LEADER,Q3,GENERAL EXPENDITURES,PERSONNEL COMPENSATION,DETAIL,   ,   ,   ,DEVLIN PATRICK J.,2018-07-01,2018-09-30,COMMUNICATIONS DIRECTOR,32499.99,2018
,2018 OFFICE OF THE MINORITY LEADER,Q3,GENERAL EXPENDITURES,PERSONNEL COMPENSATION,DETAIL,   ,   ,   ,DEWHIRST DIANE,2018-07-01,2018-09-30,DEPUTY CHIEF OF STAFF,43125,2018
,2018 OFFICE OF THE MINORITY LEADER,Q3,GENERAL EXPENDITURES,PERSONNEL COMPENSATION,DETAIL,   ,   ,   ,EDMONSON ROBERT D,2018-07-01,2018-09-30,CHIEF OF STAFF,17499.99,2018
,2018 OFFICE OF THE MINORITY LEADER,Q3,GENERAL EXPENDITURES,PERSONNEL COMPENSATION,DETAIL,   ,   ,   ,ETIENNE ASHLEY D,2018-07-01,2018-09-30,COMM DIR/SENIOR ADVISOR,41250,2018
,2018 OFFICE OF THE MINORITY LEADER,Q3,GENERAL EXPENDITURES,PERSONNEL COMPENSATION,DETAIL,   ,   ,   ,FISCHER JR ROBERT V.,2018-07-01,2018-09-30,ASST FLOOR CHIEF,43125,2018
,2018 OFFICE OF THE MINORITY LEADER,Q3,GENERAL EXPENDITURES,PERSONNEL COMPENSATION,DETAIL,   ,   ,   ,GARRETT EMERALD P,2018-07-01,2018-09-30,STAFF ASSISTANT,8000.01,2018
,2018 OFFICE OF THE MINORITY LEADER,Q3,GENERAL EXPENDITURES,PERSONNEL COMPENSATION,DETAIL,   ,   ,   ,GIBSON DYLAN B,2018-07-01,2018-09-30,DIGITAL DIRECTOR,16250.01,2018
,2018 OFFICE OF THE MINORITY LEADER,Q3,GENERAL EXPENDITURES,PERSONNEL COMPENSATION,DETAIL,   ,   ,   ,GREENER APRIL L.,2018-07-01,2018-09-30,RESEARCH DIRECTOR,26250,2018
,2018 OFFICE OF THE MINORITY LEADER,Q3,GENERAL EXPENDITURES,PERSONNEL COMPENSATION,DETAIL,   ,   ,   ,GRIFFIN TAYLOR T,2018-07-01,2018-09-30,PRESS SECRETARY,18750,2018
,2018 OFFICE OF THE MINORITY LEADER,Q3,GENERAL EXPENDITURES,PERSONNEL COMPENSATION,DETAIL,   ,   ,   ,HAMMILL ANDREW T.,2018-07-01,2018-09-30,DEPUTY CHIEF OF STAFF,43125,2018
,2018 OFFICE OF THE MINORITY LEADER,Q3,GENERAL EXPENDITURES,PERSONNEL COMPENSATION,DETAIL,   ,   ,   ,HAYNES JR WILFRED J.,2018-07-01,2018-09-30,IT DIRECTOR,27030.51,2018
,2018 OFFICE OF THE MINORITY LEADER,Q3,GENERAL EXPENDITURES,PERSONNEL COMPENSATION,DETAIL,   ,   ,   ,HIDALGO ADRIANA N,2018-07-01,2018-09-30,SHARED EMPLOYEE,5000.01,2018
,2018 OFFICE OF THE MINORITY LEADER,Q3,GENERAL EXPENDITURES,PERSONNEL COMPENSATION,DETAIL,   ,   ,   ,HOLMES NATHANIEL J,2018-07-01,2018-09-30,DEP DIR SCHED/ADVANCE ASSOC,15750,2018
,2018 OFFICE OF THE MINORITY LEADER,Q3,GENERAL EXPENDITURES,PERSONNEL COMPENSATION,DETAIL,   ,   ,   ,HURWITZ ROSS B,2018-07-01,2018-09-30,DEPUTY DIR. OF SPEECHWRITING,16250.01,2018
,2018 OFFICE OF THE MINORITY LEADER,Q3,GENERAL EXPENDITURES,PERSONNEL COMPENSATION,DETAIL,   ,   ,   ,KEATING ROSE M,2018-07-01,2018-09-30,ASST FLOOR MANAGER,32499.99,2018
,2018 OFFICE OF THE MINORITY LEADER,Q3,GENERAL EXPENDITURES,PERSONNEL COMPENSATION,DETAIL,   ,   ,   ,KEITA KAMILAH Z,2018-07-01,2018-09-30,DEPUTY INFOMATION TECH. DIRECT,24783,2018
,2018 OFFICE OF THE MINORITY LEADER,Q3,GENERAL EXPENDITURES,PERSONNEL COMPENSATION,DETAIL,   ,   ,   ,KUHN ELENA M,2018-07-01,2018-09-30,PRESS ADVISOR,9249.99,2018
,2018 OFFICE OF THE MINORITY LEADER,Q3,GENERAL EXPENDITURES,PERSONNEL COMPENSATION,DETAIL,   ,   ,   ,KUHN ELENA M,2018-06-01,2018-08-31,PRESS ADVISOR (OVERTIME),4289.2,2018
,2018 OFFICE OF THE MINORITY LEADER,Q3,GENERAL EXPENDITURES,PERSONNEL COMPENSATION,DETAIL,   ,   ,   ,KUNDANIS GEORGE,2018-07-01,2018-09-30,DEPUTY CHIEF OF STAFF,43125,2018
,2018 OFFICE OF THE MINORITY LEADER,Q3,GENERAL EXPENDITURES,PERSONNEL COMPENSATION,DETAIL,   ,   ,   ,LA ALISA M,2018-07-01,2018-09-30,SPECIAL ASST TO THE LEADER,17000.01,2018
,2018 OFFICE OF THE MINORITY LEADER,Q3,GENERAL EXPENDITURES,PERSONNEL COMPENSATION,DETAIL,   ,   ,   ,LEE SERYEUNG,2018-07-01,2018-09-30,DEPUTY PRESS SECRETARY,12624.99,2018
,2018 OFFICE OF THE MINORITY LEADER,Q3,GENERAL EXPENDITURES,PERSONNEL COMPENSATION,DETAIL,   ,   ,   ,LINK CRAIG C,2018-07-01,2018-09-30,LEGISLATIVE COUNSEL,20000.01,2018
,2018 OFFICE OF THE MINORITY LEADER,Q3,GENERAL EXPENDITURES,PERSONNEL COMPENSATION,DETAIL,   ,   ,   ,LIZARRAGA JAIME E.,2018-07-01,2018-09-30,SR ADV & DIR OF MEMBER SVC,41155.5,2018
,2018 OFFICE OF THE MINORITY LEADER,Q3,GENERAL EXPENDITURES,PERSONNEL COMPENSATION,DETAIL,   ,   ,   ,LONG MICHAEL G,2018-07-01,2018-09-30,SENIOR ADVISOR,28749.99,2018
,2018 OFFICE OF THE MINORITY LEADER,Q3,GENERAL EXPENDITURES,PERSONNEL COMPENSATION,DETAIL,   ,   ,   ,MANGRUM PEARL J.,2018-07-01,2018-09-30,FINANCIAL ADMINISTRATOR,23000.01,2018
,2018 OFFICE OF THE MINORITY LEADER,Q3,GENERAL EXPENDITURES,PERSONNEL COMPENSATION,DETAIL,   ,   ,   ,MANSBACH SHANA G,2018-07-01,2018-09-30,DIRECTOR OF SPEECHWRITING,18750,2018
,2018 OFFICE OF THE MINORITY LEADER,Q3,GENERAL EXPENDITURES,PERSONNEL COMPENSATION,DETAIL,   ,   ,   ,MASON TAMIKA K,2018-07-01,2018-09-30,SPECIAL ASST TO THE ASST LDR,16250.01,2018
,2018 OFFICE OF THE MINORITY LEADER,Q3,GENERAL EXPENDITURES,PERSONNEL COMPENSATION,DETAIL,   ,   ,   ,MELTZER RICHARD,2018-07-01,2018-09-30,POLICY DIRECTOR,43125,2018
,2018 OFFICE OF THE MINORITY LEADER,Q3,GENERAL EXPENDITURES,PERSONNEL COMPENSATION,DETAIL,   ,   ,   ,MONGE KATHERINE S,2018-07-01,2018-09-30,SENIOR COUNSEL,41750.01,2018
,2018 OFFICE OF THE MINORITY LEADER,Q3,GENERAL EXPENDITURES,PERSONNEL COMPENSATION,DETAIL,   ,   ,   ,OBSCURA JULIO C,2018-07-01,2018-09-30,CREATIVE DIR/DPTY PRESS SEC,12624.99,2018
,2018 OFFICE OF THE MINORITY LEADER,Q3,GENERAL EXPENDITURES,PERSONNEL COMPENSATION,DETAIL,   ,   ,   ,PARKER WYNDEE R.,2018-07-01,2018-09-30,SENIOR POLICY ADVISOR,43125,2018
,2018 OFFICE OF THE MINORITY LEADER,Q3,GENERAL EXPENDITURES,PERSONNEL COMPENSATION,DETAIL,   ,   ,   ,PFEIFFER AMY M,2018-07-01,2018-09-30,POLICY DIRECTOR,30750,2018
,2018 OFFICE OF THE MINORITY LEADER,Q3,GENERAL EXPENDITURES,PERSONNEL COMPENSATION,DETAIL,   ,   ,   ,POLZIN SAVANNAH J,2018-07-01,2018-09-30,DEPUTY DIR OF SCHEDULING,15000,2018
,2018 OFFICE OF THE MINORITY LEADER,Q3,GENERAL EXPENDITURES,PERSONNEL COMPENSATION,DETAIL,   ,   ,   ,POWELL LATRICE S,2018-07-01,2018-09-30,ASSISTANT CLOAKROOM MANAGER,28749.99,2018
,2018 OFFICE OF THE MINORITY LEADER,Q3,GENERAL EXPENDITURES,PERSONNEL COMPENSATION,DETAIL,   ,   ,   ,PRICE REVA B.,2018-07-01,2018-09-30,OUTREACH DIRECTOR & ADVISOR,34924.26,2018
,2018 OFFICE OF THE MINORITY LEADER,Q3,GENERAL EXPENDITURES,PERSONNEL COMPENSATION,DETAIL,   ,   ,   ,PRIMUS WENDELL E.,2018-07-01,2018-09-30,SENIOR POLICY ADVISOR,43125,2018
,2018 OFFICE OF THE MINORITY LEADER,Q3,GENERAL EXPENDITURES,PERSONNEL COMPENSATION,DETAIL,   ,   ,   ,ROSS PATRICIA L,2018-07-01,2018-09-30,SENIOR POLICY ADVISOR,8750.01,2018
,2018 OFFICE OF THE MINORITY LEADER,Q3,GENERAL EXPENDITURES,PERSONNEL COMPENSATION,DETAIL,   ,   ,   ,SMITH KELSEY L,2018-07-01,2018-09-30,DIR. OF SCHEDULING & ADVANCE,24999.99,2018
,2018 OFFICE OF THE MINORITY LEADER,Q3,GENERAL EXPENDITURES,PERSONNEL COMPENSATION,DETAIL,   ,   ,   ,STERN KEITH L.,2018-07-01,2018-09-30,DIRECTOR OF FLOOR OPERATIONS,39999.99,2018
,2018 OFFICE OF THE MINORITY LEADER,Q3,GENERAL EXPENDITURES,PERSONNEL COMPENSATION,DETAIL,   ,   ,   ,TECKLENBURG MICHAEL H.,2018-07-01,2018-09-30,COUNSEL,35499.99,2018
,2018 OFFICE OF THE MINORITY LEADER,Q3,GENERAL EXPENDITURES,PERSONNEL COMPENSATION,DETAIL,   ,   ,   ,WATKINS YELBERTON R.,2018-07-01,2018-09-30,CHIEF OF STAFF,42500.01,2018
,2018 OFFICE OF THE MINORITY LEADER,Q3,GENERAL EXPENDITURES,PERSONNEL COMPENSATION,DETAIL,   ,   ,   ,WEISS DANIEL,2018-07-01,2018-09-30,CHIEF OF STAFF,43125,2018
,2018 OFFICE OF THE MINORITY LEADER,Q3,GENERAL EXPENDITURES,PERSONNEL COMPENSATION,DETAIL,   ,   ,   ,WEST JULIUS L,2018-07-01,2018-09-30,SENIOR ADVISOR,21125.01,2018
,2018 OFFICE OF THE MINORITY LEADER,Q3,GENERAL EXPENDITURES,PERSONNEL COMPENSATION,DETAIL,   ,   ,   ,WILKES CHRISTINA E,2018-07-01,2018-09-30,PRESS ASSISTANT,8000.01,2018
,2018 OFFICE OF THE MINORITY LEADER,Q3,GENERAL EXPENDITURES,PERSONNEL COMPENSATION,DETAIL,   ,   ,   ,WILKES CHRISTINA E,2018-06-01,2018-08-31,PRESS ASSISTANT (OVERTIME),2284.59,2018
,2018 OFFICE OF THE MINORITY LEADER,Q3,GENERAL EXPENDITURES,PERSONNEL COMPENSATION,DETAIL,   ,   ,   ,WOLTERS KATE,2018-07-01,2018-09-30,DIRECTOR OF PROTOCOL,35896.5,2018
,2018 OFFICE OF THE MINORITY LEADER,Q3,GENERAL EXPENDITURES,PERSONNEL COMPENSATION,DETAIL,   ,   ,   ,WONG STEPHANIE P,2018-07-01,2018-09-30,ASST TO THE EXECUTIVE OFFICE,9500.01,2018
,2018 OFFICE OF THE MINORITY LEADER,Q3,GENERAL EXPENDITURES,PERSONNEL COMPENSATION,DETAIL,   ,   ,   ,WONG STEPHANIE P,2018-06-01,2018-08-31,ASST TO THE EXECUTIVE OFFICE (OVERTIME),2534.82,2018
,2018 OFFICE OF THE MINORITY LEADER,Q3,GENERAL EXPENDITURES,PERSONNEL COMPENSATION,DETAIL,   ,   ,   ,YORK JEMMA D,2018-07-01,2018-08-31,PRESS ADVISOR/SENIOR WRITER,10000,2018
,2018 OFFICE OF THE MINORITY LEADER,Q3,GENERAL EXPENDITURES,PERSONNEL COMPENSATION,DETAIL,   ,   ,   ,YORK JEMMA D,2018-09-01,2018-09-30,DEPUTY DIRECTOR,6250,2018
,2018 OFFICE OF THE MINORITY LEADER,Q3,GENERAL EXPENDITURES,PERSONNEL COMPENSATION,SUBTOTAL,   ,   ,   ,   ,   ,   ,PERSONNEL COMPENSATION TOTALS:,1448419.89,2018
,2018 OFFICE OF THE MINORITY LEADER,Q3,GENERAL EXPENDITURES,TRAVEL,DETAIL,2018-07-18,AP,E0640825,POLZIN SAVANNAH J.,2018-06-07,2018-06-14,TAXI/PARKING/TOLLS,36.5,2018
,2018 OFFICE OF THE MINORITY LEADER,Q3,GENERAL EXPENDITURES,TRAVEL,DETAIL,2018-07-18,AP,E0640826,LIZARRAGA JAIME E.,2018-06-15,2018-06-19,MEALS,87.7,2018
,2018 OFFICE OF THE MINORITY LEADER,Q3,GENERAL EXPENDITURES,TRAVEL,DETAIL,2018-07-18,AP,E0640826,LIZARRAGA JAIME E.,2018-06-15,2018-06-19,TAXI/PARKING/TOLLS,50,2018
,2018 OFFICE OF THE MINORITY LEADER,Q3,GENERAL EXPENDITURES,TRAVEL,DETAIL,2018-07-21,AP,E0642479,SMITH KELSEY L.,2018-06-28,2018-06-28,TAXI/PARKING/TOLLS,10.28,2018
,2018 OFFICE OF THE MINORITY LEADER,Q3,GENERAL EXPENDITURES,TRAVEL,DETAIL,2018-07-23,AP,E0642478,CITIBANK GOV CARD SERVICE,2018-06-14,2018-06-19,COMMERCIAL TRANSPORTATION,1185.8,2018
,2018 OFFICE OF THE MINORITY LEADER,Q3,GENERAL EXPENDITURES,TRAVEL,DETAIL,2018-07-23,AP,E0642478,CITIBANK GOV CARD SERVICE,2018-06-15,2018-06-19,LODGING,2261.76,2018
,2018 OFFICE OF THE MINORITY LEADER,Q3,GENERAL EXPENDITURES,TRAVEL,DETAIL,2018-07-23,AP,E0642478,CITIBANK GOV CARD SERVICE,2018-06-15,2018-06-18,MEALS,729.45,2018
,2018 OFFICE OF THE MINORITY LEADER,Q3,GENERAL EXPENDITURES,TRAVEL,DETAIL,2018-07-23,AP,E0642478,CITIBANK GOV CARD SERVICE,2018-06-15,2018-06-19,TAXI/PARKING/TOLLS,295.44,2018
,2018 OFFICE OF THE MINORITY LEADER,Q3,GENERAL EXPENDITURES,TRAVEL,DETAIL,2018-07-23,AP,E0642481,CITIBANK GOV CARD SERVICE,2018-06-01,2018-06-01,MEALS,9.59,2018
,2018 OFFICE OF THE MINORITY LEADER,Q3,GENERAL EXPENDITURES,TRAVEL,DETAIL,2018-07-23,AP,E0642482,CITIBANK GOV CARD SERVICE,2018-06-03,2018-06-19,COMMERCIAL TRANSPORTATION,1547.2,2018
,2018 OFFICE OF THE MINORITY LEADER,Q3,GENERAL EXPENDITURES,TRAVEL,DETAIL,2018-07-23,AP,E0642482,CITIBANK GOV CARD SERVICE,2018-05-29,2018-06-19,MEALS,129.45,2018
,2018 OFFICE OF THE MINORITY LEADER,Q3,GENERAL EXPENDITURES,TRAVEL,DETAIL,2018-07-23,AP,E0642482,CITIBANK GOV CARD SERVICE,2018-05-28,2018-06-23,TAXI/PARKING/TOLLS,207.58,2018
,2018 OFFICE OF THE MINORITY LEADER,Q3,GENERAL EXPENDITURES,TRAVEL,DETAIL,2018-07-25,AP,E0642379,CITIBANK GOV CARD SERVICE,2018-06-03,2018-06-03,COMMERCIAL TRANSPORTATION,185,2018
,2018 OFFICE OF THE MINORITY LEADER,Q3,GENERAL EXPENDITURES,TRAVEL,DETAIL,2018-07-25,AP,E0642379,CITIBANK GOV CARD SERVICE,2018-06-05,2018-06-05,COMMERCIAL TRANSPORTATION,62.2,2018
,2018 OFFICE OF THE MINORITY LEADER,Q3,GENERAL EXPENDITURES,TRAVEL,DETAIL,2018-07-25,AP,E0642379,CITIBANK GOV CARD SERVICE,2018-07-13,2018-07-13,COMMERCIAL TRANSPORTATION,153.2,2018
,2018 OFFICE OF THE MINORITY LEADER,Q3,GENERAL EXPENDITURES,TRAVEL,DETAIL,2018-07-25,AP,E0642379,CITIBANK GOV CARD SERVICE,2018-07-14,2018-07-14,COMMERCIAL TRANSPORTATION,133.2,2018
,2018 OFFICE OF THE MINORITY LEADER,Q3,GENERAL EXPENDITURES,TRAVEL,DETAIL,2018-07-25,AP,E0642379,CITIBANK GOV CARD SERVICE,2018-07-15,2018-07-15,COMMERCIAL TRANSPORTATION,184.2,2018
,2018 OFFICE OF THE MINORITY LEADER,Q3,GENERAL EXPENDITURES,TRAVEL,DETAIL,2018-07-25,AP,E0642379,CITIBANK GOV CARD SERVICE,2018-07-19,2018-07-19,COMMERCIAL TRANSPORTATION,314.2,2018
,2018 OFFICE OF THE MINORITY LEADER,Q3,GENERAL EXPENDITURES,TRAVEL,DETAIL,2018-07-25,AP,E0642379,CITIBANK GOV CARD SERVICE,2018-07-20,2018-07-20,COMMERCIAL TRANSPORTATION,315.2,2018
,2018 OFFICE OF THE MINORITY LEADER,Q3,GENERAL EXPENDITURES,TRAVEL,DETAIL,2018-07-25,AP,E0642379,CITIBANK GOV CARD SERVICE,2018-06-03,2018-06-05,LODGING,1293.9,2018
,2018 OFFICE OF THE MINORITY LEADER,Q3,GENERAL EXPENDITURES,TRAVEL,DETAIL,2018-07-25,AP,E0642379,CITIBANK GOV CARD SERVICE,2018-06-03,2018-06-04,MEALS,178.23,2018
,2018 OFFICE OF THE MINORITY LEADER,Q3,GENERAL EXPENDITURES,TRAVEL,DETAIL,2018-07-31,AP,E0644556,EDMONSON ROBERT D,2018-07-19,2018-07-20,LODGING,376.05,2018
,2018 OFFICE OF THE MINORITY LEADER,Q3,GENERAL EXPENDITURES,TRAVEL,DETAIL,2018-07-31,AP,E0644556,EDMONSON ROBERT D,2018-07-19,2018-07-20,MEALS,41.78,2018
,2018 OFFICE OF THE MINORITY LEADER,Q3,GENERAL EXPENDITURES,TRAVEL,DETAIL,2018-07-31,AP,E0644556,EDMONSON ROBERT D,2018-07-19,2018-07-20,TAXI/PARKING/TOLLS,74.25,2018
,2018 OFFICE OF THE MINORITY LEADER,Q3,GENERAL EXPENDITURES,TRAVEL,DETAIL,2018-07-31,AP,E0645124,WEISS DANIEL,2018-07-26,2018-07-26,TAXI/PARKING/TOLLS,22.38,2018
,2018 OFFICE OF THE MINORITY LEADER,Q3,GENERAL EXPENDITURES,TRAVEL,DETAIL,2018-08-15,AP,E0648200,CITIBANK GOV CARD SERVICE,2018-07-09,2018-07-09,COMMERCIAL TRANSPORTATION,168,2018
,2018 OFFICE OF THE MINORITY LEADER,Q3,GENERAL EXPENDITURES,TRAVEL,DETAIL,2018-08-15,AP,E0648200,CITIBANK GOV CARD SERVICE,2018-07-09,2018-07-10,LODGING,449.87,2018
,2018 OFFICE OF THE MINORITY LEADER,Q3,GENERAL EXPENDITURES,TRAVEL,DETAIL,2018-08-15,AP,E0648200,CITIBANK GOV CARD SERVICE,2018-07-09,2018-07-09,MEALS,28.06,2018
,2018 OFFICE OF THE MINORITY LEADER,Q3,GENERAL EXPENDITURES,TRAVEL,DETAIL,2018-08-15,AP,E0648200,CITIBANK GOV CARD SERVICE,2018-07-10,2018-07-10,MEALS,10.23,2018
,2018 OFFICE OF THE MINORITY LEADER,Q3,GENERAL EXPENDITURES,TRAVEL,DETAIL,2018-08-15,AP,E0648200,CITIBANK GOV CARD SERVICE,2018-07-09,2018-07-09,TAXI/PARKING/TOLLS,29.66,2018
,2018 OFFICE OF THE MINORITY LEADER,Q3,GENERAL EXPENDITURES,TRAVEL,DETAIL,2018-08-15,AP,E0648202,CITIBANK GOV CARD SERVICE,2018-07-13,2018-07-13,COMMERCIAL TRANSPORTATION,-153.2,2018
,2018 OFFICE OF THE MINORITY LEADER,Q3,GENERAL EXPENDITURES,TRAVEL,DETAIL,2018-08-15,AP,E0648202,CITIBANK GOV CARD SERVICE,2018-07-14,2018-07-14,COMMERCIAL TRANSPORTATION,-133.2,2018
,2018 OFFICE OF THE MINORITY LEADER,Q3,GENERAL EXPENDITURES,TRAVEL,DETAIL,2018-08-15,AP,E0648202,CITIBANK GOV CARD SERVICE,2018-07-15,2018-07-15,COMMERCIAL TRANSPORTATION,-184.2,2018
,2018 OFFICE OF THE MINORITY LEADER,Q3,GENERAL EXPENDITURES,TRAVEL,DETAIL,2018-08-15,AP,E0648202,CITIBANK GOV CARD SERVICE,2018-07-21,2018-07-21,COMMERCIAL TRANSPORTATION,155.2,2018
,2018 OFFICE OF THE MINORITY LEADER,Q3,GENERAL EXPENDITURES,TRAVEL,DETAIL,2018-08-15,AP,E0648202,CITIBANK GOV CARD SERVICE,2018-07-20,2018-07-21,LODGING,359.91,2018
,2018 OFFICE OF THE MINORITY LEADER,Q3,GENERAL EXPENDITURES,TRAVEL,DETAIL,2018-08-15,AP,E0648203,CITIBANK GOV CARD SERVICE,2018-07-19,2018-07-21,COMMERCIAL TRANSPORTATION,708.6,2018
,2018 OFFICE OF THE MINORITY LEADER,Q3,GENERAL EXPENDITURES,TRAVEL,DETAIL,2018-08-15,AP,E0648203,CITIBANK GOV CARD SERVICE,2018-07-19,2018-07-21,LODGING,735.96,2018
,2018 OFFICE OF THE MINORITY LEADER,Q3,GENERAL EXPENDITURES,TRAVEL,DETAIL,2018-08-15,AP,E0648203,CITIBANK GOV CARD SERVICE,2018-07-19,2018-07-21,MEALS,206.69,2018
,2018 OFFICE OF THE MINORITY LEADER,Q3,GENERAL EXPENDITURES,TRAVEL,DETAIL,2018-08-15,AP,E0648203,CITIBANK GOV CARD SERVICE,2018-07-19,2018-07-20,TAXI/PARKING/TOLLS,174.79,2018
,2018 OFFICE OF THE MINORITY LEADER,Q3,GENERAL EXPENDITURES,TRAVEL,DETAIL,2018-08-15,AP,E0648204,CITIBANK GOV CARD SERVICE,2018-07-18,2018-07-18,COMMERCIAL TRANSPORTATION,314.2,2018
,2018 OFFICE OF THE MINORITY LEADER,Q3,GENERAL EXPENDITURES,TRAVEL,DETAIL,2018-08-15,AP,E0648204,CITIBANK GOV CARD SERVICE,2018-07-19,2018-07-20,COMMERCIAL TRANSPORTATION,364.4,2018
,2018 OFFICE OF THE MINORITY LEADER,Q3,GENERAL EXPENDITURES,TRAVEL,DETAIL,2018-08-15,AP,E0648204,CITIBANK GOV CARD SERVICE,2018-07-22,2018-07-22,COMMERCIAL TRANSPORTATION,314.2,2018
,2018 OFFICE OF THE MINORITY LEADER,Q3,GENERAL EXPENDITURES,TRAVEL,DETAIL,2018-08-15,AP,E0648204,CITIBANK GOV CARD SERVICE,2018-07-19,2018-07-20,LODGING,376.05,2018
,2018 OFFICE OF THE MINORITY LEADER,Q3,GENERAL EXPENDITURES,TRAVEL,DETAIL,2018-08-15,AP,E0648204,CITIBANK GOV CARD SERVICE,2018-07-20,2018-07-20,MEALS,4.17,2018
,2018 OFFICE OF THE MINORITY LEADER,Q3,GENERAL EXPENDITURES,TRAVEL,DETAIL,2018-08-15,AP,E0648204,CITIBANK GOV CARD SERVICE,2018-07-19,2018-07-20,CAR RENTAL,47.31,2018
,2018 OFFICE OF THE MINORITY LEADER,Q3,GENERAL EXPENDITURES,TRAVEL,DETAIL,2018-08-15,AP,E0648204,CITIBANK GOV CARD SERVICE,2018-07-20,2018-07-20,GASOLINE,13.97,2018
,2018 OFFICE OF THE MINORITY LEADER,Q3,GENERAL EXPENDITURES,TRAVEL,DETAIL,2018-08-15,AP,E0648204,CITIBANK GOV CARD SERVICE,2018-07-19,2018-07-19,TAXI/PARKING/TOLLS,35,2018
,2018 OFFICE OF THE MINORITY LEADER,Q3,GENERAL EXPENDITURES,TRAVEL,DETAIL,2018-08-15,AP,E0648206,CITIBANK GOV CARD SERVICE,2018-06-03,2018-06-03,COMMERCIAL TRANSPORTATION,62.2,2018
,2018 OFFICE OF THE MINORITY LEADER,Q3,GENERAL EXPENDITURES,TRAVEL,DETAIL,2018-08-15,AP,E0648206,CITIBANK GOV CARD SERVICE,2018-06-04,2018-06-04,COMMERCIAL TRANSPORTATION,98.2,2018
,2018 OFFICE OF THE MINORITY LEADER,Q3,GENERAL EXPENDITURES,TRAVEL,DETAIL,2018-08-15,AP,E0648206,CITIBANK GOV CARD SERVICE,2018-06-03,2018-06-04,LODGING,644.95,2018
,2018 OFFICE OF THE MINORITY LEADER,Q3,GENERAL EXPENDITURES,TRAVEL,DETAIL,2018-08-15,AP,E0648206,CITIBANK GOV CARD SERVICE,2018-06-03,2018-06-03,MEALS,38.87,2018
,2018 OFFICE OF THE MINORITY LEADER,Q3,GENERAL EXPENDITURES,TRAVEL,DETAIL,2018-08-15,AP,E0648206,CITIBANK GOV CARD SERVICE,2018-06-04,2018-06-04,MEALS,24.58,2018
,2018 OFFICE OF THE MINORITY LEADER,Q3,GENERAL EXPENDITURES,TRAVEL,DETAIL,2018-08-15,AP,E0648206,CITIBANK GOV CARD SERVICE,2018-06-03,2018-06-03,TAXI/PARKING/TOLLS,106.28,2018
,2018 OFFICE OF THE MINORITY LEADER,Q3,GENERAL EXPENDITURES,TRAVEL,DETAIL,2018-08-15,AP,E0648206,CITIBANK GOV CARD SERVICE,2018-06-04,2018-06-04,TAXI/PARKING/TOLLS,72.01,2018
,2018 OFFICE OF THE MINORITY LEADER,Q3,GENERAL EXPENDITURES,TRAVEL,DETAIL,2018-08-15,AP,E0648208,CITIBANK GOV CARD SERVICE,2018-04-30,2018-05-12,COMMERCIAL TRANSPORTATION,887.81,2018
,2018 OFFICE OF THE MINORITY LEADER,Q3,GENERAL EXPENDITURES,TRAVEL,DETAIL,2018-08-15,AP,E0648208,CITIBANK GOV CARD SERVICE,2018-04-30,2018-05-12,LODGING,661.17,2018
,2018 OFFICE OF THE MINORITY LEADER,Q3,GENERAL EXPENDITURES,TRAVEL,DETAIL,2018-08-15,AP,E0648208,CITIBANK GOV CARD SERVICE,2018-04-30,2018-05-12,MEALS,137.64,2018
,2018 OFFICE OF THE MINORITY LEADER,Q3,GENERAL EXPENDITURES,TRAVEL,DETAIL,2018-08-15,AP,E0648208,CITIBANK GOV CARD SERVICE,2018-04-30,2018-05-12,TAXI/PARKING/TOLLS,244.66,2018
,2018 OFFICE OF THE MINORITY LEADER,Q3,GENERAL EXPENDITURES,TRAVEL,DETAIL,2018-08-17,AP,E0648950,CITIBANK GOV CARD SERVICE,2018-06-17,2018-06-17,COMMERCIAL TRANSPORTATION,89.2,2018
,2018 OFFICE OF THE MINORITY LEADER,Q3,GENERAL EXPENDITURES,TRAVEL,DETAIL,2018-08-17,AP,E0648950,CITIBANK GOV CARD SERVICE,2018-06-17,2018-06-18,LODGING,188.48,2018
,2018 OFFICE OF THE MINORITY LEADER,Q3,GENERAL EXPENDITURES,TRAVEL,DETAIL,2018-08-17,AP,E0648950,CITIBANK GOV CARD SERVICE,2018-06-18,2018-06-18,MEALS,54.04,2018
,2018 OFFICE OF THE MINORITY LEADER,Q3,GENERAL EXPENDITURES,TRAVEL,DETAIL,2018-08-22,AP,E0650279,CITIBANK GOV CARD SERVICE,2018-07-13,2018-08-03,COMMERCIAL TRANSPORTATION,1494.01,2018
,2018 OFFICE OF THE MINORITY LEADER,Q3,GENERAL EXPENDITURES,TRAVEL,DETAIL,2018-08-22,AP,E0650279,CITIBANK GOV CARD SERVICE,2018-07-13,2018-07-20,LODGING,878.85,2018
,2018 OFFICE OF THE MINORITY LEADER,Q3,GENERAL EXPENDITURES,TRAVEL,DETAIL,2018-08-22,AP,E0650279,CITIBANK GOV CARD SERVICE,2018-07-13,2018-07-21,MEALS,570.84,2018
,2018 OFFICE OF THE MINORITY LEADER,Q3,GENERAL EXPENDITURES,TRAVEL,DETAIL,2018-08-22,AP,E0650279,CITIBANK GOV CARD SERVICE,2018-07-13,2018-07-21,TAXI/PARKING/TOLLS,313.43,2018
,2018 OFFICE OF THE MINORITY LEADER,Q3,GENERAL EXPENDITURES,TRAVEL,DETAIL,2018-08-22,AP,E0650791,EDMONSON ROBERT D,2018-07-28,2018-07-28,TAXI/PARKING/TOLLS,8.69,2018
,2018 OFFICE OF THE MINORITY LEADER,Q3,GENERAL EXPENDITURES,TRAVEL,DETAIL,2018-08-22,AP,E0650806,LA ALISA M.,2018-06-05,2018-06-27,TAXI/PARKING/TOLLS,110.31,2018
,2018 OFFICE OF THE MINORITY LEADER,Q3,GENERAL EXPENDITURES,TRAVEL,DETAIL,2018-08-22,AP,E0650806,LA ALISA M.,2018-07-18,2018-07-18,TAXI/PARKING/TOLLS,9.44,2018
,2018 OFFICE OF THE MINORITY LEADER,Q3,GENERAL EXPENDITURES,TRAVEL,DETAIL,2018-08-23,AP,E0650807,WOLTERS KATE,2018-06-14,2018-06-28,TAXI/PARKING/TOLLS,36.74,2018
,2018 OFFICE OF THE MINORITY LEADER,Q3,GENERAL EXPENDITURES,TRAVEL,DETAIL,2018-08-23,AP,E0650810,LIZARRAGA JAIME E.,2018-08-02,2018-08-02,TAXI/PARKING/TOLLS,29.93,2018
,2018 OFFICE OF THE MINORITY LEADER,Q3,GENERAL EXPENDITURES,TRAVEL,DETAIL,2018-08-27,AP,E0650809,POLZIN SAVANNAH J.,2018-07-12,2018-07-26,TAXI/PARKING/TOLLS,32.28,2018
,2018 OFFICE OF THE MINORITY LEADER,Q3,GENERAL EXPENDITURES,TRAVEL,DETAIL,2018-09-18,AP,E0655038,GIBSON DYLAN B.,2018-08-01,2018-08-05,COMMERCIAL TRANSPORTATION,446.96,2018
,2018 OFFICE OF THE MINORITY LEADER,Q3,GENERAL EXPENDITURES,TRAVEL,DETAIL,2018-09-18,AP,E0655038,GIBSON DYLAN B.,2018-08-01,2018-08-04,LODGING,730.16,2018
,2018 OFFICE OF THE MINORITY LEADER,Q3,GENERAL EXPENDITURES,TRAVEL,DETAIL,2018-09-18,AP,E0655043,CITIBANK GOV CARD SERVICE,2018-08-14,2018-08-15,COMMERCIAL TRANSPORTATION,875.4,2018
,2018 OFFICE OF THE MINORITY LEADER,Q3,GENERAL EXPENDITURES,TRAVEL,DETAIL,2018-09-18,AP,E0655043,CITIBANK GOV CARD SERVICE,2018-08-27,2018-08-27,COMMERCIAL TRANSPORTATION,192.2,2018
,2018 OFFICE OF THE MINORITY LEADER,Q3,GENERAL EXPENDITURES,TRAVEL,DETAIL,2018-09-18,AP,E0655043,CITIBANK GOV CARD SERVICE,2018-08-27,2018-08-27,LODGING,167.3,2018
,2018 OFFICE OF THE MINORITY LEADER,Q3,GENERAL EXPENDITURES,TRAVEL,DETAIL,2018-09-18,AP,E0655043,CITIBANK GOV CARD SERVICE,2018-08-27,2018-08-27,MEALS,11.01,2018
,2018 OFFICE OF THE MINORITY LEADER,Q3,GENERAL EXPENDITURES,TRAVEL,DETAIL,2018-09-18,AP,E0655043,CITIBANK GOV CARD SERVICE,2018-08-27,2018-08-27,TAXI/PARKING/TOLLS,13.44,2018
,2018 OFFICE OF THE MINORITY LEADER,Q3,GENERAL EXPENDITURES,TRAVEL,DETAIL,2018-09-19,AP,E0655033,CITIBANK GOV CARD SERVICE,2018-08-11,2018-08-26,COMMERCIAL TRANSPORTATION,1037,2018
,2018 OFFICE OF THE MINORITY LEADER,Q3,GENERAL EXPENDITURES,TRAVEL,DETAIL,2018-09-19,AP,E0655033,CITIBANK GOV CARD SERVICE,2018-07-31,2018-08-23,LODGING,2946.2,2018
,2018 OFFICE OF THE MINORITY LEADER,Q3,GENERAL EXPENDITURES,TRAVEL,DETAIL,2018-09-19,AP,E0655033,CITIBANK GOV CARD SERVICE,2018-07-27,2018-08-26,MEALS,683.75,2018
,2018 OFFICE OF THE MINORITY LEADER,Q3,GENERAL EXPENDITURES,TRAVEL,DETAIL,2018-09-19,AP,E0655033,CITIBANK GOV CARD SERVICE,2018-07-27,2018-08-26,TAXI/PARKING/TOLLS,771.29,2018
,2018 OFFICE OF THE MINORITY LEADER,Q3,GENERAL EXPENDITURES,TRAVEL,DETAIL,2018-09-27,AP,E0657354,CITIBANK GOV CARD SERVICE,2018-08-07,2018-09-09,COMMERCIAL TRANSPORTATION,2383,2018
,2018 OFFICE OF THE MINORITY LEADER,Q3,GENERAL EXPENDITURES,TRAVEL,DETAIL,2018-09-27,AP,E0657354,CITIBANK GOV CARD SERVICE,2018-08-08,2018-08-09,MEALS,21.95,2018
,2018 OFFICE OF THE MINORITY LEADER,Q3,GENERAL EXPENDITURES,TRAVEL,SUBTOTAL,   ,   ,   ,   ,   ,   ,TRAVEL TOTALS:,30984.48,2018
,2018 OFFICE OF THE MINORITY LEADER,Q3,GENERAL EXPENDITURES,RENT  COMMUNICATION  UTILITIES,DETAIL,2018-07-18,AP,E0640787,FEDEX,2018-06-12,2018-06-12,POSTAGE / COURIER / BOX RENTAL,41.99,2018
,2018 OFFICE OF THE MINORITY LEADER,Q3,GENERAL EXPENDITURES,RENT  COMMUNICATION  UTILITIES,DETAIL,2018-07-23,AP,E0642481,CITIBANK GOV CARD SERVICE,2018-05-30,2018-06-01,UTILITIES,51.98,2018
,2018 OFFICE OF THE MINORITY LEADER,Q3,GENERAL EXPENDITURES,RENT  COMMUNICATION  UTILITIES,DETAIL,2018-07-26,GL,EMS0080133, ,2018-06-01,2018-06-30,DC TELECOM EQUIP (TRANSFER),216,2018
,2018 OFFICE OF THE MINORITY LEADER,Q3,GENERAL EXPENDITURES,RENT  COMMUNICATION  UTILITIES,DETAIL,2018-07-26,GL,EMS0080133, ,2018-06-01,2018-06-30,DC TELECOM SERV (TRANSFER),1094.75,2018
,2018 OFFICE OF THE MINORITY LEADER,Q3,GENERAL EXPENDITURES,RENT  COMMUNICATION  UTILITIES,DETAIL,2018-07-26,GL,EMS0080133, ,2018-06-01,2018-06-30,DC TELECOM TOLLS (TRANSFER),8799.77,2018
,2018 OFFICE OF THE MINORITY LEADER,Q3,GENERAL EXPENDITURES,RENT  COMMUNICATION  UTILITIES,DETAIL,2018-08-22,AP,E0650279,CITIBANK GOV CARD SERVICE,2018-07-19,2018-07-19,UTILITIES,15.85,2018
,2018 OFFICE OF THE MINORITY LEADER,Q3,GENERAL EXPENDITURES,RENT  COMMUNICATION  UTILITIES,DETAIL,2018-08-27,GL,EMS0080878, ,2018-07-01,2018-07-31,DC TELECOM EQUIP (TRANSFER),216,2018
,2018 OFFICE OF THE MINORITY LEADER,Q3,GENERAL EXPENDITURES,RENT  COMMUNICATION  UTILITIES,DETAIL,2018-08-27,GL,EMS0080878, ,2018-07-01,2018-07-31,DC TELECOM SERV (TRANSFER),1094.75,2018
,2018 OFFICE OF THE MINORITY LEADER,Q3,GENERAL EXPENDITURES,RENT  COMMUNICATION  UTILITIES,DETAIL,2018-08-27,GL,EMS0080878, ,2018-07-01,2018-07-31,DC TELECOM TOLLS (TRANSFER),8674.02,2018
,2018 OFFICE OF THE MINORITY LEADER,Q3,GENERAL EXPENDITURES,RENT  COMMUNICATION  UTILITIES,DETAIL,2018-08-30,GL,GRP0081044, ,2018-08-01,2018-08-31,HIR GRAPHICS (TRANSFER),20,2018
,2018 OFFICE OF THE MINORITY LEADER,Q3,GENERAL EXPENDITURES,RENT  COMMUNICATION  UTILITIES,DETAIL,2018-09-16,AP,E0655027,FEDEX,2018-08-14,2018-08-14,POSTAGE / COURIER / BOX RENTAL,11.72,2018
,2018 OFFICE OF THE MINORITY LEADER,Q3,GENERAL EXPENDITURES,RENT  COMMUNICATION  UTILITIES,DETAIL,2018-09-18,AP,E0655038,GIBSON DYLAN B.,2018-08-01,2018-08-01,UTILITIES,14.95,2018
,2018 OFFICE OF THE MINORITY LEADER,Q3,GENERAL EXPENDITURES,RENT  COMMUNICATION  UTILITIES,DETAIL,2018-09-18,AP,E0655043,CITIBANK GOV CARD SERVICE,2018-08-27,2018-08-27,UTILITIES,16,2018
,2018 OFFICE OF THE MINORITY LEADER,Q3,GENERAL EXPENDITURES,RENT  COMMUNICATION  UTILITIES,DETAIL,2018-09-25,GL,EMS0081714, ,2018-08-01,2018-08-31,DC TELECOM EQUIP (TRANSFER),220,2018
,2018 OFFICE OF THE MINORITY LEADER,Q3,GENERAL EXPENDITURES,RENT  COMMUNICATION  UTILITIES,DETAIL,2018-09-25,GL,EMS0081714, ,2018-08-01,2018-08-31,DC TELECOM SERV (TRANSFER),1094.75,2018
,2018 OFFICE OF THE MINORITY LEADER,Q3,GENERAL EXPENDITURES,RENT  COMMUNICATION  UTILITIES,DETAIL,2018-09-25,GL,EMS0081714, ,2018-08-01,2018-08-31,DC TELECOM TOLLS (TRANSFER),9263.99,2018
,2018 OFFICE OF THE MINORITY LEADER,Q3,GENERAL EXPENDITURES,RENT  COMMUNICATION  UTILITIES,DETAIL,2018-09-27,AP,E0657354,CITIBANK GOV CARD SERVICE,2018-08-06,2018-08-09,UTILITIES,65.95,2018
,2018 OFFICE OF THE MINORITY LEADER,Q3,GENERAL EXPENDITURES,RENT  COMMUNICATION  UTILITIES,SUBTOTAL,   ,   ,   ,   ,   ,   ,RENT  COMMUNICATION  UTILITIES TOTALS:,30912.47,2018
,2018 OFFICE OF THE MINORITY LEADER,Q3,GENERAL EXPENDITURES,PRINTING AND REPRODUCTION,DETAIL,2018-07-19,AP,1004523,CITI PCARD-FACEBK 5SRESFE2M,2018-05-29,2018-06-28,ADVERTISEMENTS,741.92,2018
,2018 OFFICE OF THE MINORITY LEADER,Q3,GENERAL EXPENDITURES,PRINTING AND REPRODUCTION,DETAIL,2018-07-19,AP,1004523,CITI PCARD-FACEBK 6SRESFE2M,2018-05-29,2018-06-28,ADVERTISEMENTS,8.08,2018
,2018 OFFICE OF THE MINORITY LEADER,Q3,GENERAL EXPENDITURES,PRINTING AND REPRODUCTION,DETAIL,2018-07-19,AP,1004523,CITI PCARD-FACEBK EM6SXFE2M,2018-05-29,2018-06-28,ADVERTISEMENTS,749.51,2018
,2018 OFFICE OF THE MINORITY LEADER,Q3,GENERAL EXPENDITURES,PRINTING AND REPRODUCTION,DETAIL,2018-07-19,AP,1004523,CITI PCARD-FACEBK GUMM2GNZL,2018-05-29,2018-06-28,ADVERTISEMENTS,746.29,2018
,2018 OFFICE OF THE MINORITY LEADER,Q3,GENERAL EXPENDITURES,PRINTING AND REPRODUCTION,DETAIL,2018-07-19,AP,1004523,CITI PCARD-FACEBK HUMM2GNZL,2018-05-29,2018-06-28,ADVERTISEMENTS,3.71,2018
,2018 OFFICE OF THE MINORITY LEADER,Q3,GENERAL EXPENDITURES,PRINTING AND REPRODUCTION,DETAIL,2018-07-19,AP,1004523,CITI PCARD-FACEBK QQ4CJGA2M,2018-05-29,2018-06-28,ADVERTISEMENTS,750,2018
,2018 OFFICE OF THE MINORITY LEADER,Q3,GENERAL EXPENDITURES,PRINTING AND REPRODUCTION,DETAIL,2018-07-19,AP,1004523,CITI PCARD-TWITTER ONLINE ADS,2018-05-29,2018-06-28,ADVERTISEMENTS,4021.12,2018
,2018 OFFICE OF THE MINORITY LEADER,Q3,GENERAL EXPENDITURES,PRINTING AND REPRODUCTION,DETAIL,2018-07-30,GL,PIX0080134, ,2018-07-01,2018-07-31,PHOTOGRAPHIC (TRANSFER),201.4,2018
,2018 OFFICE OF THE MINORITY LEADER,Q3,GENERAL EXPENDITURES,PRINTING AND REPRODUCTION,DETAIL,2018-07-31,AP,E0645127,DOYLE PRINTING&OFFSET CO INC,2018-07-23,2018-07-23,PRINTING & REPRODUCTION,335,2018
,2018 OFFICE OF THE MINORITY LEADER,Q3,GENERAL EXPENDITURES,PRINTING AND REPRODUCTION,DETAIL,2018-07-31,AP,E0645130,DAVID L ANDRUKITIS INC,2018-07-24,2018-07-24,PRINTING & REPRODUCTION,80,2018
,2018 OFFICE OF THE MINORITY LEADER,Q3,GENERAL EXPENDITURES,PRINTING AND REPRODUCTION,DETAIL,2018-07-31,AP,E0645131,DAVID L ANDRUKITIS INC,2018-07-19,2018-07-19,PRINTING & REPRODUCTION,87.5,2018
,2018 OFFICE OF THE MINORITY LEADER,Q3,GENERAL EXPENDITURES,PRINTING AND REPRODUCTION,DETAIL,2018-08-17,AP,1010486,CITI PCARD-FACEBK 3Q9MNG22M,2018-06-29,2018-07-27,ADVERTISEMENTS,749.53,2018
,2018 OFFICE OF THE MINORITY LEADER,Q3,GENERAL EXPENDITURES,PRINTING AND REPRODUCTION,DETAIL,2018-08-17,AP,1010486,CITI PCARD-FACEBK 82B3QGJ2M,2018-06-29,2018-07-27,ADVERTISEMENTS,749.47,2018
,2018 OFFICE OF THE MINORITY LEADER,Q3,GENERAL EXPENDITURES,PRINTING AND REPRODUCTION,DETAIL,2018-08-17,AP,1010486,CITI PCARD-FACEBK 8AABTGN2M,2018-06-29,2018-07-27,ADVERTISEMENTS,750,2018
,2018 OFFICE OF THE MINORITY LEADER,Q3,GENERAL EXPENDITURES,PRINTING AND REPRODUCTION,DETAIL,2018-08-17,AP,1010486,CITI PCARD-FACEBK H25PKGSZL,2018-06-29,2018-07-27,ADVERTISEMENTS,675.79,2018
,2018 OFFICE OF THE MINORITY LEADER,Q3,GENERAL EXPENDITURES,PRINTING AND REPRODUCTION,DETAIL,2018-08-17,AP,1010486,CITI PCARD-FACEBK M3R7FGNZL,2018-06-29,2018-07-27,ADVERTISEMENTS,750,2018
,2018 OFFICE OF THE MINORITY LEADER,Q3,GENERAL EXPENDITURES,PRINTING AND REPRODUCTION,DETAIL,2018-08-17,AP,1010486,CITI PCARD-FACEBK MLGW8GE2M,2018-06-29,2018-07-27,ADVERTISEMENTS,750,2018
,2018 OFFICE OF THE MINORITY LEADER,Q3,GENERAL EXPENDITURES,PRINTING AND REPRODUCTION,DETAIL,2018-08-17,AP,1010486,CITI PCARD-FACEBK ZWWZJGJ2M,2018-06-29,2018-07-27,ADVERTISEMENTS,750,2018
,2018 OFFICE OF THE MINORITY LEADER,Q3,GENERAL EXPENDITURES,PRINTING AND REPRODUCTION,DETAIL,2018-08-17,AP,1010486,CITI PCARD-FEDEXOFFICE,2018-06-29,2018-07-27,PRINTING & REPRODUCTION,454.36,2018
,2018 OFFICE OF THE MINORITY LEADER,Q3,GENERAL EXPENDITURES,PRINTING AND REPRODUCTION,DETAIL,2018-08-17,AP,1010486,CITI PCARD-TWITTER ONLINE ADS,2018-06-29,2018-07-27,ADVERTISEMENTS,6462.19,2018
,2018 OFFICE OF THE MINORITY LEADER,Q3,GENERAL EXPENDITURES,PRINTING AND REPRODUCTION,DETAIL,2018-08-22,AP,E0650790,DAVID L ANDRUKITIS INC,2018-08-14,2018-08-14,PRINTING & REPRODUCTION,40,2018
,2018 OFFICE OF THE MINORITY LEADER,Q3,GENERAL EXPENDITURES,PRINTING AND REPRODUCTION,DETAIL,2018-08-23,AP,E0650792,SHARP BUSINESS SYSTEMS,2018-03-30,2018-06-29,PRINTING & REPRODUCTION,1810.56,2018
,2018 OFFICE OF THE MINORITY LEADER,Q3,GENERAL EXPENDITURES,PRINTING AND REPRODUCTION,DETAIL,2018-08-23,AP,E0650808,SMITH KELSEY L.,2018-07-19,2018-07-19,PRINTING & REPRODUCTION,34.88,2018
,2018 OFFICE OF THE MINORITY LEADER,Q3,GENERAL EXPENDITURES,PRINTING AND REPRODUCTION,DETAIL,2018-08-23,AP,E0650812,BERRET EMILY C.,2018-07-19,2018-07-20,PRINTING & REPRODUCTION,14.74,2018
,2018 OFFICE OF THE MINORITY LEADER,Q3,GENERAL EXPENDITURES,PRINTING AND REPRODUCTION,DETAIL,2018-09-16,AP,E0655032,SMITH KELSEY L.,2018-08-29,2018-08-29,PRINTING & REPRODUCTION,101.18,2018
,2018 OFFICE OF THE MINORITY LEADER,Q3,GENERAL EXPENDITURES,PRINTING AND REPRODUCTION,DETAIL,2018-09-25,GL,PIX0081715, ,2018-09-01,2018-09-30,PHOTOGRAPHIC (TRANSFER),60,2018
,2018 OFFICE OF THE MINORITY LEADER,Q3,GENERAL EXPENDITURES,PRINTING AND REPRODUCTION,DETAIL,2018-09-26,AP,1019131,CITI PCARD-FACEBK 2XDYXGSZL,2018-07-28,2018-08-28,ADVERTISEMENTS,761.22,2018
,2018 OFFICE OF THE MINORITY LEADER,Q3,GENERAL EXPENDITURES,PRINTING AND REPRODUCTION,SUBTOTAL,   ,   ,   ,   ,   ,   ,PRINTING AND REPRODUCTION TOTALS:,22638.45,2018
,2018 OFFICE OF THE MINORITY LEADER,Q3,GENERAL EXPENDITURES,OTHER SERVICES,DETAIL,2018-07-16,AP,1001318,LEIDOS DIGITAL SOLUTIONS INC,2018-07-01,2018-07-31,TECHNOLOGY SERVICE CONTRACTS,11704,2018
,2018 OFFICE OF THE MINORITY LEADER,Q3,GENERAL EXPENDITURES,OTHER SERVICES,DETAIL,2018-07-18,AP,E0640770,GSL SOLUTIONS INC,2018-07-01,2018-07-31,WEB DEV HST EMAIL & RLTD SERV,100,2018
,2018 OFFICE OF THE MINORITY LEADER,Q3,GENERAL EXPENDITURES,OTHER SERVICES,DETAIL,2018-07-18,AP,E0640786,LIBERTY CONCEPTS,2018-06-01,2018-06-30,WEB DEV HST EMAIL & RLTD SERV,500,2018
,2018 OFFICE OF THE MINORITY LEADER,Q3,GENERAL EXPENDITURES,OTHER SERVICES,DETAIL,2018-07-18,AP,E0641309,BERNARD RAIMO,2018-06-01,2018-06-30,CONSULTANT CONTRACT SERVICE,7628,2018
,2018 OFFICE OF THE MINORITY LEADER,Q3,GENERAL EXPENDITURES,OTHER SERVICES,DETAIL,2018-07-19,AP,1004523,CITI PCARD-DROPBOX WBNPF7TF3QCH,2018-05-29,2018-06-28,WEB DEV HST EMAIL & RLTD SERV,99,2018
,2018 OFFICE OF THE MINORITY LEADER,Q3,GENERAL EXPENDITURES,OTHER SERVICES,DETAIL,2018-07-23,AP,E0642480,DIVERSIFIED REPORTING SERVICES INC,2018-07-11,2018-07-11,STENOGRAPHIC REPORTING,250,2018
,2018 OFFICE OF THE MINORITY LEADER,Q3,GENERAL EXPENDITURES,OTHER SERVICES,DETAIL,2018-08-08,AP,E0645129,BERNARD RAIMO,2018-07-01,2018-07-31,CONSULTANT CONTRACT SERVICE,7628,2018
,2018 OFFICE OF THE MINORITY LEADER,Q3,GENERAL EXPENDITURES,OTHER SERVICES,DETAIL,2018-08-16,AP,1009741,LEIDOS DIGITAL SOLUTIONS INC,2018-08-01,2018-08-31,TECHNOLOGY SERVICE CONTRACTS,11704,2018
,2018 OFFICE OF THE MINORITY LEADER,Q3,GENERAL EXPENDITURES,OTHER SERVICES,DETAIL,2018-08-17,AP,1010486,CITI PCARD-DROPBOX WBNPF7TF3QCH,2018-06-29,2018-07-27,TECHNOLOGY SERVICE CONTRACTS,-38.24,2018
,2018 OFFICE OF THE MINORITY LEADER,Q3,GENERAL EXPENDITURES,OTHER SERVICES,DETAIL,2018-08-23,AP,E0650793,LIBERTY CONCEPTS,2018-07-01,2018-07-31,WEB DEV HST EMAIL & RLTD SERV,500,2018
,2018 OFFICE OF THE MINORITY LEADER,Q3,GENERAL EXPENDITURES,OTHER SERVICES,DETAIL,2018-08-23,AP,E0650804,DIVERSIFIED REPORTING SERVICES INC,2018-07-18,2018-07-18,STENOGRAPHIC REPORTING,1443,2018
,2018 OFFICE OF THE MINORITY LEADER,Q3,GENERAL EXPENDITURES,OTHER SERVICES,DETAIL,2018-09-13,AP,E0653703,BERNARD RAIMO,2018-08-01,2018-08-31,CONSULTANT CONTRACT SERVICE,7628,2018
,2018 OFFICE OF THE MINORITY LEADER,Q3,GENERAL EXPENDITURES,OTHER SERVICES,DETAIL,2018-09-16,AP,1014672,LEIDOS DIGITAL SOLUTIONS INC,2018-09-01,2018-09-30,TECHNOLOGY SERVICE CONTRACTS,11704,2018
,2018 OFFICE OF THE MINORITY LEADER,Q3,GENERAL EXPENDITURES,OTHER SERVICES,DETAIL,2018-09-18,AP,E0655026,LIBERTY CONCEPTS,2018-08-01,2018-08-31,WEB DEV HST EMAIL & RLTD SERV,500,2018
,2018 OFFICE OF THE MINORITY LEADER,Q3,GENERAL EXPENDITURES,OTHER SERVICES,DETAIL,2018-09-18,AP,E0655038,GIBSON DYLAN B.,2018-08-02,2018-08-04,TRAINING,486.9,2018
,2018 OFFICE OF THE MINORITY LEADER,Q3,GENERAL EXPENDITURES,OTHER SERVICES,SUBTOTAL,   ,   ,   ,   ,   ,   ,OTHER SERVICES TOTALS:,61836.66,2018
,2018 OFFICE OF THE MINORITY LEADER,Q3,GENERAL EXPENDITURES,SUPPLIES AND MATERIALS,DETAIL,2018-07-02,AP,E0637395,SPROUT SOCIAL INC,2018-06-14,2019-01-01,PUBLICATIONS/REFERENCE MAT'L,2963.4,2018
,2018 OFFICE OF THE MINORITY LEADER,Q3,GENERAL EXPENDITURES,SUPPLIES AND MATERIALS,DETAIL,2018-07-18,AP,E0640772,CAPITAL GIFTS AND AWARDS INC,2018-06-22,2018-06-22,OFFICE SUPPLIES (OUTSIDE),4124.81,2018
,2018 OFFICE OF THE MINORITY LEADER,Q3,GENERAL EXPENDITURES,SUPPLIES AND MATERIALS,DETAIL,2018-07-18,AP,E0640774,CONNECTION,2018-06-29,2018-06-29,OFFICE SUPPLIES (OUTSIDE),4290,2018
,2018 OFFICE OF THE MINORITY LEADER,Q3,GENERAL EXPENDITURES,SUPPLIES AND MATERIALS,DETAIL,2018-07-18,AP,E0640775,CONNECTION,2018-06-08,2018-06-08,OFFICE SUPPLIES (OUTSIDE),829.93,2018
,2018 OFFICE OF THE MINORITY LEADER,Q3,GENERAL EXPENDITURES,SUPPLIES AND MATERIALS,DETAIL,2018-07-18,AP,E0640780,CONNECTION,2018-06-22,2018-06-22,OFFICE SUPPLIES (OUTSIDE),479,2018
,2018 OFFICE OF THE MINORITY LEADER,Q3,GENERAL EXPENDITURES,SUPPLIES AND MATERIALS,DETAIL,2018-07-18,AP,E0640781,CONNECTION,2018-06-26,2018-06-26,OFFICE SUPPLIES (OUTSIDE),503,2018
,2018 OFFICE OF THE MINORITY LEADER,Q3,GENERAL EXPENDITURES,SUPPLIES AND MATERIALS,DETAIL,2018-07-18,AP,E0640785,CONNECTION,2018-06-25,2018-06-25,OFFICE SUPPLIES (OUTSIDE),582.45,2018
,2018 OFFICE OF THE MINORITY LEADER,Q3,GENERAL EXPENDITURES,SUPPLIES AND MATERIALS,DETAIL,2018-07-18,AP,E0640788,CAPITOL  HOST,2018-06-28,2018-06-28,FOOD & BEVERAGE,158.04,2018
,2018 OFFICE OF THE MINORITY LEADER,Q3,GENERAL EXPENDITURES,SUPPLIES AND MATERIALS,DETAIL,2018-07-18,AP,E0640789,CAPITOL  HOST,2018-06-27,2018-06-27,FOOD & BEVERAGE,361.65,2018
,2018 OFFICE OF THE MINORITY LEADER,Q3,GENERAL EXPENDITURES,SUPPLIES AND MATERIALS,DETAIL,2018-07-18,AP,E0640790,CAPITOL  HOST,2018-06-27,2018-06-27,FOOD & BEVERAGE,221.76,2018
,2018 OFFICE OF THE MINORITY LEADER,Q3,GENERAL EXPENDITURES,SUPPLIES AND MATERIALS,DETAIL,2018-07-18,AP,E0640791,CAPITOL  HOST,2018-06-25,2018-06-25,FOOD & BEVERAGE,73.25,2018
,2018 OFFICE OF THE MINORITY LEADER,Q3,GENERAL EXPENDITURES,SUPPLIES AND MATERIALS,DETAIL,2018-07-18,AP,E0640797,CAPITOL  HOST,2018-06-21,2018-06-21,FOOD & BEVERAGE,158.04,2018
,2018 OFFICE OF THE MINORITY LEADER,Q3,GENERAL EXPENDITURES,SUPPLIES AND MATERIALS,DETAIL,2018-07-18,AP,E0640798,CAPITOL  HOST,2018-06-20,2018-06-20,FOOD & BEVERAGE,221.76,2018
,2018 OFFICE OF THE MINORITY LEADER,Q3,GENERAL EXPENDITURES,SUPPLIES AND MATERIALS,DETAIL,2018-07-18,AP,E0640799,CAPITOL  HOST,2018-06-19,2018-06-19,FOOD & BEVERAGE,242.9,2018
,2018 OFFICE OF THE MINORITY LEADER,Q3,GENERAL EXPENDITURES,SUPPLIES AND MATERIALS,DETAIL,2018-07-18,AP,E0640809,CAPITOL  HOST,2018-06-15,2018-06-15,FOOD & BEVERAGE,158.04,2018
,2018 OFFICE OF THE MINORITY LEADER,Q3,GENERAL EXPENDITURES,SUPPLIES AND MATERIALS,DETAIL,2018-07-18,AP,E0640810,CAPITOL  HOST,2018-06-14,2018-06-14,FOOD & BEVERAGE,36.63,2018
,2018 OFFICE OF THE MINORITY LEADER,Q3,GENERAL EXPENDITURES,SUPPLIES AND MATERIALS,DETAIL,2018-07-18,AP,E0640811,CAPITOL  HOST,2018-03-14,2018-03-14,FOOD & BEVERAGE,223.7,2018
,2018 OFFICE OF THE MINORITY LEADER,Q3,GENERAL EXPENDITURES,SUPPLIES AND MATERIALS,DETAIL,2018-07-18,AP,E0640812,CAPITOL  HOST,2018-01-30,2018-01-30,FOOD & BEVERAGE,53.03,2018
,2018 OFFICE OF THE MINORITY LEADER,Q3,GENERAL EXPENDITURES,SUPPLIES AND MATERIALS,DETAIL,2018-07-18,AP,E0640813,CAPITOL  HOST,2018-01-29,2018-01-29,FOOD & BEVERAGE,73.25,2018
,2018 OFFICE OF THE MINORITY LEADER,Q3,GENERAL EXPENDITURES,SUPPLIES AND MATERIALS,DETAIL,2018-07-18,AP,E0640814,CAPITOL  HOST,2018-01-08,2018-01-08,FOOD & BEVERAGE,73.25,2018
,2018 OFFICE OF THE MINORITY LEADER,Q3,GENERAL EXPENDITURES,SUPPLIES AND MATERIALS,DETAIL,2018-07-18,AP,E0640823,MENUS CATERING INC,2018-06-27,2018-06-27,FOOD & BEVERAGE,668.9,2018
,2018 OFFICE OF THE MINORITY LEADER,Q3,GENERAL EXPENDITURES,SUPPLIES AND MATERIALS,DETAIL,2018-07-18,AP,E0640824,DEWHIRST DIANE,2018-06-18,2018-06-18,FOOD & BEVERAGE,7.49,2018
,2018 OFFICE OF THE MINORITY LEADER,Q3,GENERAL EXPENDITURES,SUPPLIES AND MATERIALS,DETAIL,2018-07-18,AP,E0640824,DEWHIRST DIANE,2018-06-25,2018-06-25,OFFICE SUPPLIES (OUTSIDE),28.54,2018
,2018 OFFICE OF THE MINORITY LEADER,Q3,GENERAL EXPENDITURES,SUPPLIES AND MATERIALS,DETAIL,2018-07-18,AP,E0640826,LIZARRAGA JAIME E.,2018-06-10,2018-06-17,FOOD & BEVERAGE,58.29,2018
,2018 OFFICE OF THE MINORITY LEADER,Q3,GENERAL EXPENDITURES,SUPPLIES AND MATERIALS,DETAIL,2018-07-18,AP,E0640826,LIZARRAGA JAIME E.,2018-07-08,2018-07-08,FOOD & BEVERAGE,28.59,2018
,2018 OFFICE OF THE MINORITY LEADER,Q3,GENERAL EXPENDITURES,SUPPLIES AND MATERIALS,DETAIL,2018-07-19,AP,1004523,CITI PCARD-FIREHOOK CAPITOL HILL,2018-05-29,2018-06-28,FOOD & BEVERAGE,29.04,2018
,2018 OFFICE OF THE MINORITY LEADER,Q3,GENERAL EXPENDITURES,SUPPLIES AND MATERIALS,DETAIL,2018-07-19,AP,1004523,CITI PCARD-LEVELUP CAVA,2018-05-29,2018-06-28,FOOD & BEVERAGE,102.53,2018
,2018 OFFICE OF THE MINORITY LEADER,Q3,GENERAL EXPENDITURES,SUPPLIES AND MATERIALS,DETAIL,2018-07-19,AP,1004523,CITI PCARD-TARGET,2018-05-29,2018-06-28,FOOD & BEVERAGE,317.71,2018
,2018 OFFICE OF THE MINORITY LEADER,Q3,GENERAL EXPENDITURES,SUPPLIES AND MATERIALS,DETAIL,2018-07-19,AP,1004523,CITI PCARD-USHR LONGWORTH FOOD CT,2018-05-29,2018-06-28,FOOD & BEVERAGE,101.5,2018
,2018 OFFICE OF THE MINORITY LEADER,Q3,GENERAL EXPENDITURES,SUPPLIES AND MATERIALS,DETAIL,2018-07-19,AP,1004523,CITI PCARD-WE THE PIZZA,2018-05-29,2018-06-28,FOOD & BEVERAGE,196.2,2018
,2018 OFFICE OF THE MINORITY LEADER,Q3,GENERAL EXPENDITURES,SUPPLIES AND MATERIALS,DETAIL,2018-07-21,AP,E0640800,CAPITOL  HOST,2018-06-19,2018-06-19,FOOD & BEVERAGE,73.25,2018
,2018 OFFICE OF THE MINORITY LEADER,Q3,GENERAL EXPENDITURES,SUPPLIES AND MATERIALS,DETAIL,2018-07-21,AP,E0640801,CAPITOL  HOST,2018-06-19,2018-06-19,FOOD & BEVERAGE,54.94,2018
,2018 OFFICE OF THE MINORITY LEADER,Q3,GENERAL EXPENDITURES,SUPPLIES AND MATERIALS,DETAIL,2018-07-21,AP,E0642479,SMITH KELSEY L.,2018-06-23,2018-06-23,OFFICE SUPPLIES (OUTSIDE),37.1,2018
,2018 OFFICE OF THE MINORITY LEADER,Q3,GENERAL EXPENDITURES,SUPPLIES AND MATERIALS,DETAIL,2018-07-23,AP,E0642478,CITIBANK GOV CARD SERVICE,2018-06-17,2018-06-18,PUBLICATIONS/REFERENCE MAT'L,15.38,2018
,2018 OFFICE OF THE MINORITY LEADER,Q3,GENERAL EXPENDITURES,SUPPLIES AND MATERIALS,DETAIL,2018-07-23,AP,E0642482,CITIBANK GOV CARD SERVICE,2018-06-03,2018-06-03,PUBLICATIONS/REFERENCE MAT'L,5.75,2018
,2018 OFFICE OF THE MINORITY LEADER,Q3,GENERAL EXPENDITURES,SUPPLIES AND MATERIALS,DETAIL,2018-07-31,AP,E0645125,MENUS CATERING INC,2018-07-25,2018-07-25,FOOD & BEVERAGE,668.9,2018
,2018 OFFICE OF THE MINORITY LEADER,Q3,GENERAL EXPENDITURES,SUPPLIES AND MATERIALS,DETAIL,2018-07-31,AP,E0645128,CAPITOL  HOST,2018-07-16,2018-07-16,FOOD & BEVERAGE,73.25,2018
,2018 OFFICE OF THE MINORITY LEADER,Q3,GENERAL EXPENDITURES,SUPPLIES AND MATERIALS,DETAIL,2018-07-31,AP,E0645133,CRYSTAL SPRINGS,2018-06-26,2018-06-26,FOOD & BEVERAGE,84.54,2018
,2018 OFFICE OF THE MINORITY LEADER,Q3,GENERAL EXPENDITURES,SUPPLIES AND MATERIALS,DETAIL,2018-07-31,AP,E0645134,CAPITOL  HOST,2018-07-11,2018-07-11,FOOD & BEVERAGE,36.62,2018
,2018 OFFICE OF THE MINORITY LEADER,Q3,GENERAL EXPENDITURES,SUPPLIES AND MATERIALS,DETAIL,2018-07-31,AP,E0645135,CAPITOL  HOST,2018-07-10,2018-07-10,FOOD & BEVERAGE,73.25,2018
,2018 OFFICE OF THE MINORITY LEADER,Q3,GENERAL EXPENDITURES,SUPPLIES AND MATERIALS,DETAIL,2018-07-31,AP,E0645136,MENUS CATERING INC,2018-07-18,2018-07-18,FOOD & BEVERAGE,668.9,2018
,2018 OFFICE OF THE MINORITY LEADER,Q3,GENERAL EXPENDITURES,SUPPLIES AND MATERIALS,DETAIL,2018-07-31,GL,RMS0080260, ,2018-07-01,2018-07-31,OFFICE SUPPLY (TRANSFER),777.98,2018
,2018 OFFICE OF THE MINORITY LEADER,Q3,GENERAL EXPENDITURES,SUPPLIES AND MATERIALS,DETAIL,2018-08-15,AP,E0648203,CITIBANK GOV CARD SERVICE,2018-07-13,2018-07-13,PUBLICATIONS/REFERENCE MAT'L,5.35,2018
,2018 OFFICE OF THE MINORITY LEADER,Q3,GENERAL EXPENDITURES,SUPPLIES AND MATERIALS,DETAIL,2018-08-17,AP,1010486,CITI PCARD-CAP MARKET CAF,2018-06-29,2018-07-27,FOOD & BEVERAGE,2,2018
,2018 OFFICE OF THE MINORITY LEADER,Q3,GENERAL EXPENDITURES,SUPPLIES AND MATERIALS,DETAIL,2018-08-17,AP,1010486,CITI PCARD-CREAMERY DD,2018-06-29,2018-07-27,FOOD & BEVERAGE,18,2018
,2018 OFFICE OF THE MINORITY LEADER,Q3,GENERAL EXPENDITURES,SUPPLIES AND MATERIALS,DETAIL,2018-08-17,AP,1010486,CITI PCARD-FIREHOOK CAPITOL HILL,2018-06-29,2018-07-27,FOOD & BEVERAGE,105.14,2018
,2018 OFFICE OF THE MINORITY LEADER,Q3,GENERAL EXPENDITURES,SUPPLIES AND MATERIALS,DETAIL,2018-08-17,AP,1010486,CITI PCARD-MEI WAH RESTAURANT,2018-06-29,2018-07-27,FOOD & BEVERAGE,270.88,2018
,2018 OFFICE OF THE MINORITY LEADER,Q3,GENERAL EXPENDITURES,SUPPLIES AND MATERIALS,DETAIL,2018-08-17,AP,1010486,CITI PCARD-STAPLES DIRECT,2018-06-29,2018-07-27,OFFICE SUPPLIES (OUTSIDE),319.77,2018
,2018 OFFICE OF THE MINORITY LEADER,Q3,GENERAL EXPENDITURES,SUPPLIES AND MATERIALS,DETAIL,2018-08-17,AP,1010486,CITI PCARD-TARGET,2018-06-29,2018-07-27,FOOD & BEVERAGE,384.27,2018
,2018 OFFICE OF THE MINORITY LEADER,Q3,GENERAL EXPENDITURES,SUPPLIES AND MATERIALS,DETAIL,2018-08-17,AP,1010486,CITI PCARD-USHR LONGWORTH FOOD CT,2018-06-29,2018-07-27,FOOD & BEVERAGE,84.5,2018
,2018 OFFICE OF THE MINORITY LEADER,Q3,GENERAL EXPENDITURES,SUPPLIES AND MATERIALS,DETAIL,2018-08-17,AP,1010486,CITI PCARD-WHOLEFDS HST,2018-06-29,2018-07-27,FOOD & BEVERAGE,216.9,2018
,2018 OFFICE OF THE MINORITY LEADER,Q3,GENERAL EXPENDITURES,SUPPLIES AND MATERIALS,DETAIL,2018-08-23,AP,E0650794,CAPITOL  HOST,2018-07-26,2018-07-26,FOOD & BEVERAGE,158.04,2018
,2018 OFFICE OF THE MINORITY LEADER,Q3,GENERAL EXPENDITURES,SUPPLIES AND MATERIALS,DETAIL,2018-08-23,AP,E0650795,CAPITOL  HOST,2018-07-25,2018-07-25,FOOD & BEVERAGE,146.5,2018
,2018 OFFICE OF THE MINORITY LEADER,Q3,GENERAL EXPENDITURES,SUPPLIES AND MATERIALS,DETAIL,2018-08-23,AP,E0650796,CAPITOL  HOST,2018-07-25,2018-07-25,FOOD & BEVERAGE,361.65,2018
,2018 OFFICE OF THE MINORITY LEADER,Q3,GENERAL EXPENDITURES,SUPPLIES AND MATERIALS,DETAIL,2018-08-23,AP,E0650797,CAPITOL  HOST,2018-07-25,2018-07-25,FOOD & BEVERAGE,221.76,2018
,2018 OFFICE OF THE MINORITY LEADER,Q3,GENERAL EXPENDITURES,SUPPLIES AND MATERIALS,DETAIL,2018-08-23,AP,E0650799,CAPITOL  HOST,2018-07-23,2018-07-23,FOOD & BEVERAGE,73.25,2018
,2018 OFFICE OF THE MINORITY LEADER,Q3,GENERAL EXPENDITURES,SUPPLIES AND MATERIALS,DETAIL,2018-08-23,AP,E0650800,CAPITOL  HOST,2018-07-20,2018-07-20,FOOD & BEVERAGE,54.94,2018
,2018 OFFICE OF THE MINORITY LEADER,Q3,GENERAL EXPENDITURES,SUPPLIES AND MATERIALS,DETAIL,2018-08-23,AP,E0650801,CAPITOL  HOST,2018-07-24,2018-07-24,FOOD & BEVERAGE,73.25,2018
,2018 OFFICE OF THE MINORITY LEADER,Q3,GENERAL EXPENDITURES,SUPPLIES AND MATERIALS,DETAIL,2018-08-23,AP,E0650802,CAPITOL  HOST,2018-07-19,2018-07-19,FOOD & BEVERAGE,158.04,2018
,2018 OFFICE OF THE MINORITY LEADER,Q3,GENERAL EXPENDITURES,SUPPLIES AND MATERIALS,DETAIL,2018-08-23,AP,E0650803,CAPITOL  HOST,2018-07-18,2018-07-18,FOOD & BEVERAGE,866.69,2018
,2018 OFFICE OF THE MINORITY LEADER,Q3,GENERAL EXPENDITURES,SUPPLIES AND MATERIALS,DETAIL,2018-08-31,AP,1011712,CONNECTION,2018-06-25,2018-08-01,OFFICE SUPPLIES (OUTSIDE) QTY - 2,76,2018
,2018 OFFICE OF THE MINORITY LEADER,Q3,GENERAL EXPENDITURES,SUPPLIES AND MATERIALS,DETAIL,2018-08-31,AP,1011712,CONNECTION,2018-06-25,2018-08-01,OFFICE SUPPLIES (OUTSIDE),337,2018
,2018 OFFICE OF THE MINORITY LEADER,Q3,GENERAL EXPENDITURES,SUPPLIES AND MATERIALS,DETAIL,2018-08-31,AP,1011712,CONNECTION,2018-06-25,2018-08-01,SOFTWARE  LESS THAN  $500,42,2018
,2018 OFFICE OF THE MINORITY LEADER,Q3,GENERAL EXPENDITURES,SUPPLIES AND MATERIALS,DETAIL,2018-08-31,GL,RMS0081182, ,2018-08-01,2018-08-31,OFFICE SUPPLY (TRANSFER),277.06,2018
,2018 OFFICE OF THE MINORITY LEADER,Q3,GENERAL EXPENDITURES,SUPPLIES AND MATERIALS,DETAIL,2018-09-14,AP,E0655025,CONNECTION,2018-08-09,2018-08-09,OFFICE SUPPLIES (OUTSIDE),68.67,2018
,2018 OFFICE OF THE MINORITY LEADER,Q3,GENERAL EXPENDITURES,SUPPLIES AND MATERIALS,DETAIL,2018-09-16,AP,E0655029,CAPITOL  HOST,2018-09-04,2018-09-04,FOOD & BEVERAGE,73.25,2018
,2018 OFFICE OF THE MINORITY LEADER,Q3,GENERAL EXPENDITURES,SUPPLIES AND MATERIALS,DETAIL,2018-09-16,AP,E0655031,CAPITOL  HOST,2018-08-28,2018-08-28,FOOD & BEVERAGE,100.94,2018
,2018 OFFICE OF THE MINORITY LEADER,Q3,GENERAL EXPENDITURES,SUPPLIES AND MATERIALS,DETAIL,2018-09-16,AP,E0655039,WEST JULIUS L,2018-07-11,2018-07-11,FOOD & BEVERAGE,159.44,2018
,2018 OFFICE OF THE MINORITY LEADER,Q3,GENERAL EXPENDITURES,SUPPLIES AND MATERIALS,DETAIL,2018-09-18,AP,E0655023,CONNECTION,2018-06-26,2018-06-26,OFFICE SUPPLIES (OUTSIDE),395.32,2018
,2018 OFFICE OF THE MINORITY LEADER,Q3,GENERAL EXPENDITURES,SUPPLIES AND MATERIALS,DETAIL,2018-09-18,AP,E0655024,CONNECTION,2018-07-11,2018-07-11,OFFICE SUPPLIES (OUTSIDE),337.99,2018
,2018 OFFICE OF THE MINORITY LEADER,Q3,GENERAL EXPENDITURES,SUPPLIES AND MATERIALS,DETAIL,2018-09-18,AP,E0655028,BGOV LLC,2018-09-01,2019-02-28,PUBLICATIONS/REFERENCE MAT'L,2970,2018
,2018 OFFICE OF THE MINORITY LEADER,Q3,GENERAL EXPENDITURES,SUPPLIES AND MATERIALS,DETAIL,2018-09-24,AP,E0656899,SOUTHWEST DISTRIBUTION INC,2018-10-01,2018-12-31,PUBLICATIONS/REFERENCE MAT'L,4013.1,2018
,2018 OFFICE OF THE MINORITY LEADER,Q3,GENERAL EXPENDITURES,SUPPLIES AND MATERIALS,DETAIL,2018-09-26,AP,1019131,CITI PCARD-TARGET,2018-07-28,2018-08-28,FOOD & BEVERAGE,193.96,2018
,2018 OFFICE OF THE MINORITY LEADER,Q3,GENERAL EXPENDITURES,SUPPLIES AND MATERIALS,DETAIL,2018-09-26,AP,1019131,CITI PCARD-TARGET,2018-07-28,2018-08-28,OFFICE SUPPLIES (OUTSIDE),14.99,2018
,2018 OFFICE OF THE MINORITY LEADER,Q3,GENERAL EXPENDITURES,SUPPLIES AND MATERIALS,DETAIL,2018-09-26,AP,1019131,CITI PCARD-WWW COSTCO COM,2018-07-28,2018-08-28,OFFICE SUPPLIES (OUTSIDE),168.95,2018
,2018 OFFICE OF THE MINORITY LEADER,Q3,GENERAL EXPENDITURES,SUPPLIES AND MATERIALS,DETAIL,2018-09-26,AP,E0656560,KNOWWHO,2018-07-01,2019-06-30,PUBLICATIONS/REFERENCE MAT'L,3547.5,2018
,2018 OFFICE OF THE MINORITY LEADER,Q3,GENERAL EXPENDITURES,SUPPLIES AND MATERIALS,DETAIL,2018-09-28,AP,1019602,KNOWWHO,2018-07-01,2019-06-30,PUBLICATIONS/REFERENCE MAT'L,-3547.5,2018
,2018 OFFICE OF THE MINORITY LEADER,Q3,GENERAL EXPENDITURES,SUPPLIES AND MATERIALS,DETAIL,2018-09-28,GL,RMS0082045, ,2018-09-01,2018-09-30,OFFICE SUPPLY (TRANSFER),774.09,2018
,2018 OFFICE OF THE MINORITY LEADER,Q3,GENERAL EXPENDITURES,SUPPLIES AND MATERIALS,SUBTOTAL,   ,   ,   ,   ,   ,   ,SUPPLIES AND MATERIALS TOTALS:,33460.23,2018
,2018 OFFICE OF THE MINORITY LEADER,Q3,GENERAL EXPENDITURES,EQUIPMENT,DETAIL,2018-07-18,AP,E0640773,SPROUT SOCIAL INC,2018-05-02,2019-01-01,COMPUTER SOFTW PURCH  LESS THAN $10 000,1192,2018
,2018 OFFICE OF THE MINORITY LEADER,Q3,GENERAL EXPENDITURES,EQUIPMENT,DETAIL,2018-07-18,AP,E0640824,DEWHIRST DIANE,2018-06-12,2018-06-12,MAINTENANCE / REPAIRS,149,2018
,2018 OFFICE OF THE MINORITY LEADER,Q3,GENERAL EXPENDITURES,EQUIPMENT,DETAIL,2018-07-31,GL,MNT0080188, ,2018-07-01,2018-07-31,MAINTENANCE / REPAIRS,1028.75,2018
,2018 OFFICE OF THE MINORITY LEADER,Q3,GENERAL EXPENDITURES,EQUIPMENT,DETAIL,2018-08-22,AP,E0650805,KUHN ELENA M.,2018-08-04,2018-08-04,MAINTENANCE / REPAIRS,149,2018
,2018 OFFICE OF THE MINORITY LEADER,Q3,GENERAL EXPENDITURES,EQUIPMENT,DETAIL,2018-08-31,AP,1011712,CONNECTION,2018-06-25,2018-08-01,COMPUTER HARDW PURCH  LESS THAN $25 000,6319.99,2018
,2018 OFFICE OF THE MINORITY LEADER,Q3,GENERAL EXPENDITURES,EQUIPMENT,DETAIL,2018-08-31,GL,MNT0081088, ,2018-08-01,2018-08-30,MAINTENANCE / REPAIRS,95.56,2018
,2018 OFFICE OF THE MINORITY LEADER,Q3,GENERAL EXPENDITURES,EQUIPMENT,DETAIL,2018-08-31,GL,MNT0081088, ,2018-08-01,2018-08-31,MAINTENANCE / REPAIRS,930,2018
,2018 OFFICE OF THE MINORITY LEADER,Q3,GENERAL EXPENDITURES,EQUIPMENT,DETAIL,2018-09-28,GL,MNT0081912, ,2018-09-01,2018-09-30,MAINTENANCE / REPAIRS,930,2018
,2018 OFFICE OF THE MINORITY LEADER,Q3,GENERAL EXPENDITURES,EQUIPMENT,SUBTOTAL,   ,   ,   ,   ,   ,   ,EQUIPMENT TOTALS:,10794.3,2018
,2018 OFFICE OF THE MINORITY LEADER,Q3,GENERAL EXPENDITURES,EQUIPMENT,SUBTOTAL,   ,   ,   ,   ,   ,   ,GENERAL EXPENDITURES TOTALS:,1639048.11,2018
,2018 OFFICE OF THE MINORITY LEADER,Q3,GENERAL EXPENDITURES,EQUIPMENT,GRAND TOTAL FOR ORGANIZATION,   ,   ,   ,   ,   ,   ,OFFICE TOTALS: ,1639048.11,2018
,2018 OFFICE OF THE MAJORITY WHIP,Q3,GENERAL EXPENDITURES,PERSONNEL COMPENSATION,DETAIL,   ,   ,   ,ACORNLEY MARK A.,2018-07-01,2018-09-30,FINANCIAL ADMINISTRATOR,3750,2018
,2018 OFFICE OF THE MAJORITY WHIP,Q3,GENERAL EXPENDITURES,PERSONNEL COMPENSATION,DETAIL,   ,   ,   ,BAILEY LUCAS J,2018-07-01,2018-08-31,STAFF ASSISTANT,6000,2018
,2018 OFFICE OF THE MAJORITY WHIP,Q3,GENERAL EXPENDITURES,PERSONNEL COMPENSATION,DETAIL,   ,   ,   ,BOND CHRISTOPHER J,2018-07-01,2018-09-30,COMMUNICATIONS DIRECTOR,34700.91,2018
,2018 OFFICE OF THE MAJORITY WHIP,Q3,GENERAL EXPENDITURES,PERSONNEL COMPENSATION,DETAIL,   ,   ,   ,CLARKE JOHN L,2018-06-22,2018-09-30,STAFF ASSISTANT,10020,2018
,2018 OFFICE OF THE MAJORITY WHIP,Q3,GENERAL EXPENDITURES,PERSONNEL COMPENSATION,DETAIL,   ,   ,   ,COMER II MICHAEL D,2018-07-01,2018-09-30,DIGITAL CORRESPONDENT,23750.01,2018
,2018 OFFICE OF THE MAJORITY WHIP,Q3,GENERAL EXPENDITURES,PERSONNEL COMPENSATION,DETAIL,   ,   ,   ,FINE LAUREN R,2018-07-01,2018-09-30,PRESS SECRETARY,25632.67,2018
,2018 OFFICE OF THE MAJORITY WHIP,Q3,GENERAL EXPENDITURES,PERSONNEL COMPENSATION,DETAIL,   ,   ,   ,GOSNELL ELLEN C,2018-07-01,2018-09-30,SCHEDULE COORDINATOR,15625.01,2018
,2018 OFFICE OF THE MAJORITY WHIP,Q3,GENERAL EXPENDITURES,PERSONNEL COMPENSATION,DETAIL,   ,   ,   ,HAMILTON PARKER,2018-07-01,2018-09-30,COS TO THE CHIEF DEP WHIP,30000,2018
,2018 OFFICE OF THE MAJORITY WHIP,Q3,GENERAL EXPENDITURES,PERSONNEL COMPENSATION,DETAIL,   ,   ,   ,HORTON BRETT H.,2018-07-01,2018-09-30,CHIEF OF STAFF,42825,2018
,2018 OFFICE OF THE MAJORITY WHIP,Q3,GENERAL EXPENDITURES,PERSONNEL COMPENSATION,DETAIL,   ,   ,   ,HOWARD BENJAMIN R,2018-07-01,2018-09-30,FLOOR DIRECTOR,38200.91,2018
,2018 OFFICE OF THE MAJORITY WHIP,Q3,GENERAL EXPENDITURES,PERSONNEL COMPENSATION,DETAIL,   ,   ,   ,HUDAK KELLEY K,2018-07-01,2018-09-30,BUSINESS COALITIONS COORD,24036,2018
,2018 OFFICE OF THE MAJORITY WHIP,Q3,GENERAL EXPENDITURES,PERSONNEL COMPENSATION,DETAIL,   ,   ,   ,HUGHES WILLIAM J,2018-07-01,2018-09-30,POLICY DIRECTOR,42674.01,2018
,2018 OFFICE OF THE MAJORITY WHIP,Q3,GENERAL EXPENDITURES,PERSONNEL COMPENSATION,DETAIL,   ,   ,   ,KALLAM BARRETT M.,2018-08-10,2018-08-15,INTERN,100,2018
,2018 OFFICE OF THE MAJORITY WHIP,Q3,GENERAL EXPENDITURES,PERSONNEL COMPENSATION,DETAIL,   ,   ,   ,LEWIS WILLIAM M,2018-08-01,2018-08-30,SENIOR LEGISLATIVE ASSISTANT,-200,2018
,2018 OFFICE OF THE MAJORITY WHIP,Q3,GENERAL EXPENDITURES,PERSONNEL COMPENSATION,DETAIL,   ,   ,   ,MCKEOGH KATHERINE A,2018-07-01,2018-09-30,PRESS ASSISTANT,13750,2018
,2018 OFFICE OF THE MAJORITY WHIP,Q3,GENERAL EXPENDITURES,PERSONNEL COMPENSATION,DETAIL,   ,   ,   ,NALLS DENNIS A,2018-07-01,2018-09-30,STAFF ASSISTANT,11499.99,2018
,2018 OFFICE OF THE MAJORITY WHIP,Q3,GENERAL EXPENDITURES,PERSONNEL COMPENSATION,DETAIL,   ,   ,   ,NAPIER BENJAMIN W,2018-07-01,2018-09-30,DEPUTY FLOOR DIRECTOR,21632.67,2018
,2018 OFFICE OF THE MAJORITY WHIP,Q3,GENERAL EXPENDITURES,PERSONNEL COMPENSATION,DETAIL,   ,   ,   ,PLANNING DAVID M,2018-07-01,2018-09-30,FLOOR ASSISTANT,19000.01,2018
,2018 OFFICE OF THE MAJORITY WHIP,Q3,GENERAL EXPENDITURES,PERSONNEL COMPENSATION,DETAIL,   ,   ,   ,POE PHILIP D,2018-07-01,2018-09-30,SPECIAL ASSISTANT TO THE CHIEF,7500,2018
,2018 OFFICE OF THE MAJORITY WHIP,Q3,GENERAL EXPENDITURES,PERSONNEL COMPENSATION,DETAIL,   ,   ,   ,REISER MARTIN G,2018-07-01,2018-09-30,LEGISLATIVE COUNSEL,42000,2018
,2018 OFFICE OF THE MAJORITY WHIP,Q3,GENERAL EXPENDITURES,PERSONNEL COMPENSATION,DETAIL,   ,   ,   ,REISING JOHN B,2018-07-01,2018-09-30,DIRECTOR OF MEMBER SERVICES,37451.83,2018
,2018 OFFICE OF THE MAJORITY WHIP,Q3,GENERAL EXPENDITURES,PERSONNEL COMPENSATION,DETAIL,   ,   ,   ,SADLOSKY DANIEL J,2018-07-01,2018-09-30,POLICY ASSISTANT,33000,2018
,2018 OFFICE OF THE MAJORITY WHIP,Q3,GENERAL EXPENDITURES,PERSONNEL COMPENSATION,DETAIL,   ,   ,   ,WALKER STEVEN C,2018-08-13,2018-09-30,STAFF ASSISTANT,4666.67,2018
,2018 OFFICE OF THE MAJORITY WHIP,Q3,GENERAL EXPENDITURES,PERSONNEL COMPENSATION,DETAIL,   ,   ,   ,WELKER RYLEE M,2018-07-01,2018-09-30,SPECIAL ASSISTANT TO THE CHIEF,12000,2018
,2018 OFFICE OF THE MAJORITY WHIP,Q3,GENERAL EXPENDITURES,PERSONNEL COMPENSATION,DETAIL,   ,   ,   ,WIEAND JR JEFFREY L,2018-07-01,2018-09-30,COUNSEL,29034.59,2018
,2018 OFFICE OF THE MAJORITY WHIP,Q3,GENERAL EXPENDITURES,PERSONNEL COMPENSATION,DETAIL,   ,   ,   ,ZUCCARELLI JORDAN A,2018-08-14,2018-08-31,INTERN,283.33,2018
,2018 OFFICE OF THE MAJORITY WHIP,Q3,GENERAL EXPENDITURES,PERSONNEL COMPENSATION,SUBTOTAL,   ,   ,   ,   ,   ,   ,PERSONNEL COMPENSATION TOTALS:,528933.61,2018
,2018 OFFICE OF THE MAJORITY WHIP,Q3,GENERAL EXPENDITURES,TRAVEL,DETAIL,2018-07-26,AP,E0643219,CITIBANK GOV CARD SERVICE,2018-06-01,2018-06-05,COMMERCIAL TRANSPORTATION,317.2,2018
,2018 OFFICE OF THE MAJORITY WHIP,Q3,GENERAL EXPENDITURES,TRAVEL,DETAIL,2018-07-26,AP,E0643219,CITIBANK GOV CARD SERVICE,2018-06-14,2018-06-16,LODGING,355.88,2018
,2018 OFFICE OF THE MAJORITY WHIP,Q3,GENERAL EXPENDITURES,TRAVEL,DETAIL,2018-07-31,AP,E0644071,HORTON BRETT H.,2018-06-14,2018-06-17,LODGING,883.52,2018
,2018 OFFICE OF THE MAJORITY WHIP,Q3,GENERAL EXPENDITURES,TRAVEL,DETAIL,2018-07-31,AP,E0644071,HORTON BRETT H.,2018-05-10,2018-05-14,CAR RENTAL,448.01,2018
,2018 OFFICE OF THE MAJORITY WHIP,Q3,GENERAL EXPENDITURES,TRAVEL,DETAIL,2018-07-31,AP,E0644071,HORTON BRETT H.,2018-06-17,2018-06-17,GASOLINE,22.56,2018
,2018 OFFICE OF THE MAJORITY WHIP,Q3,GENERAL EXPENDITURES,TRAVEL,DETAIL,2018-07-31,AP,E0644071,HORTON BRETT H.,2018-06-14,2018-07-12,TAXI/PARKING/TOLLS,474.4,2018
,2018 OFFICE OF THE MAJORITY WHIP,Q3,GENERAL EXPENDITURES,TRAVEL,DETAIL,2018-07-31,AP,E0644804,CITIBANK GOV CARD SERVICE,2018-05-10,2018-05-14,COMMERCIAL TRANSPORTATION,771.6,2018
,2018 OFFICE OF THE MAJORITY WHIP,Q3,GENERAL EXPENDITURES,TRAVEL,DETAIL,2018-07-31,AP,E0644804,CITIBANK GOV CARD SERVICE,2018-04-29,2018-04-30,LODGING,173.76,2018
,2018 OFFICE OF THE MAJORITY WHIP,Q3,GENERAL EXPENDITURES,TRAVEL,DETAIL,2018-09-02,AP,E0652452,NALLS DENNIS A.,2018-04-16,2018-04-30,PRIVATE AUTO MILEAGE,37.61,2018
,2018 OFFICE OF THE MAJORITY WHIP,Q3,GENERAL EXPENDITURES,TRAVEL,DETAIL,2018-09-02,AP,E0652452,NALLS DENNIS A.,2018-06-06,2018-06-06,PRIVATE AUTO MILEAGE,4.36,2018
,2018 OFFICE OF THE MAJORITY WHIP,Q3,GENERAL EXPENDITURES,TRAVEL,DETAIL,2018-09-02,AP,E0652452,NALLS DENNIS A.,2018-07-10,2018-07-27,TAXI/PARKING/TOLLS,18,2018
,2018 OFFICE OF THE MAJORITY WHIP,Q3,GENERAL EXPENDITURES,TRAVEL,DETAIL,2018-09-02,AP,E0652453,CITIBANK GOV CARD SERVICE,2018-08-08,2018-08-13,COMMERCIAL TRANSPORTATION,846.6,2018
,2018 OFFICE OF THE MAJORITY WHIP,Q3,GENERAL EXPENDITURES,TRAVEL,SUBTOTAL,   ,   ,   ,   ,   ,   ,TRAVEL TOTALS:,4353.5,2018
,2018 OFFICE OF THE MAJORITY WHIP,Q3,GENERAL EXPENDITURES,RENT  COMMUNICATION  UTILITIES,DETAIL,2018-07-26,GL,EMS0080133, ,2018-06-01,2018-06-30,DC TELECOM EQUIP (TRANSFER),96,2018
,2018 OFFICE OF THE MAJORITY WHIP,Q3,GENERAL EXPENDITURES,RENT  COMMUNICATION  UTILITIES,DETAIL,2018-07-26,GL,EMS0080133, ,2018-06-01,2018-06-30,DC TELECOM SERV (TRANSFER),451.25,2018
,2018 OFFICE OF THE MAJORITY WHIP,Q3,GENERAL EXPENDITURES,RENT  COMMUNICATION  UTILITIES,DETAIL,2018-07-26,GL,EMS0080133, ,2018-06-01,2018-06-30,DC TELECOM TOLLS (TRANSFER),3190.39,2018
,2018 OFFICE OF THE MAJORITY WHIP,Q3,GENERAL EXPENDITURES,RENT  COMMUNICATION  UTILITIES,DETAIL,2018-07-31,AP,E0644071,HORTON BRETT H.,2018-04-26,2018-04-26,POSTAGE / COURIER / BOX RENTAL,24.7,2018
,2018 OFFICE OF THE MAJORITY WHIP,Q3,GENERAL EXPENDITURES,RENT  COMMUNICATION  UTILITIES,DETAIL,2018-07-31,AP,E0644071,HORTON BRETT H.,2018-05-25,2018-06-02,UTILITIES,57.9,2018
,2018 OFFICE OF THE MAJORITY WHIP,Q3,GENERAL EXPENDITURES,RENT  COMMUNICATION  UTILITIES,DETAIL,2018-08-27,GL,EMS0080878, ,2018-07-01,2018-07-31,DC TELECOM EQUIP (TRANSFER),96,2018
,2018 OFFICE OF THE MAJORITY WHIP,Q3,GENERAL EXPENDITURES,RENT  COMMUNICATION  UTILITIES,DETAIL,2018-08-27,GL,EMS0080878, ,2018-07-01,2018-07-31,DC TELECOM SERV (TRANSFER),451.25,2018
,2018 OFFICE OF THE MAJORITY WHIP,Q3,GENERAL EXPENDITURES,RENT  COMMUNICATION  UTILITIES,DETAIL,2018-08-27,GL,EMS0080878, ,2018-07-01,2018-07-31,DC TELECOM TOLLS (TRANSFER),2586.24,2018
,2018 OFFICE OF THE MAJORITY WHIP,Q3,GENERAL EXPENDITURES,RENT  COMMUNICATION  UTILITIES,DETAIL,2018-09-25,GL,EMS0081714, ,2018-08-01,2018-08-31,DC TELECOM EQUIP (TRANSFER),96,2018
,2018 OFFICE OF THE MAJORITY WHIP,Q3,GENERAL EXPENDITURES,RENT  COMMUNICATION  UTILITIES,DETAIL,2018-09-25,GL,EMS0081714, ,2018-08-01,2018-08-31,DC TELECOM SERV (TRANSFER),451.25,2018
,2018 OFFICE OF THE MAJORITY WHIP,Q3,GENERAL EXPENDITURES,RENT  COMMUNICATION  UTILITIES,DETAIL,2018-09-25,GL,EMS0081714, ,2018-08-01,2018-08-31,DC TELECOM TOLLS (TRANSFER),2607.14,2018
,2018 OFFICE OF THE MAJORITY WHIP,Q3,GENERAL EXPENDITURES,RENT  COMMUNICATION  UTILITIES,SUBTOTAL,   ,   ,   ,   ,   ,   ,RENT  COMMUNICATION  UTILITIES TOTALS:,10108.12,2018
,2018 OFFICE OF THE MAJORITY WHIP,Q3,GENERAL EXPENDITURES,PRINTING AND REPRODUCTION,DETAIL,2018-07-05,AP,E0637939,SHARP BUSINESS SYSTEMS,2018-02-26,2018-05-30,PRINTING & REPRODUCTION,859.8,2018
,2018 OFFICE OF THE MAJORITY WHIP,Q3,GENERAL EXPENDITURES,PRINTING AND REPRODUCTION,DETAIL,2018-07-19,AP,1004523,CITI PCARD-STK SHUTTERSTOCK INC.,2018-05-29,2018-06-28,PRINTING & REPRODUCTION,169,2018
,2018 OFFICE OF THE MAJORITY WHIP,Q3,GENERAL EXPENDITURES,PRINTING AND REPRODUCTION,DETAIL,2018-07-30,AP,1005211,CITIBANK P CARD,2018-05-29,2018-06-28,PRINTING & REPRODUCTION,-169,2018
,2018 OFFICE OF THE MAJORITY WHIP,Q3,GENERAL EXPENDITURES,PRINTING AND REPRODUCTION,DETAIL,2018-07-30,GL,PIX0080134, ,2018-07-01,2018-07-31,PHOTOGRAPHIC (TRANSFER),5,2018
,2018 OFFICE OF THE MAJORITY WHIP,Q3,GENERAL EXPENDITURES,PRINTING AND REPRODUCTION,DETAIL,2018-09-25,GL,PIX0081715, ,2018-09-01,2018-09-30,PHOTOGRAPHIC (TRANSFER),15,2018
,2018 OFFICE OF THE MAJORITY WHIP,Q3,GENERAL EXPENDITURES,PRINTING AND REPRODUCTION,DETAIL,2018-09-26,AP,1019131,CITI PCARD-STICKER MULE,2018-07-28,2018-08-28,PRINTING & REPRODUCTION,364,2018
,2018 OFFICE OF THE MAJORITY WHIP,Q3,GENERAL EXPENDITURES,PRINTING AND REPRODUCTION,SUBTOTAL,   ,   ,   ,   ,   ,   ,PRINTING AND REPRODUCTION TOTALS:,1243.8,2018
,2018 OFFICE OF THE MAJORITY WHIP,Q3,GENERAL EXPENDITURES,OTHER SERVICES,DETAIL,2018-07-12,AP,E0640125,ENGAGE LLC,2018-06-01,2018-06-30,TECHNOLOGY SERVICE CONTRACTS,500,2018
,2018 OFFICE OF THE MAJORITY WHIP,Q3,GENERAL EXPENDITURES,OTHER SERVICES,DETAIL,2018-07-16,AP,1001329,HOUSECALL LLC,2018-07-01,2018-07-31,TECHNOLOGY SERVICE CONTRACTS,5125,2018
,2018 OFFICE OF THE MAJORITY WHIP,Q3,GENERAL EXPENDITURES,OTHER SERVICES,DETAIL,2018-07-16,AP,E0640126,ICONSTITUENT LLC,2018-07-01,2018-07-31,WEB DEV HST EMAIL & RLTD SERV,500,2018
,2018 OFFICE OF THE MAJORITY WHIP,Q3,GENERAL EXPENDITURES,OTHER SERVICES,DETAIL,2018-07-26,AP,E0643212,GULF PARTYLINE CORPORATION,2018-06-01,2018-06-30,TECHNOLOGY SERVICE CONTRACTS,2500,2018
,2018 OFFICE OF THE MAJORITY WHIP,Q3,GENERAL EXPENDITURES,OTHER SERVICES,DETAIL,2018-08-15,AP,E0648317,ENGAGE LLC,2018-07-01,2018-07-31,TECHNOLOGY SERVICE CONTRACTS,500,2018
,2018 OFFICE OF THE MAJORITY WHIP,Q3,GENERAL EXPENDITURES,OTHER SERVICES,DETAIL,2018-08-16,AP,1009752,HOUSECALL LLC,2018-08-01,2018-08-31,TECHNOLOGY SERVICE CONTRACTS,5125,2018
,2018 OFFICE OF THE MAJORITY WHIP,Q3,GENERAL EXPENDITURES,OTHER SERVICES,DETAIL,2018-08-17,AP,1010486,CITI PCARD-APL  ITUNES.COM/BILL,2018-06-29,2018-07-27,TECHNOLOGY SERVICE CONTRACTS,0.99,2018
,2018 OFFICE OF THE MAJORITY WHIP,Q3,GENERAL EXPENDITURES,OTHER SERVICES,DETAIL,2018-08-17,AP,1010486,CITI PCARD-MAILCHIMP    MONTHLY,2018-06-29,2018-07-27,WEB DEV HST EMAIL & RLTD SERV,259,2018
,2018 OFFICE OF THE MAJORITY WHIP,Q3,GENERAL EXPENDITURES,OTHER SERVICES,DETAIL,2018-08-22,AP,E0649952,GULF PARTYLINE CORPORATION,2018-07-01,2018-07-31,TECHNOLOGY SERVICE CONTRACTS,2500,2018
,2018 OFFICE OF THE MAJORITY WHIP,Q3,GENERAL EXPENDITURES,OTHER SERVICES,DETAIL,2018-09-13,AP,E0654552,ENGAGE LLC,2018-08-01,2018-08-31,TECHNOLOGY SERVICE CONTRACTS,500,2018
,2018 OFFICE OF THE MAJORITY WHIP,Q3,GENERAL EXPENDITURES,OTHER SERVICES,DETAIL,2018-09-14,AP,E0654551,ICONSTITUENT LLC,2018-09-01,2018-09-30,WEB DEV HST EMAIL & RLTD SERV,500,2018
,2018 OFFICE OF THE MAJORITY WHIP,Q3,GENERAL EXPENDITURES,OTHER SERVICES,DETAIL,2018-09-16,AP,1014683,HOUSECALL LLC,2018-09-01,2018-09-30,TECHNOLOGY SERVICE CONTRACTS,5125,2018
,2018 OFFICE OF THE MAJORITY WHIP,Q3,GENERAL EXPENDITURES,OTHER SERVICES,DETAIL,2018-09-26,AP,1019131,CITI PCARD-APL  ITUNES.COM/BILL,2018-07-28,2018-08-28,TECHNOLOGY SERVICE CONTRACTS,0.99,2018
,2018 OFFICE OF THE MAJORITY WHIP,Q3,GENERAL EXPENDITURES,OTHER SERVICES,DETAIL,2018-09-26,AP,1019131,CITI PCARD-APL ITUNES.COM/BILL,2018-07-28,2018-08-28,TECHNOLOGY SERVICE CONTRACTS,1.98,2018
,2018 OFFICE OF THE MAJORITY WHIP,Q3,GENERAL EXPENDITURES,OTHER SERVICES,DETAIL,2018-09-26,AP,1019131,CITI PCARD-MAILCHIMP    MONTHLY,2018-07-28,2018-08-28,WEB DEV HST EMAIL & RLTD SERV,259,2018
,2018 OFFICE OF THE MAJORITY WHIP,Q3,GENERAL EXPENDITURES,OTHER SERVICES,SUBTOTAL,   ,   ,   ,   ,   ,   ,OTHER SERVICES TOTALS:,23396.96,2018
,2018 OFFICE OF THE MAJORITY WHIP,Q3,GENERAL EXPENDITURES,SUPPLIES AND MATERIALS,DETAIL,2018-07-03,AP,E0637938,QUENCH,2018-07-01,2018-07-31,WATER,46.53,2018
,2018 OFFICE OF THE MAJORITY WHIP,Q3,GENERAL EXPENDITURES,SUPPLIES AND MATERIALS,DETAIL,2018-07-19,AP,1004523,CITI PCARD-AMAZON MKTPLACE PMTS,2018-05-29,2018-06-28,OFFICE SUPPLIES (OUTSIDE),163.06,2018
,2018 OFFICE OF THE MAJORITY WHIP,Q3,GENERAL EXPENDITURES,SUPPLIES AND MATERIALS,DETAIL,2018-07-19,AP,1004523,CITI PCARD-AMAZON MKTPLACE PMTS W,2018-05-29,2018-06-28,OFFICE SUPPLIES (OUTSIDE),84.94,2018
,2018 OFFICE OF THE MAJORITY WHIP,Q3,GENERAL EXPENDITURES,SUPPLIES AND MATERIALS,DETAIL,2018-07-19,AP,1004523,CITI PCARD-AMAZON.COM AMZN.COM/BI,2018-05-29,2018-06-28,OFFICE SUPPLIES (OUTSIDE),459.56,2018
,2018 OFFICE OF THE MAJORITY WHIP,Q3,GENERAL EXPENDITURES,SUPPLIES AND MATERIALS,DETAIL,2018-07-19,AP,1004523,CITI PCARD-APL  ITUNES.COM/BILL,2018-05-29,2018-06-28,PUBLICATIONS/REFERENCE MAT'L,0.99,2018
,2018 OFFICE OF THE MAJORITY WHIP,Q3,GENERAL EXPENDITURES,SUPPLIES AND MATERIALS,DETAIL,2018-07-19,AP,1004523,CITI PCARD-APL ITUNES.COM/BILL,2018-05-29,2018-06-28,SOFTWARE  LESS THAN  $500,0.99,2018
,2018 OFFICE OF THE MAJORITY WHIP,Q3,GENERAL EXPENDITURES,SUPPLIES AND MATERIALS,DETAIL,2018-07-19,AP,1004523,CITI PCARD-FS  WALLS.IO,2018-05-29,2018-06-28,SOFTWARE  LESS THAN  $500,100,2018
,2018 OFFICE OF THE MAJORITY WHIP,Q3,GENERAL EXPENDITURES,SUPPLIES AND MATERIALS,DETAIL,2018-07-19,AP,1004523,CITI PCARD-GAINAPP.COM,2018-05-29,2018-06-28,PUBLICATIONS/REFERENCE MAT'L,80,2018
,2018 OFFICE OF THE MAJORITY WHIP,Q3,GENERAL EXPENDITURES,SUPPLIES AND MATERIALS,DETAIL,2018-07-19,AP,1004523,CITI PCARD-MAILCHIMP    MONTHLY,2018-05-29,2018-06-28,PUBLICATIONS/REFERENCE MAT'L,259,2018
,2018 OFFICE OF THE MAJORITY WHIP,Q3,GENERAL EXPENDITURES,SUPPLIES AND MATERIALS,DETAIL,2018-07-24,AP,1002138,OFFICE DEPOT INC,2018-06-20,2018-06-20,FOOD & BEVERAGE,46.43,2018
,2018 OFFICE OF THE MAJORITY WHIP,Q3,GENERAL EXPENDITURES,SUPPLIES AND MATERIALS,DETAIL,2018-07-24,AP,1002138,OFFICE DEPOT INC,2018-06-20,2018-06-20,OFFICE SUPPLIES (OUTSIDE),90.75,2018
,2018 OFFICE OF THE MAJORITY WHIP,Q3,GENERAL EXPENDITURES,SUPPLIES AND MATERIALS,DETAIL,2018-07-30,AP,1005211,CITIBANK P CARD,2018-05-29,2018-06-28,SOFTWARE  LESS THAN  $500,-100.99,2018
,2018 OFFICE OF THE MAJORITY WHIP,Q3,GENERAL EXPENDITURES,SUPPLIES AND MATERIALS,DETAIL,2018-07-30,AP,1005211,CITIBANK P CARD,2018-05-29,2018-06-28,PUBLICATIONS/REFERENCE MAT'L,269.99,2018
,2018 OFFICE OF THE MAJORITY WHIP,Q3,GENERAL EXPENDITURES,SUPPLIES AND MATERIALS,DETAIL,2018-07-31,AP,E0643213,SHARP BUSINESS SYSTEMS,2018-02-13,2018-02-13,OFFICE SUPPLIES (OUTSIDE),49,2018
,2018 OFFICE OF THE MAJORITY WHIP,Q3,GENERAL EXPENDITURES,SUPPLIES AND MATERIALS,DETAIL,2018-07-31,AP,E0644071,HORTON BRETT H.,2018-07-09,2018-07-09,OFFICE SUPPLIES (OUTSIDE),63.91,2018
,2018 OFFICE OF THE MAJORITY WHIP,Q3,GENERAL EXPENDITURES,SUPPLIES AND MATERIALS,DETAIL,2018-07-31,GL,RMS0080260, ,2018-07-01,2018-07-31,OFFICE SUPPLY (TRANSFER),86,2018
,2018 OFFICE OF THE MAJORITY WHIP,Q3,GENERAL EXPENDITURES,SUPPLIES AND MATERIALS,DETAIL,2018-08-15,AP,E0648291,QUENCH,2018-08-01,2018-08-31,WATER,46.53,2018
,2018 OFFICE OF THE MAJORITY WHIP,Q3,GENERAL EXPENDITURES,SUPPLIES AND MATERIALS,DETAIL,2018-08-15,AP,E0648303,ICONSTITUENT LLC,2018-08-01,2018-08-31,PUBLICATIONS/REFERENCE MAT'L,500,2018
,2018 OFFICE OF THE MAJORITY WHIP,Q3,GENERAL EXPENDITURES,SUPPLIES AND MATERIALS,DETAIL,2018-08-15,AP,E0648520,CRITICAL MENTION,2018-07-03,2018-12-31,PUBLICATIONS/REFERENCE MAT'L,1500,2018
,2018 OFFICE OF THE MAJORITY WHIP,Q3,GENERAL EXPENDITURES,SUPPLIES AND MATERIALS,DETAIL,2018-08-17,AP,1010486,CITI PCARD-AMAZON MKTPLACE PMTS,2018-06-29,2018-07-27,HABITATION EXPENSE,19.95,2018
,2018 OFFICE OF THE MAJORITY WHIP,Q3,GENERAL EXPENDITURES,SUPPLIES AND MATERIALS,DETAIL,2018-08-17,AP,1010486,CITI PCARD-AMAZON MKTPLACE PMTS,2018-06-29,2018-07-27,OFFICE SUPPLIES (OUTSIDE),106.44,2018
,2018 OFFICE OF THE MAJORITY WHIP,Q3,GENERAL EXPENDITURES,SUPPLIES AND MATERIALS,DETAIL,2018-08-17,AP,1010486,CITI PCARD-AMAZON MKTPLACE PMTS W,2018-06-29,2018-07-27,OFFICE SUPPLIES (OUTSIDE),103.95,2018
,2018 OFFICE OF THE MAJORITY WHIP,Q3,GENERAL EXPENDITURES,SUPPLIES AND MATERIALS,DETAIL,2018-08-17,AP,1010486,CITI PCARD-AMAZON.COM AMZN.COM/BI,2018-06-29,2018-07-27,OFFICE SUPPLIES (OUTSIDE),33.28,2018
,2018 OFFICE OF THE MAJORITY WHIP,Q3,GENERAL EXPENDITURES,SUPPLIES AND MATERIALS,DETAIL,2018-08-17,AP,1010486,CITI PCARD-D J WALL-ST-JOURNAL,2018-06-29,2018-07-27,PUBLICATIONS/REFERENCE MAT'L,117.35,2018
,2018 OFFICE OF THE MAJORITY WHIP,Q3,GENERAL EXPENDITURES,SUPPLIES AND MATERIALS,DETAIL,2018-08-17,AP,1010486,CITI PCARD-FS  WALLS.IO,2018-06-29,2018-07-27,PUBLICATIONS/REFERENCE MAT'L,100,2018
,2018 OFFICE OF THE MAJORITY WHIP,Q3,GENERAL EXPENDITURES,SUPPLIES AND MATERIALS,DETAIL,2018-08-17,AP,1010486,CITI PCARD-GAINAPP.COM,2018-06-29,2018-07-27,PUBLICATIONS/REFERENCE MAT'L,80,2018
,2018 OFFICE OF THE MAJORITY WHIP,Q3,GENERAL EXPENDITURES,SUPPLIES AND MATERIALS,DETAIL,2018-08-17,AP,1010486,CITI PCARD-STK SHUTTERSTOCK INC.,2018-06-29,2018-07-27,PUBLICATIONS/REFERENCE MAT'L,169,2018
,2018 OFFICE OF THE MAJORITY WHIP,Q3,GENERAL EXPENDITURES,SUPPLIES AND MATERIALS,DETAIL,2018-08-31,GL,RMS0081182, ,2018-08-01,2018-08-31,OFFICE SUPPLY (TRANSFER),93.24,2018
,2018 OFFICE OF THE MAJORITY WHIP,Q3,GENERAL EXPENDITURES,SUPPLIES AND MATERIALS,DETAIL,2018-09-13,AP,E0654640,QUENCH,2018-09-01,2018-09-30,WATER,46.53,2018
,2018 OFFICE OF THE MAJORITY WHIP,Q3,GENERAL EXPENDITURES,SUPPLIES AND MATERIALS,DETAIL,2018-09-25,AP,1018853,OFFICE DEPOT INC,2018-08-30,2018-08-30,FOOD & BEVERAGE,17.04,2018
,2018 OFFICE OF THE MAJORITY WHIP,Q3,GENERAL EXPENDITURES,SUPPLIES AND MATERIALS,DETAIL,2018-09-26,AP,1019131,CITI PCARD-AMAZON MKTPLACE PMTS W,2018-07-28,2018-08-28,OFFICE SUPPLIES (OUTSIDE),17.99,2018
,2018 OFFICE OF THE MAJORITY WHIP,Q3,GENERAL EXPENDITURES,SUPPLIES AND MATERIALS,DETAIL,2018-09-26,AP,1019131,CITI PCARD-FS  WALLS.IO,2018-07-28,2018-08-28,SOFTWARE  LESS THAN  $500,100,2018
,2018 OFFICE OF THE MAJORITY WHIP,Q3,GENERAL EXPENDITURES,SUPPLIES AND MATERIALS,DETAIL,2018-09-26,AP,1019131,CITI PCARD-GAINAPP.COM,2018-07-28,2018-08-28,PUBLICATIONS/REFERENCE MAT'L,80,2018
,2018 OFFICE OF THE MAJORITY WHIP,Q3,GENERAL EXPENDITURES,SUPPLIES AND MATERIALS,DETAIL,2018-09-26,AP,1019131,CITI PCARD-STK SHUTTERSTOCK INC.,2018-07-28,2018-08-28,PUBLICATIONS/REFERENCE MAT'L,169,2018
,2018 OFFICE OF THE MAJORITY WHIP,Q3,GENERAL EXPENDITURES,SUPPLIES AND MATERIALS,DETAIL,2018-09-28,GL,RMS0082045, ,2018-09-01,2018-09-30,OFFICE SUPPLY (TRANSFER),147.69,2018
,2018 OFFICE OF THE MAJORITY WHIP,Q3,GENERAL EXPENDITURES,SUPPLIES AND MATERIALS,SUBTOTAL,   ,   ,   ,   ,   ,   ,SUPPLIES AND MATERIALS TOTALS:,5148.15,2018
,2018 OFFICE OF THE MAJORITY WHIP,Q3,GENERAL EXPENDITURES,EQUIPMENT,DETAIL,2018-07-06,AP,999577,CDW GOVERNMENT INC. C/O ISM IN,2018-06-21,2018-06-21,COMPUTER HARDW PURCH  LESS THAN $25 000,3285.01,2018
,2018 OFFICE OF THE MAJORITY WHIP,Q3,GENERAL EXPENDITURES,EQUIPMENT,DETAIL,2018-07-06,AP,999577,CDW GOVERNMENT INC. C/O ISM IN,2018-06-21,2018-06-21,WARRANTIES,297.33,2018
,2018 OFFICE OF THE MAJORITY WHIP,Q3,GENERAL EXPENDITURES,EQUIPMENT,DETAIL,2018-07-16,AP,1000558,GOVSMART INC,2018-06-30,2018-06-30,COMPUTER HARDW PURCH  LESS THAN $25 000,879.43,2018
,2018 OFFICE OF THE MAJORITY WHIP,Q3,GENERAL EXPENDITURES,EQUIPMENT,DETAIL,2018-07-16,AP,1000558,GOVSMART INC,2018-06-30,2018-06-30,WARRANTIES,70.96,2018
,2018 OFFICE OF THE MAJORITY WHIP,Q3,GENERAL EXPENDITURES,EQUIPMENT,DETAIL,2018-07-31,GL,MNT0080188, ,2018-07-01,2018-07-31,MAINTENANCE / REPAIRS,196,2018
,2018 OFFICE OF THE MAJORITY WHIP,Q3,GENERAL EXPENDITURES,EQUIPMENT,DETAIL,2018-08-31,GL,MNT0081088, ,2018-08-01,2018-08-31,MAINTENANCE / REPAIRS,196,2018
,2018 OFFICE OF THE MAJORITY WHIP,Q3,GENERAL EXPENDITURES,EQUIPMENT,DETAIL,2018-09-28,GL,MNT0081912, ,2018-09-01,2018-09-30,MAINTENANCE / REPAIRS,196,2018
,2018 OFFICE OF THE MAJORITY WHIP,Q3,GENERAL EXPENDITURES,EQUIPMENT,SUBTOTAL,   ,   ,   ,   ,   ,   ,EQUIPMENT TOTALS:,5120.73,2018
,2018 OFFICE OF THE MAJORITY WHIP,Q3,GENERAL EXPENDITURES,EQUIPMENT,SUBTOTAL,   ,   ,   ,   ,   ,   ,GENERAL EXPENDITURES TOTALS:,578304.87,2018
,2018 OFFICE OF THE MAJORITY WHIP,Q3,GENERAL EXPENDITURES,EQUIPMENT,GRAND TOTAL FOR ORGANIZATION,   ,   ,   ,   ,   ,   ,OFFICE TOTALS: ,578304.87,2018
,2016 OFFICE OF THE MAJORITY WHIP,Q3,GENERAL EXPENDITURES,TRAVEL,DETAIL,2018-07-23,AR,AC-14195,BRETT H HORTON,2016-12-14,2016-12-29,CAR RENTAL,-407,2018
,2016 OFFICE OF THE MAJORITY WHIP,Q3,GENERAL EXPENDITURES,TRAVEL,SUBTOTAL,   ,   ,   ,   ,   ,   ,TRAVEL TOTALS:,-407,2018
,2016 OFFICE OF THE MAJORITY WHIP,Q3,GENERAL EXPENDITURES,TRAVEL,SUBTOTAL,   ,   ,   ,   ,   ,   ,GENERAL EXPENDITURES TOTALS:,-407,2018
,2016 OFFICE OF THE MAJORITY WHIP,Q3,GENERAL EXPENDITURES,TRAVEL,GRAND TOTAL FOR ORGANIZATION,   ,   ,   ,   ,   ,   ,OFFICE TOTALS: ,-407,2018
,2018 OFFICE OF THE MINORITY WHIP,Q3,GENERAL EXPENDITURES,PERSONNEL COMPENSATION,DETAIL,   ,   ,   ,ABOUCHAR KEITH S.,2018-07-01,2018-09-30,SENIOR POLICY ADVISOR,35000.01,2018
,2018 OFFICE OF THE MINORITY WHIP,Q3,GENERAL EXPENDITURES,PERSONNEL COMPENSATION,DETAIL,   ,   ,   ,AVILES DANIELLE R,2018-07-01,2018-09-30,DEPUTY FLOOR DIRECTOR,18750,2018
,2018 OFFICE OF THE MINORITY WHIP,Q3,GENERAL EXPENDITURES,PERSONNEL COMPENSATION,DETAIL,   ,   ,   ,BAUSERMAN TRENTON D,2018-07-01,2018-09-30,SENIOR POLICY ADVISOR,30000,2018
,2018 OFFICE OF THE MINORITY WHIP,Q3,GENERAL EXPENDITURES,PERSONNEL COMPENSATION,DETAIL,   ,   ,   ,BAYER JOHN S,2018-07-01,2018-09-30,STAFF ASSISTANT,6249.99,2018
,2018 OFFICE OF THE MINORITY WHIP,Q3,GENERAL EXPENDITURES,PERSONNEL COMPENSATION,DETAIL,   ,   ,   ,BAYER JOHN S,2018-06-01,2018-08-31,STAFF ASSISTANT (OVERTIME),3587.7,2018
,2018 OFFICE OF THE MINORITY WHIP,Q3,GENERAL EXPENDITURES,PERSONNEL COMPENSATION,DETAIL,   ,   ,   ,COLLINS MICHAEL E.,2018-07-01,2018-09-30,CHIEF DEPUTY WHIP,10625.01,2018
,2018 OFFICE OF THE MINORITY WHIP,Q3,GENERAL EXPENDITURES,PERSONNEL COMPENSATION,DETAIL,   ,   ,   ,COVEY-BRANDT ALEXIS,2018-07-01,2018-09-30,CHIEF OF STAFF,43125,2018
,2018 OFFICE OF THE MINORITY WHIP,Q3,GENERAL EXPENDITURES,PERSONNEL COMPENSATION,DETAIL,   ,   ,   ,DWYER STEPHEN,2018-07-01,2018-09-30,DIGITAL DIR & POLICY ADV,17250,2018
,2018 OFFICE OF THE MINORITY WHIP,Q3,GENERAL EXPENDITURES,PERSONNEL COMPENSATION,DETAIL,   ,   ,   ,FRY COURTNEY,2018-07-01,2018-09-30,DEP OUTREACH DIR & MEM SER ADV,31250.01,2018
,2018 OFFICE OF THE MINORITY WHIP,Q3,GENERAL EXPENDITURES,PERSONNEL COMPENSATION,DETAIL,   ,   ,   ,GOFF SHUWANZA R,2018-07-01,2018-09-30,FLOOR DIRECTOR,31250.01,2018
,2018 OFFICE OF THE MINORITY WHIP,Q3,GENERAL EXPENDITURES,PERSONNEL COMPENSATION,DETAIL,   ,   ,   ,GRANT KATHRYN L,2018-07-01,2018-09-30,COMM DIR AND SR ADVISOR,33750,2018
,2018 OFFICE OF THE MINORITY WHIP,Q3,GENERAL EXPENDITURES,PERSONNEL COMPENSATION,DETAIL,   ,   ,   ,LEUSCHEN JAMES P.,2018-07-01,2018-09-30,SENIOR POLICY ADVISOR,35000.01,2018
,2018 OFFICE OF THE MINORITY WHIP,Q3,GENERAL EXPENDITURES,PERSONNEL COMPENSATION,DETAIL,   ,   ,   ,MACDONALD CHARLENE,2018-07-01,2018-08-10,SENIOR POLICY ADVISOR,13888.89,2018
,2018 OFFICE OF THE MINORITY WHIP,Q3,GENERAL EXPENDITURES,PERSONNEL COMPENSATION,DETAIL,   ,   ,   ,MAHR THOMAS,2018-07-01,2018-09-30,POLICY DIRECTOR,39999.99,2018
,2018 OFFICE OF THE MINORITY WHIP,Q3,GENERAL EXPENDITURES,PERSONNEL COMPENSATION,DETAIL,   ,   ,   ,MARGOLIS SARA I,2018-07-01,2018-09-30,STAFF ASSISTANT,6249.99,2018
,2018 OFFICE OF THE MINORITY WHIP,Q3,GENERAL EXPENDITURES,PERSONNEL COMPENSATION,DETAIL,   ,   ,   ,MARGOLIS SARA I,2018-06-01,2018-07-31,STAFF ASSISTANT (OVERTIME),2902.62,2018
,2018 OFFICE OF THE MINORITY WHIP,Q3,GENERAL EXPENDITURES,PERSONNEL COMPENSATION,DETAIL,   ,   ,   ,MULKERRIN MARGARET A,2018-07-01,2018-09-30,PRESS AND RESEARCH ASSISTANT,12609.99,2018
,2018 OFFICE OF THE MINORITY WHIP,Q3,GENERAL EXPENDITURES,PERSONNEL COMPENSATION,DETAIL,   ,   ,   ,ROMICK BRIAN,2018-07-01,2018-09-30,DEPUTY CHIEF OF STAFF,42500.01,2018
,2018 OFFICE OF THE MINORITY WHIP,Q3,GENERAL EXPENDITURES,PERSONNEL COMPENSATION,DETAIL,   ,   ,   ,ROWE DEBORAH M,2018-07-01,2018-09-30,SPECIAL ADVISER AND WHIP COORD,14000.01,2018
,2018 OFFICE OF THE MINORITY WHIP,Q3,GENERAL EXPENDITURES,PERSONNEL COMPENSATION,DETAIL,   ,   ,   ,SAEZ MARIEL S,2018-07-01,2018-09-30,PRESS SECRETARY,3750,2018
,2018 OFFICE OF THE MINORITY WHIP,Q3,GENERAL EXPENDITURES,PERSONNEL COMPENSATION,DETAIL,   ,   ,   ,SALAZAR RAYMOND J.,2018-07-01,2018-09-30,FLOOR ASSISTANT,13749.99,2018
,2018 OFFICE OF THE MINORITY WHIP,Q3,GENERAL EXPENDITURES,PERSONNEL COMPENSATION,DETAIL,   ,   ,   ,SILVERBERG DANIEL I,2018-07-01,2018-09-30,SENIOR POLICY ADVISOR,17750.01,2018
,2018 OFFICE OF THE MINORITY WHIP,Q3,GENERAL EXPENDITURES,PERSONNEL COMPENSATION,DETAIL,   ,   ,   ,SUGAR-CARLSGAARD JORDAN,2018-07-01,2018-09-30,DIR OF SCHED & SPECIAL EVENTS,20499.99,2018
,2018 OFFICE OF THE MINORITY WHIP,Q3,GENERAL EXPENDITURES,PERSONNEL COMPENSATION,DETAIL,   ,   ,   ,TRAUBERMAN JACOB M,2018-07-01,2018-09-30,SPECIAL ASSISTANT,8000.01,2018
,2018 OFFICE OF THE MINORITY WHIP,Q3,GENERAL EXPENDITURES,PERSONNEL COMPENSATION,DETAIL,   ,   ,   ,TRAUBERMAN JACOB M,2018-06-01,2018-07-31,SPECIAL ASSISTANT (OVERTIME),2169.21,2018
,2018 OFFICE OF THE MINORITY WHIP,Q3,GENERAL EXPENDITURES,PERSONNEL COMPENSATION,DETAIL,   ,   ,   ,URRABAZO CLAUDIA,2018-07-01,2018-09-30,DEP. DIR OF MBR SER & OUTR ADV,23000.01,2018
,2018 OFFICE OF THE MINORITY WHIP,Q3,GENERAL EXPENDITURES,PERSONNEL COMPENSATION,DETAIL,   ,   ,   ,WEISSMANN ADAM,2018-07-01,2018-09-30,SPEECHWRITER,18750,2018
,2018 OFFICE OF THE MINORITY WHIP,Q3,GENERAL EXPENDITURES,PERSONNEL COMPENSATION,SUBTOTAL,   ,   ,   ,   ,   ,   ,PERSONNEL COMPENSATION TOTALS:,535658.46,2018
,2018 OFFICE OF THE MINORITY WHIP,Q3,GENERAL EXPENDITURES,TRAVEL,DETAIL,2018-08-09,AP,E0646725,BAYER JOHN S.,2018-03-21,2018-03-21,TAXI/PARKING/TOLLS,19.93,2018
,2018 OFFICE OF THE MINORITY WHIP,Q3,GENERAL EXPENDITURES,TRAVEL,DETAIL,2018-08-09,AP,E0646725,BAYER JOHN S.,2018-06-25,2018-06-25,TAXI/PARKING/TOLLS,12.49,2018
,2018 OFFICE OF THE MINORITY WHIP,Q3,GENERAL EXPENDITURES,TRAVEL,DETAIL,2018-08-09,AP,E0646726,MARGOLIS SARA I.,2018-01-30,2018-01-30,TAXI/PARKING/TOLLS,7.82,2018
,2018 OFFICE OF THE MINORITY WHIP,Q3,GENERAL EXPENDITURES,TRAVEL,DETAIL,2018-08-09,AP,E0646726,MARGOLIS SARA I.,2018-02-08,2018-02-08,TAXI/PARKING/TOLLS,8.25,2018
,2018 OFFICE OF THE MINORITY WHIP,Q3,GENERAL EXPENDITURES,TRAVEL,DETAIL,2018-08-09,AP,E0646726,MARGOLIS SARA I.,2018-02-09,2018-02-09,TAXI/PARKING/TOLLS,16.38,2018
,2018 OFFICE OF THE MINORITY WHIP,Q3,GENERAL EXPENDITURES,TRAVEL,DETAIL,2018-08-09,AP,E0646726,MARGOLIS SARA I.,2018-02-15,2018-02-15,TAXI/PARKING/TOLLS,9.32,2018
,2018 OFFICE OF THE MINORITY WHIP,Q3,GENERAL EXPENDITURES,TRAVEL,DETAIL,2018-08-09,AP,E0646726,MARGOLIS SARA I.,2018-03-22,2018-03-22,TAXI/PARKING/TOLLS,6.09,2018
,2018 OFFICE OF THE MINORITY WHIP,Q3,GENERAL EXPENDITURES,TRAVEL,DETAIL,2018-08-09,AP,E0646726,MARGOLIS SARA I.,2018-06-08,2018-06-08,TAXI/PARKING/TOLLS,14.63,2018
,2018 OFFICE OF THE MINORITY WHIP,Q3,GENERAL EXPENDITURES,TRAVEL,SUBTOTAL,   ,   ,   ,   ,   ,   ,TRAVEL TOTALS:,94.91,2018
,2018 OFFICE OF THE MINORITY WHIP,Q3,GENERAL EXPENDITURES,RENT  COMMUNICATION  UTILITIES,DETAIL,2018-07-19,AP,1004523,CITI PCARD-SXM SIRIUSXM.COM/ACCT,2018-05-29,2018-06-28,UTILITIES,-87.6,2018
,2018 OFFICE OF THE MINORITY WHIP,Q3,GENERAL EXPENDITURES,RENT  COMMUNICATION  UTILITIES,DETAIL,2018-07-26,GL,EMS0080133, ,2018-06-01,2018-06-30,DC TELECOM EQUIP (TRANSFER),92,2018
,2018 OFFICE OF THE MINORITY WHIP,Q3,GENERAL EXPENDITURES,RENT  COMMUNICATION  UTILITIES,DETAIL,2018-07-26,GL,EMS0080133, ,2018-06-01,2018-06-30,DC TELECOM SERV (TRANSFER),348.75,2018
,2018 OFFICE OF THE MINORITY WHIP,Q3,GENERAL EXPENDITURES,RENT  COMMUNICATION  UTILITIES,DETAIL,2018-07-26,GL,EMS0080133, ,2018-06-01,2018-06-30,DC TELECOM TOLLS (TRANSFER),3523.52,2018
,2018 OFFICE OF THE MINORITY WHIP,Q3,GENERAL EXPENDITURES,RENT  COMMUNICATION  UTILITIES,DETAIL,2018-08-17,AP,1010486,CITI PCARD-ATLANTIC BROADBAND,2018-06-29,2018-07-27,TELECOMSRV/EQ/TOLL CHARGE,48.95,2018
,2018 OFFICE OF THE MINORITY WHIP,Q3,GENERAL EXPENDITURES,RENT  COMMUNICATION  UTILITIES,DETAIL,2018-08-27,GL,EMS0080878, ,2018-07-01,2018-07-31,DC TELECOM EQUIP (TRANSFER),92,2018
,2018 OFFICE OF THE MINORITY WHIP,Q3,GENERAL EXPENDITURES,RENT  COMMUNICATION  UTILITIES,DETAIL,2018-08-27,GL,EMS0080878, ,2018-07-01,2018-07-31,DC TELECOM SERV (TRANSFER),348.75,2018
,2018 OFFICE OF THE MINORITY WHIP,Q3,GENERAL EXPENDITURES,RENT  COMMUNICATION  UTILITIES,DETAIL,2018-08-27,GL,EMS0080878, ,2018-07-01,2018-07-31,DC TELECOM TOLLS (TRANSFER),3327.06,2018
,2018 OFFICE OF THE MINORITY WHIP,Q3,GENERAL EXPENDITURES,RENT  COMMUNICATION  UTILITIES,DETAIL,2018-09-25,GL,EMS0081714, ,2018-08-01,2018-08-31,DC TELECOM EQUIP (TRANSFER),92,2018
,2018 OFFICE OF THE MINORITY WHIP,Q3,GENERAL EXPENDITURES,RENT  COMMUNICATION  UTILITIES,DETAIL,2018-09-25,GL,EMS0081714, ,2018-08-01,2018-08-31,DC TELECOM SERV (TRANSFER),348.75,2018
,2018 OFFICE OF THE MINORITY WHIP,Q3,GENERAL EXPENDITURES,RENT  COMMUNICATION  UTILITIES,DETAIL,2018-09-25,GL,EMS0081714, ,2018-08-01,2018-08-31,DC TELECOM TOLLS (TRANSFER),3368.06,2018
,2018 OFFICE OF THE MINORITY WHIP,Q3,GENERAL EXPENDITURES,RENT  COMMUNICATION  UTILITIES,DETAIL,2018-09-26,AP,1019131,CITI PCARD-ATLANTIC BROADBAND,2018-07-28,2018-08-28,TELECOMSRV/EQ/TOLL CHARGE,48.95,2018
,2018 OFFICE OF THE MINORITY WHIP,Q3,GENERAL EXPENDITURES,RENT  COMMUNICATION  UTILITIES,DETAIL,2018-09-26,AP,1019131,CITI PCARD-PANASONIC-SOUTHWEST WI,2018-07-28,2018-08-28,TELECOMSRV/EQ/TOLL CHARGE,8,2018
,2018 OFFICE OF THE MINORITY WHIP,Q3,GENERAL EXPENDITURES,RENT  COMMUNICATION  UTILITIES,SUBTOTAL,   ,   ,   ,   ,   ,   ,RENT  COMMUNICATION  UTILITIES TOTALS:,11559.19,2018
,2018 OFFICE OF THE MINORITY WHIP,Q3,GENERAL EXPENDITURES,PRINTING AND REPRODUCTION,DETAIL,2018-08-06,AP,E0646722,DAVID L ANDRUKITIS INC,2018-06-13,2018-06-13,PRINTING & REPRODUCTION,80,2018
,2018 OFFICE OF THE MINORITY WHIP,Q3,GENERAL EXPENDITURES,PRINTING AND REPRODUCTION,DETAIL,2018-08-06,AP,E0646724,DAVID L ANDRUKITIS INC,2018-04-25,2018-04-25,PRINTING & REPRODUCTION,40,2018
,2018 OFFICE OF THE MINORITY WHIP,Q3,GENERAL EXPENDITURES,PRINTING AND REPRODUCTION,DETAIL,2018-08-17,AP,1010486,CITI PCARD-FACEBK 7FP7UE6R,2018-06-29,2018-07-27,ADVERTISEMENTS,750,2018
,2018 OFFICE OF THE MINORITY WHIP,Q3,GENERAL EXPENDITURES,PRINTING AND REPRODUCTION,DETAIL,2018-08-17,AP,1010486,CITI PCARD-FACEBK Z85QBFAR,2018-06-29,2018-07-27,ADVERTISEMENTS,754.9,2018
,2018 OFFICE OF THE MINORITY WHIP,Q3,GENERAL EXPENDITURES,PRINTING AND REPRODUCTION,DETAIL,2018-09-26,AP,1019131,CITI PCARD-FACEBK 3DF7WEJQ,2018-07-28,2018-08-28,ADVERTISEMENTS,495.1,2018
,2018 OFFICE OF THE MINORITY WHIP,Q3,GENERAL EXPENDITURES,PRINTING AND REPRODUCTION,SUBTOTAL,   ,   ,   ,   ,   ,   ,PRINTING AND REPRODUCTION TOTALS:,2120,2018
,2018 OFFICE OF THE MINORITY WHIP,Q3,GENERAL EXPENDITURES,OTHER SERVICES,DETAIL,2018-07-13,AP,E0639620,JACKSON RIVER LLC,2018-05-01,2018-05-31,WEB DEV HST EMAIL & RLTD SERV,19440,2018
,2018 OFFICE OF THE MINORITY WHIP,Q3,GENERAL EXPENDITURES,OTHER SERVICES,DETAIL,2018-07-16,AP,1001319,LEIDOS DIGITAL SOLUTIONS INC,2018-07-01,2018-07-31,TECHNOLOGY SERVICE CONTRACTS,5925,2018
,2018 OFFICE OF THE MINORITY WHIP,Q3,GENERAL EXPENDITURES,OTHER SERVICES,DETAIL,2018-07-19,AP,1004523,CITI PCARD-AMAZON WEB SERVICES,2018-05-29,2018-06-28,WEB DEV HST EMAIL & RLTD SERV,92.35,2018
,2018 OFFICE OF THE MINORITY WHIP,Q3,GENERAL EXPENDITURES,OTHER SERVICES,DETAIL,2018-07-19,AP,1004523,CITI PCARD-GOOGLE  CLOUD_00ED7D-A,2018-05-29,2018-06-28,WEB DEV HST EMAIL & RLTD SERV,78.71,2018
,2018 OFFICE OF THE MINORITY WHIP,Q3,GENERAL EXPENDITURES,OTHER SERVICES,DETAIL,2018-07-19,AP,1004523,CITI PCARD-MAILCHIMP    MONTHLY,2018-05-29,2018-06-28,WEB DEV HST EMAIL & RLTD SERV,180,2018
,2018 OFFICE OF THE MINORITY WHIP,Q3,GENERAL EXPENDITURES,OTHER SERVICES,DETAIL,2018-08-14,AP,E0647497,JACKSON RIVER LLC,2018-06-01,2018-06-30,WEB DEV HST EMAIL & RLTD SERV,25400,2018
,2018 OFFICE OF THE MINORITY WHIP,Q3,GENERAL EXPENDITURES,OTHER SERVICES,DETAIL,2018-08-16,AP,1009742,LEIDOS DIGITAL SOLUTIONS INC,2018-08-01,2018-08-31,TECHNOLOGY SERVICE CONTRACTS,5925,2018
,2018 OFFICE OF THE MINORITY WHIP,Q3,GENERAL EXPENDITURES,OTHER SERVICES,DETAIL,2018-08-17,AP,1010486,CITI PCARD-AWS,2018-06-29,2018-07-27,WEB DEV HST EMAIL & RLTD SERV,87.72,2018
,2018 OFFICE OF THE MINORITY WHIP,Q3,GENERAL EXPENDITURES,OTHER SERVICES,DETAIL,2018-08-17,AP,1010486,CITI PCARD-GOOGLE  CLOUD_00ED7D-A,2018-06-29,2018-07-27,TECHNOLOGY SERVICE CONTRACTS,160.11,2018
,2018 OFFICE OF THE MINORITY WHIP,Q3,GENERAL EXPENDITURES,OTHER SERVICES,DETAIL,2018-08-17,AP,1010486,CITI PCARD-MAILCHIMP    MONTHLY,2018-06-29,2018-07-27,WEB DEV HST EMAIL & RLTD SERV,185,2018
,2018 OFFICE OF THE MINORITY WHIP,Q3,GENERAL EXPENDITURES,OTHER SERVICES,DETAIL,2018-08-17,AP,1010486,CITI PCARD-VIDEOBLOCKS 888-353-,2018-06-29,2018-07-27,WEB DEV HST EMAIL & RLTD SERV,199,2018
,2018 OFFICE OF THE MINORITY WHIP,Q3,GENERAL EXPENDITURES,OTHER SERVICES,DETAIL,2018-08-24,AP,E0650559,JACKSON RIVER LLC,2018-07-01,2018-07-31,WEB DEV HST EMAIL & RLTD SERV,25680,2018
,2018 OFFICE OF THE MINORITY WHIP,Q3,GENERAL EXPENDITURES,OTHER SERVICES,DETAIL,2018-09-16,AP,1014673,LEIDOS DIGITAL SOLUTIONS INC,2018-09-01,2018-09-30,TECHNOLOGY SERVICE CONTRACTS,5925,2018
,2018 OFFICE OF THE MINORITY WHIP,Q3,GENERAL EXPENDITURES,OTHER SERVICES,DETAIL,2018-09-26,AP,1019131,CITI PCARD-AMAZON WEB SERVICES,2018-07-28,2018-08-28,WEB DEV HST EMAIL & RLTD SERV,103.85,2018
,2018 OFFICE OF THE MINORITY WHIP,Q3,GENERAL EXPENDITURES,OTHER SERVICES,DETAIL,2018-09-26,AP,1019131,CITI PCARD-GOOGLE  CLOUD_00ED7D-A,2018-07-28,2018-08-28,WEB DEV HST EMAIL & RLTD SERV,178.53,2018
,2018 OFFICE OF THE MINORITY WHIP,Q3,GENERAL EXPENDITURES,OTHER SERVICES,DETAIL,2018-09-26,AP,1019131,CITI PCARD-MAILCHIMP    MONTHLY,2018-07-28,2018-08-28,WEB DEV HST EMAIL & RLTD SERV,190,2018
,2018 OFFICE OF THE MINORITY WHIP,Q3,GENERAL EXPENDITURES,OTHER SERVICES,SUBTOTAL,   ,   ,   ,   ,   ,   ,OTHER SERVICES TOTALS:,89750.27,2018
,2018 OFFICE OF THE MINORITY WHIP,Q3,GENERAL EXPENDITURES,SUPPLIES AND MATERIALS,DETAIL,2018-07-19,AP,1004523,CITI PCARD-AMAZON MKTPLACE PMTS,2018-05-29,2018-06-28,OFFICE SUPPLIES (OUTSIDE),550.13,2018
,2018 OFFICE OF THE MINORITY WHIP,Q3,GENERAL EXPENDITURES,SUPPLIES AND MATERIALS,DETAIL,2018-07-19,AP,1004523,CITI PCARD-AMAZON MKTPLACE PMTS W,2018-05-29,2018-06-28,OFFICE SUPPLIES (OUTSIDE),68.93,2018
,2018 OFFICE OF THE MINORITY WHIP,Q3,GENERAL EXPENDITURES,SUPPLIES AND MATERIALS,DETAIL,2018-07-19,AP,1004523,CITI PCARD-APL APPLE ONLINE STORE,2018-05-29,2018-06-28,OFFICE SUPPLIES (OUTSIDE),95.18,2018
,2018 OFFICE OF THE MINORITY WHIP,Q3,GENERAL EXPENDITURES,SUPPLIES AND MATERIALS,DETAIL,2018-08-17,AP,1010486,CITI PCARD-AMAZON MKTPLACE PMTS W,2018-06-29,2018-07-27,OFFICE SUPPLIES (OUTSIDE),109.96,2018
,2018 OFFICE OF THE MINORITY WHIP,Q3,GENERAL EXPENDITURES,SUPPLIES AND MATERIALS,DETAIL,2018-08-17,AP,1010486,CITI PCARD-AMAZON.COM AMZN.COM/BI,2018-06-29,2018-07-27,OFFICE SUPPLIES (OUTSIDE),15.73,2018
,2018 OFFICE OF THE MINORITY WHIP,Q3,GENERAL EXPENDITURES,SUPPLIES AND MATERIALS,DETAIL,2018-09-26,AP,1019131,CITI PCARD-AMAZON MKTPLACE PMTS W,2018-07-28,2018-08-28,OFFICE SUPPLIES (OUTSIDE),78.02,2018
,2018 OFFICE OF THE MINORITY WHIP,Q3,GENERAL EXPENDITURES,SUPPLIES AND MATERIALS,DETAIL,2018-09-26,AP,1019131,CITI PCARD-AMAZON.COM AMZN.COM/BI,2018-07-28,2018-08-28,OFFICE SUPPLIES (OUTSIDE),119.77,2018
,2018 OFFICE OF THE MINORITY WHIP,Q3,GENERAL EXPENDITURES,SUPPLIES AND MATERIALS,DETAIL,2018-09-28,AP,1019602,KNOWWHO,2018-07-01,2019-06-30,PUBLICATIONS/REFERENCE MAT'L,3547.5,2018
,2018 OFFICE OF THE MINORITY WHIP,Q3,GENERAL EXPENDITURES,SUPPLIES AND MATERIALS,DETAIL,2018-09-28,GL,RMS0082045, ,2018-09-01,2018-09-30,OFFICE SUPPLY (TRANSFER),107.6,2018
,2018 OFFICE OF THE MINORITY WHIP,Q3,GENERAL EXPENDITURES,SUPPLIES AND MATERIALS,SUBTOTAL,   ,   ,   ,   ,   ,   ,SUPPLIES AND MATERIALS TOTALS:,4692.82,2018
,2018 OFFICE OF THE MINORITY WHIP,Q3,GENERAL EXPENDITURES,EQUIPMENT,DETAIL,2018-07-31,GL,MNT0080188, ,2018-07-01,2018-07-31,MAINTENANCE / REPAIRS,343,2018
,2018 OFFICE OF THE MINORITY WHIP,Q3,GENERAL EXPENDITURES,EQUIPMENT,DETAIL,2018-08-31,GL,MNT0081088, ,2018-08-01,2018-08-31,MAINTENANCE / REPAIRS,343,2018
,2018 OFFICE OF THE MINORITY WHIP,Q3,GENERAL EXPENDITURES,EQUIPMENT,DETAIL,2018-09-28,GL,MNT0081912, ,2018-09-01,2018-09-30,MAINTENANCE / REPAIRS,343,2018
,2018 OFFICE OF THE MINORITY WHIP,Q3,GENERAL EXPENDITURES,EQUIPMENT,SUBTOTAL,   ,   ,   ,   ,   ,   ,EQUIPMENT TOTALS:,1029,2018
,2018 OFFICE OF THE MINORITY WHIP,Q3,GENERAL EXPENDITURES,EQUIPMENT,SUBTOTAL,   ,   ,   ,   ,   ,   ,GENERAL EXPENDITURES TOTALS:,644904.65,2018
,2018 OFFICE OF THE MINORITY WHIP,Q3,GENERAL EXPENDITURES,EQUIPMENT,GRAND TOTAL FOR ORGANIZATION,   ,   ,   ,   ,   ,   ,OFFICE TOTALS: ,644904.65,2018
,2018 DEMOCRATIC CAUCUS,Q3,GENERAL EXPENDITURES,PERSONNEL COMPENSATION,DETAIL,   ,   ,   ,ASSIM ANISAH,2018-07-01,2018-09-30,CAUCUS ASSISTANT,8000.01,2018
,2018 DEMOCRATIC CAUCUS,Q3,GENERAL EXPENDITURES,PERSONNEL COMPENSATION,DETAIL,   ,   ,   ,ASSIM ANISAH,2018-06-01,2018-07-30,CAUCUS ASSISTANT (OVERTIME),1211.52,2018
,2018 DEMOCRATIC CAUCUS,Q3,GENERAL EXPENDITURES,PERSONNEL COMPENSATION,DETAIL,   ,   ,   ,BACKEMEYER COURTNEY G,2018-07-01,2018-09-30,DIR OF STARTEGIC COMM,27500,2018
,2018 DEMOCRATIC CAUCUS,Q3,GENERAL EXPENDITURES,PERSONNEL COMPENSATION,DETAIL,   ,   ,   ,BERNER ALAINA L,2018-07-01,2018-09-30,PRESS ASSISTANT,7680.56,2018
,2018 DEMOCRATIC CAUCUS,Q3,GENERAL EXPENDITURES,PERSONNEL COMPENSATION,DETAIL,   ,   ,   ,CARRILLO MANUEL J,2018-07-01,2018-09-30,DIRECTOR OF OPERATIONS,17833.33,2018
,2018 DEMOCRATIC CAUCUS,Q3,GENERAL EXPENDITURES,PERSONNEL COMPENSATION,DETAIL,   ,   ,   ,CASEY KEVIN,2018-07-01,2018-09-30,DIRECTOR OF POLICY,37499.99,2018
,2018 DEMOCRATIC CAUCUS,Q3,GENERAL EXPENDITURES,PERSONNEL COMPENSATION,DETAIL,   ,   ,   ,ELLISON MELISSA J,2018-07-01,2018-09-30,LEGISLATIVE DIR./VICE CHAIR,3000,2018
,2018 DEMOCRATIC CAUCUS,Q3,GENERAL EXPENDITURES,PERSONNEL COMPENSATION,DETAIL,   ,   ,   ,FISHER SULKALA MARGARET L,2018-07-01,2018-09-30,CHIEF OF STAFF/VICE CHAIR,3000,2018
,2018 DEMOCRATIC CAUCUS,Q3,GENERAL EXPENDITURES,PERSONNEL COMPENSATION,DETAIL,   ,   ,   ,FRENCH LAUREN N,2018-07-01,2018-09-30,COMMUNICATIONS DIRECTOR,17333.33,2018
,2018 DEMOCRATIC CAUCUS,Q3,GENERAL EXPENDITURES,PERSONNEL COMPENSATION,DETAIL,   ,   ,   ,GOLDBERG NICOLE E.,2018-07-01,2018-09-30,SR. CAUCUS POLICY ADVISOR,20333.34,2018
,2018 DEMOCRATIC CAUCUS,Q3,GENERAL EXPENDITURES,PERSONNEL COMPENSATION,DETAIL,   ,   ,   ,HORTA CHRISTOFER,2018-07-01,2018-09-30,POLICY ASSISTANT,8000.01,2018
,2018 DEMOCRATIC CAUCUS,Q3,GENERAL EXPENDITURES,PERSONNEL COMPENSATION,DETAIL,   ,   ,   ,HORTA CHRISTOFER,2018-06-01,2018-08-31,POLICY ASSISTANT (OVERTIME),2282.51,2018
,2018 DEMOCRATIC CAUCUS,Q3,GENERAL EXPENDITURES,PERSONNEL COMPENSATION,DETAIL,   ,   ,   ,JACKSON AUDRA L,2018-07-01,2018-09-30,OUTREACH & SPECIAL PROJ COORD,11499.99,2018
,2018 DEMOCRATIC CAUCUS,Q3,GENERAL EXPENDITURES,PERSONNEL COMPENSATION,DETAIL,   ,   ,   ,KEATING KATHERINE E.,2018-07-01,2018-09-30,CHIEF OF STAFF,24062.49,2018
,2018 DEMOCRATIC CAUCUS,Q3,GENERAL EXPENDITURES,PERSONNEL COMPENSATION,DETAIL,   ,   ,   ,KELLEY PATRICK R,2018-07-01,2018-09-30,SENIOR ADVISOR/VICE CHAIR,3000,2018
,2018 DEMOCRATIC CAUCUS,Q3,GENERAL EXPENDITURES,PERSONNEL COMPENSATION,DETAIL,   ,   ,   ,LOPEZ-SANDOVAL ELIZABETH,2018-07-01,2018-09-30,PRESS SEC&DIR OF HISPANIC MEDI,12500.01,2018
,2018 DEMOCRATIC CAUCUS,Q3,GENERAL EXPENDITURES,PERSONNEL COMPENSATION,DETAIL,   ,   ,   ,NGUYEN ALEXANDER D,2018-07-01,2018-09-30,COMMUNICATIONS DIRECTOR/VICE C,3000,2018
,2018 DEMOCRATIC CAUCUS,Q3,GENERAL EXPENDITURES,PERSONNEL COMPENSATION,DETAIL,   ,   ,   ,PERRY TROY A,2018-07-01,2018-09-30,DIR. OF MEMBER SERVICES & OUTR,23583.33,2018
,2018 DEMOCRATIC CAUCUS,Q3,GENERAL EXPENDITURES,PERSONNEL COMPENSATION,DETAIL,   ,   ,   ,SACHSE ANDREW M,2018-07-01,2018-09-30,OUTREACH & MEM. SERVICES COORD,17083.33,2018
,2018 DEMOCRATIC CAUCUS,Q3,GENERAL EXPENDITURES,PERSONNEL COMPENSATION,DETAIL,   ,   ,   ,SANCHEZ CARLOS S.,2018-07-01,2018-09-30,EXECUTIVE DIRECTOR,41666.67,2018
,2018 DEMOCRATIC CAUCUS,Q3,GENERAL EXPENDITURES,PERSONNEL COMPENSATION,DETAIL,   ,   ,   ,SANCHEZ CARLOS S.,2018-06-01,2018-06-30,EXECUTIVE DIRECTOR (OTHER COMPENSATION),2235.16,2018
,2018 DEMOCRATIC CAUCUS,Q3,GENERAL EXPENDITURES,PERSONNEL COMPENSATION,DETAIL,   ,   ,   ,SCHUMACHER MATTHEW J,2018-07-01,2018-09-30,DIGITAL DIRECTOR,14375.01,2018
,2018 DEMOCRATIC CAUCUS,Q3,GENERAL EXPENDITURES,PERSONNEL COMPENSATION,DETAIL,   ,   ,   ,SMITH SHANE T,2018-07-01,2018-09-30,OUTREACH & MEMBERS SVCS. ASST,10749.99,2018
,2018 DEMOCRATIC CAUCUS,Q3,GENERAL EXPENDITURES,PERSONNEL COMPENSATION,SUBTOTAL,   ,   ,   ,   ,   ,   ,PERSONNEL COMPENSATION TOTALS:,317430.58,2018
,2018 DEMOCRATIC CAUCUS,Q3,GENERAL EXPENDITURES,TRAVEL,DETAIL,2018-07-26,AP,E0644349,ASSIM ANISAH,2018-06-05,2018-06-26,TAXI/PARKING/TOLLS,80.3,2018
,2018 DEMOCRATIC CAUCUS,Q3,GENERAL EXPENDITURES,TRAVEL,DETAIL,2018-07-26,AP,E0644350,CARRILLO MANUEL J.,2018-06-25,2018-07-24,TAXI/PARKING/TOLLS,106.99,2018
,2018 DEMOCRATIC CAUCUS,Q3,GENERAL EXPENDITURES,TRAVEL,DETAIL,2018-07-31,AP,E0644942,SMITH SHANE T.,2018-07-25,2018-07-25,TAXI/PARKING/TOLLS,20,2018
,2018 DEMOCRATIC CAUCUS,Q3,GENERAL EXPENDITURES,TRAVEL,DETAIL,2018-09-14,AP,E0654715,ASSIM ANISAH,2018-07-11,2018-07-24,TAXI/PARKING/TOLLS,52.12,2018
,2018 DEMOCRATIC CAUCUS,Q3,GENERAL EXPENDITURES,TRAVEL,DETAIL,2018-09-16,AP,E0654714,CARRILLO MANUEL J.,2018-08-28,2018-09-05,TAXI/PARKING/TOLLS,32.44,2018
,2018 DEMOCRATIC CAUCUS,Q3,GENERAL EXPENDITURES,TRAVEL,DETAIL,2018-09-19,AP,E0655690,CITIBANK GOV CARD SERVICE,2018-08-25,2018-08-25,TAXI/PARKING/TOLLS,7.46,2018
,2018 DEMOCRATIC CAUCUS,Q3,GENERAL EXPENDITURES,TRAVEL,SUBTOTAL,   ,   ,   ,   ,   ,   ,TRAVEL TOTALS:,299.31,2018
,2018 DEMOCRATIC CAUCUS,Q3,GENERAL EXPENDITURES,RENT  COMMUNICATION  UTILITIES,DETAIL,2018-07-03,AP,E0637352,REGAN MUSIC SERVICE,2018-05-14,2018-05-14,EQUIP RENTAL (EFF 1/3/03),800,2018
,2018 DEMOCRATIC CAUCUS,Q3,GENERAL EXPENDITURES,RENT  COMMUNICATION  UTILITIES,DETAIL,2018-07-26,GL,EMS0080133, ,2018-06-01,2018-06-30,DC TELECOM EQUIP (TRANSFER),60,2018
,2018 DEMOCRATIC CAUCUS,Q3,GENERAL EXPENDITURES,RENT  COMMUNICATION  UTILITIES,DETAIL,2018-07-26,GL,EMS0080133, ,2018-06-01,2018-06-30,DC TELECOM SERV (TRANSFER),203.75,2018
,2018 DEMOCRATIC CAUCUS,Q3,GENERAL EXPENDITURES,RENT  COMMUNICATION  UTILITIES,DETAIL,2018-07-26,GL,EMS0080133, ,2018-06-01,2018-06-30,DC TELECOM TOLLS (TRANSFER),1383.91,2018
,2018 DEMOCRATIC CAUCUS,Q3,GENERAL EXPENDITURES,RENT  COMMUNICATION  UTILITIES,DETAIL,2018-07-30,AP,E0644360,CAPITOL  HOST,2018-07-23,2018-07-23,TEMPORARY SPACE RENTAL,250,2018
,2018 DEMOCRATIC CAUCUS,Q3,GENERAL EXPENDITURES,RENT  COMMUNICATION  UTILITIES,DETAIL,2018-08-27,GL,EMS0080878, ,2018-07-01,2018-07-31,DC TELECOM EQUIP (TRANSFER),60,2018
,2018 DEMOCRATIC CAUCUS,Q3,GENERAL EXPENDITURES,RENT  COMMUNICATION  UTILITIES,DETAIL,2018-08-27,GL,EMS0080878, ,2018-07-01,2018-07-31,DC TELECOM SERV (TRANSFER),203.75,2018
,2018 DEMOCRATIC CAUCUS,Q3,GENERAL EXPENDITURES,RENT  COMMUNICATION  UTILITIES,DETAIL,2018-08-27,GL,EMS0080878, ,2018-07-01,2018-07-31,DC TELECOM TOLLS (TRANSFER),1470.69,2018
,2018 DEMOCRATIC CAUCUS,Q3,GENERAL EXPENDITURES,RENT  COMMUNICATION  UTILITIES,DETAIL,2018-09-25,GL,EMS0081714, ,2018-08-01,2018-08-31,DC TELECOM EQUIP (TRANSFER),60,2018
,2018 DEMOCRATIC CAUCUS,Q3,GENERAL EXPENDITURES,RENT  COMMUNICATION  UTILITIES,DETAIL,2018-09-25,GL,EMS0081714, ,2018-08-01,2018-08-31,DC TELECOM SERV (TRANSFER),203.75,2018
,2018 DEMOCRATIC CAUCUS,Q3,GENERAL EXPENDITURES,RENT  COMMUNICATION  UTILITIES,DETAIL,2018-09-25,GL,EMS0081714, ,2018-08-01,2018-08-31,DC TELECOM TOLLS (TRANSFER),2861.7,2018
,2018 DEMOCRATIC CAUCUS,Q3,GENERAL EXPENDITURES,RENT  COMMUNICATION  UTILITIES,DETAIL,2018-09-26,AP,1019131,CITI PCARD-CAPITOL HOST (RIDGEWEL,2018-07-28,2018-08-28,EQUIP RENTAL (EFF 1/3/03),250,2018
,2018 DEMOCRATIC CAUCUS,Q3,GENERAL EXPENDITURES,RENT  COMMUNICATION  UTILITIES,DETAIL,2018-09-26,AP,1019131,CITI PCARD-USPS PO,2018-07-28,2018-08-28,POSTAGE / COURIER / BOX RENTAL,50,2018
,2018 DEMOCRATIC CAUCUS,Q3,GENERAL EXPENDITURES,RENT  COMMUNICATION  UTILITIES,SUBTOTAL,   ,   ,   ,   ,   ,   ,RENT  COMMUNICATION  UTILITIES TOTALS:,7857.55,2018
,2018 DEMOCRATIC CAUCUS,Q3,GENERAL EXPENDITURES,OTHER SERVICES,DETAIL,2018-07-16,AP,1001317,LEIDOS DIGITAL SOLUTIONS INC,2018-07-01,2018-07-31,TECHNOLOGY SERVICE CONTRACTS,3032,2018
,2018 DEMOCRATIC CAUCUS,Q3,GENERAL EXPENDITURES,OTHER SERVICES,DETAIL,2018-07-16,AP,1001860,LEIDOS DIGITAL SOLUTIONS INC,2018-07-01,2018-07-31,TECHNOLOGY SERVICE CONTRACTS,1860,2018
,2018 DEMOCRATIC CAUCUS,Q3,GENERAL EXPENDITURES,OTHER SERVICES,DETAIL,2018-08-16,AP,1009740,LEIDOS DIGITAL SOLUTIONS INC,2018-08-01,2018-08-31,TECHNOLOGY SERVICE CONTRACTS,3032,2018
,2018 DEMOCRATIC CAUCUS,Q3,GENERAL EXPENDITURES,OTHER SERVICES,DETAIL,2018-08-16,AP,1010278,LEIDOS DIGITAL SOLUTIONS INC,2018-08-01,2018-08-31,TECHNOLOGY SERVICE CONTRACTS,1860,2018
,2018 DEMOCRATIC CAUCUS,Q3,GENERAL EXPENDITURES,OTHER SERVICES,DETAIL,2018-08-17,AP,1010486,CITI PCARD-CLASSICLEANERS-LONGWOR,2018-06-29,2018-07-27,LAUNDRY SERVICES,131.89,2018
,2018 DEMOCRATIC CAUCUS,Q3,GENERAL EXPENDITURES,OTHER SERVICES,DETAIL,2018-09-13,AP,E0654711,CREATIVENGINE,2018-08-01,2018-12-31,WEB DEV HST EMAIL & RLTD SERV,1500,2018
,2018 DEMOCRATIC CAUCUS,Q3,GENERAL EXPENDITURES,OTHER SERVICES,DETAIL,2018-09-14,AP,E0654710,CREATIVENGINE,2018-07-10,2018-07-31,WEB DEV HST EMAIL & RLTD SERV,5000,2018
,2018 DEMOCRATIC CAUCUS,Q3,GENERAL EXPENDITURES,OTHER SERVICES,DETAIL,2018-09-16,AP,1014671,LEIDOS DIGITAL SOLUTIONS INC,2018-09-01,2018-09-30,TECHNOLOGY SERVICE CONTRACTS,3032,2018
,2018 DEMOCRATIC CAUCUS,Q3,GENERAL EXPENDITURES,OTHER SERVICES,DETAIL,2018-09-16,AP,1015205,LEIDOS DIGITAL SOLUTIONS INC,2018-09-01,2018-09-30,TECHNOLOGY SERVICE CONTRACTS,1860,2018
,2018 DEMOCRATIC CAUCUS,Q3,GENERAL EXPENDITURES,OTHER SERVICES,SUBTOTAL,   ,   ,   ,   ,   ,   ,OTHER SERVICES TOTALS:,21307.89,2018
,2018 DEMOCRATIC CAUCUS,Q3,GENERAL EXPENDITURES,SUPPLIES AND MATERIALS,DETAIL,2018-07-02,AP,999366,MAIN EVENT CATERERS LLC,2018-06-13,2018-06-13,FOOD & BEVERAGE,1705.83,2018
,2018 DEMOCRATIC CAUCUS,Q3,GENERAL EXPENDITURES,SUPPLIES AND MATERIALS,DETAIL,2018-07-02,AP,E0637353,CONGRESS CATERING LLC,2018-06-19,2018-06-19,FOOD & BEVERAGE,3620,2018
,2018 DEMOCRATIC CAUCUS,Q3,GENERAL EXPENDITURES,SUPPLIES AND MATERIALS,DETAIL,2018-07-11,AP,E0639563,CITIBANK GOV CARD SERVICE,2018-05-30,2018-06-05,FOOD & BEVERAGE,643.15,2018
,2018 DEMOCRATIC CAUCUS,Q3,GENERAL EXPENDITURES,SUPPLIES AND MATERIALS,DETAIL,2018-07-19,AP,1004523,CITI PCARD-AMAZON MKTPLACE PMTS,2018-05-29,2018-06-28,OFFICE SUPPLIES (OUTSIDE),223.02,2018
,2018 DEMOCRATIC CAUCUS,Q3,GENERAL EXPENDITURES,SUPPLIES AND MATERIALS,DETAIL,2018-07-19,AP,1004523,CITI PCARD-AMAZON MKTPLACE PMTS W,2018-05-29,2018-06-28,OFFICE SUPPLIES (OUTSIDE),209.76,2018
,2018 DEMOCRATIC CAUCUS,Q3,GENERAL EXPENDITURES,SUPPLIES AND MATERIALS,DETAIL,2018-07-19,AP,1004523,CITI PCARD-AMAZON.COM AMZN.COM/BI,2018-05-29,2018-06-28,OFFICE SUPPLIES (OUTSIDE),211.96,2018
,2018 DEMOCRATIC CAUCUS,Q3,GENERAL EXPENDITURES,SUPPLIES AND MATERIALS,DETAIL,2018-07-19,AP,1004523,CITI PCARD-APL APPLE ONLINE STORE,2018-05-29,2018-06-28,OFFICE SUPPLIES (OUTSIDE),948.58,2018
,2018 DEMOCRATIC CAUCUS,Q3,GENERAL EXPENDITURES,SUPPLIES AND MATERIALS,DETAIL,2018-07-19,AP,1004523,CITI PCARD-BETHESDA BAGELS OF DUP,2018-05-29,2018-06-28,FOOD & BEVERAGE,1067.79,2018
,2018 DEMOCRATIC CAUCUS,Q3,GENERAL EXPENDITURES,SUPPLIES AND MATERIALS,DETAIL,2018-07-19,AP,1004523,CITI PCARD-ECO-PRODUCTS,2018-05-29,2018-06-28,OFFICE SUPPLIES (OUTSIDE),37.64,2018
,2018 DEMOCRATIC CAUCUS,Q3,GENERAL EXPENDITURES,SUPPLIES AND MATERIALS,DETAIL,2018-07-19,AP,1004523,CITI PCARD-FIREHOOK CAPITOL HILL,2018-05-29,2018-06-28,FOOD & BEVERAGE,103.67,2018
,2018 DEMOCRATIC CAUCUS,Q3,GENERAL EXPENDITURES,SUPPLIES AND MATERIALS,DETAIL,2018-07-19,AP,1004523,CITI PCARD-GEORGETOWN CUPCAKE,2018-05-29,2018-06-28,FOOD & BEVERAGE,39.6,2018
,2018 DEMOCRATIC CAUCUS,Q3,GENERAL EXPENDITURES,SUPPLIES AND MATERIALS,DETAIL,2018-07-19,AP,1004523,CITI PCARD-HARRIS TEETER,2018-05-29,2018-06-28,FOOD & BEVERAGE,1414.99,2018
,2018 DEMOCRATIC CAUCUS,Q3,GENERAL EXPENDITURES,SUPPLIES AND MATERIALS,DETAIL,2018-07-19,AP,1004523,CITI PCARD-NEWSDAY HOME DELIVERY,2018-05-29,2018-06-28,PUBLICATIONS/REFERENCE MAT'L,-3.49,2018
,2018 DEMOCRATIC CAUCUS,Q3,GENERAL EXPENDITURES,SUPPLIES AND MATERIALS,DETAIL,2018-07-19,AP,1004523,CITI PCARD-TARGET,2018-05-29,2018-06-28,FOOD & BEVERAGE,632.38,2018
,2018 DEMOCRATIC CAUCUS,Q3,GENERAL EXPENDITURES,SUPPLIES AND MATERIALS,DETAIL,2018-07-19,AP,1004523,CITI PCARD-WHOLEFDS PST,2018-05-29,2018-06-28,FOOD & BEVERAGE,5.94,2018
,2018 DEMOCRATIC CAUCUS,Q3,GENERAL EXPENDITURES,SUPPLIES AND MATERIALS,DETAIL,2018-07-19,AP,1004523,CITI PCARD-WINDOWS CATERING COMPA,2018-05-29,2018-06-28,FOOD & BEVERAGE,315,2018
,2018 DEMOCRATIC CAUCUS,Q3,GENERAL EXPENDITURES,SUPPLIES AND MATERIALS,DETAIL,2018-07-26,AP,E0644349,ASSIM ANISAH,2018-06-05,2018-06-18,FOOD & BEVERAGE,56.3,2018
,2018 DEMOCRATIC CAUCUS,Q3,GENERAL EXPENDITURES,SUPPLIES AND MATERIALS,DETAIL,2018-07-30,AP,E0644357,CONGRESS CATERING LLC,2018-07-17,2018-07-17,FOOD & BEVERAGE,1327,2018
,2018 DEMOCRATIC CAUCUS,Q3,GENERAL EXPENDITURES,SUPPLIES AND MATERIALS,DETAIL,2018-07-30,AP,E0644358,CONGRESS CATERING LLC,2018-07-24,2018-07-24,FOOD & BEVERAGE,3675,2018
,2018 DEMOCRATIC CAUCUS,Q3,GENERAL EXPENDITURES,SUPPLIES AND MATERIALS,DETAIL,2018-07-30,AP,E0644359,CONGRESS CATERING LLC,2018-07-23,2018-07-23,FOOD & BEVERAGE,3450,2018
,2018 DEMOCRATIC CAUCUS,Q3,GENERAL EXPENDITURES,SUPPLIES AND MATERIALS,DETAIL,2018-07-31,AP,1005153,BSL GEM LASER EXPRESS LLC,2018-07-16,2018-07-16,OFFICE SUPPLIES (OUTSIDE) QTY - 3,240,2018
,2018 DEMOCRATIC CAUCUS,Q3,GENERAL EXPENDITURES,SUPPLIES AND MATERIALS,DETAIL,2018-07-31,GL,RMS0080260, ,2018-07-01,2018-07-31,OFFICE SUPPLY (TRANSFER),690.17,2018
,2018 DEMOCRATIC CAUCUS,Q3,GENERAL EXPENDITURES,SUPPLIES AND MATERIALS,DETAIL,2018-08-07,AP,1005924,DEER PARK,2018-06-30,2018-06-30,WATER,29.99,2018
,2018 DEMOCRATIC CAUCUS,Q3,GENERAL EXPENDITURES,SUPPLIES AND MATERIALS,DETAIL,2018-08-17,AP,1010486,CITI PCARD-AMAZON.COM AMZN.COM/BI,2018-06-29,2018-07-27,OFFICE SUPPLIES (OUTSIDE),39.96,2018
,2018 DEMOCRATIC CAUCUS,Q3,GENERAL EXPENDITURES,SUPPLIES AND MATERIALS,DETAIL,2018-08-17,AP,1010486,CITI PCARD-ASTRO DC ONLINE,2018-06-29,2018-07-27,FOOD & BEVERAGE,90,2018
,2018 DEMOCRATIC CAUCUS,Q3,GENERAL EXPENDITURES,SUPPLIES AND MATERIALS,DETAIL,2018-08-17,AP,1010486,CITI PCARD-BAKED AND WIRED,2018-06-29,2018-07-27,FOOD & BEVERAGE,65,2018
,2018 DEMOCRATIC CAUCUS,Q3,GENERAL EXPENDITURES,SUPPLIES AND MATERIALS,DETAIL,2018-08-17,AP,1010486,CITI PCARD-DT,2018-06-29,2018-07-27,FOOD & BEVERAGE,702.3,2018
,2018 DEMOCRATIC CAUCUS,Q3,GENERAL EXPENDITURES,SUPPLIES AND MATERIALS,DETAIL,2018-08-17,AP,1010486,CITI PCARD-HARRIS TEETER,2018-06-29,2018-07-27,FOOD & BEVERAGE,1785.54,2018
,2018 DEMOCRATIC CAUCUS,Q3,GENERAL EXPENDITURES,SUPPLIES AND MATERIALS,DETAIL,2018-08-17,AP,1010486,CITI PCARD-INSITE SERVICES,2018-06-29,2018-07-27,OFFICE SUPPLIES (OUTSIDE),-2426.26,2018
,2018 DEMOCRATIC CAUCUS,Q3,GENERAL EXPENDITURES,SUPPLIES AND MATERIALS,DETAIL,2018-08-17,AP,1010486,CITI PCARD-NEGRIL,2018-06-29,2018-07-27,FOOD & BEVERAGE,38.5,2018
,2018 DEMOCRATIC CAUCUS,Q3,GENERAL EXPENDITURES,SUPPLIES AND MATERIALS,DETAIL,2018-08-17,AP,1010486,CITI PCARD-SAINT GERMAIN CATERING,2018-06-29,2018-07-27,FOOD & BEVERAGE,2018.04,2018
,2018 DEMOCRATIC CAUCUS,Q3,GENERAL EXPENDITURES,SUPPLIES AND MATERIALS,DETAIL,2018-08-27,AP,1010982,DEER PARK,2018-07-31,2018-07-31,WATER,29.99,2018
,2018 DEMOCRATIC CAUCUS,Q3,GENERAL EXPENDITURES,SUPPLIES AND MATERIALS,DETAIL,2018-08-31,GL,RMS0081182, ,2018-08-01,2018-08-31,OFFICE SUPPLY (TRANSFER),87.16,2018
,2018 DEMOCRATIC CAUCUS,Q3,GENERAL EXPENDITURES,SUPPLIES AND MATERIALS,DETAIL,2018-09-16,AP,E0654713,CONGRESS CATERING LLC,2018-09-04,2018-09-04,FOOD & BEVERAGE,3350,2018
,2018 DEMOCRATIC CAUCUS,Q3,GENERAL EXPENDITURES,SUPPLIES AND MATERIALS,DETAIL,2018-09-25,AP,1018816,DEER PARK,2018-08-31,2018-08-31,WATER,29.99,2018
,2018 DEMOCRATIC CAUCUS,Q3,GENERAL EXPENDITURES,SUPPLIES AND MATERIALS,DETAIL,2018-09-26,AP,1019131,CITI PCARD-AMAZON.COM,2018-07-28,2018-08-28,FOOD & BEVERAGE,125.85,2018
,2018 DEMOCRATIC CAUCUS,Q3,GENERAL EXPENDITURES,SUPPLIES AND MATERIALS,DETAIL,2018-09-26,AP,1019131,CITI PCARD-AMAZON.COM AMZN.COM/BI,2018-07-28,2018-08-28,OFFICE SUPPLIES (OUTSIDE),143.13,2018
,2018 DEMOCRATIC CAUCUS,Q3,GENERAL EXPENDITURES,SUPPLIES AND MATERIALS,DETAIL,2018-09-26,AP,1019131,CITI PCARD-AMZN MKTP US,2018-07-28,2018-08-28,FOOD & BEVERAGE,130.01,2018
,2018 DEMOCRATIC CAUCUS,Q3,GENERAL EXPENDITURES,SUPPLIES AND MATERIALS,DETAIL,2018-09-26,AP,1019131,CITI PCARD-AMZN MKTP US,2018-07-28,2018-08-28,OFFICE SUPPLIES (OUTSIDE),179.52,2018
,2018 DEMOCRATIC CAUCUS,Q3,GENERAL EXPENDITURES,SUPPLIES AND MATERIALS,DETAIL,2018-09-26,AP,1019131,CITI PCARD-AMZN MKTP US AMZN.COM/,2018-07-28,2018-08-28,FOOD & BEVERAGE,253.76,2018
,2018 DEMOCRATIC CAUCUS,Q3,GENERAL EXPENDITURES,SUPPLIES AND MATERIALS,DETAIL,2018-09-26,AP,1019131,CITI PCARD-AMZN MKTP US AMZN.COM/,2018-07-28,2018-08-28,OFFICE SUPPLIES (OUTSIDE),227.98,2018
,2018 DEMOCRATIC CAUCUS,Q3,GENERAL EXPENDITURES,SUPPLIES AND MATERIALS,DETAIL,2018-09-26,AP,1019131,CITI PCARD-APPLE STORE #R,2018-07-28,2018-08-28,OFFICE SUPPLIES (OUTSIDE),504.42,2018
,2018 DEMOCRATIC CAUCUS,Q3,GENERAL EXPENDITURES,SUPPLIES AND MATERIALS,DETAIL,2018-09-26,AP,1019131,CITI PCARD-CREAMERY DD,2018-07-28,2018-08-28,FOOD & BEVERAGE,17,2018
,2018 DEMOCRATIC CAUCUS,Q3,GENERAL EXPENDITURES,SUPPLIES AND MATERIALS,DETAIL,2018-09-26,AP,1019131,CITI PCARD-ECO-PRODUCTS,2018-07-28,2018-08-28,OFFICE SUPPLIES (OUTSIDE),867.58,2018
,2018 DEMOCRATIC CAUCUS,Q3,GENERAL EXPENDITURES,SUPPLIES AND MATERIALS,DETAIL,2018-09-26,AP,1019131,CITI PCARD-FIREHOOK CAPITOL HILL,2018-07-28,2018-08-28,FOOD & BEVERAGE,47.52,2018
,2018 DEMOCRATIC CAUCUS,Q3,GENERAL EXPENDITURES,SUPPLIES AND MATERIALS,DETAIL,2018-09-26,AP,1019131,CITI PCARD-GEORGETOWN CUPCAKE,2018-07-28,2018-08-28,FOOD & BEVERAGE,89.2,2018
,2018 DEMOCRATIC CAUCUS,Q3,GENERAL EXPENDITURES,SUPPLIES AND MATERIALS,DETAIL,2018-09-26,AP,1019131,CITI PCARD-HARRIS TEETER,2018-07-28,2018-08-28,FOOD & BEVERAGE,160.4,2018
,2018 DEMOCRATIC CAUCUS,Q3,GENERAL EXPENDITURES,SUPPLIES AND MATERIALS,DETAIL,2018-09-26,AP,1019131,CITI PCARD-REBILL INSITE SERVICES,2018-07-28,2018-08-28,OFFICE SUPPLIES (OUTSIDE),2426.26,2018
,2018 DEMOCRATIC CAUCUS,Q3,GENERAL EXPENDITURES,SUPPLIES AND MATERIALS,DETAIL,2018-09-26,AP,1019131,CITI PCARD-SAFEWAY,2018-07-28,2018-08-28,FOOD & BEVERAGE,184.61,2018
,2018 DEMOCRATIC CAUCUS,Q3,GENERAL EXPENDITURES,SUPPLIES AND MATERIALS,DETAIL,2018-09-28,GL,RMS0082045, ,2018-09-01,2018-09-30,OFFICE SUPPLY (TRANSFER),184.04,2018
,2018 DEMOCRATIC CAUCUS,Q3,GENERAL EXPENDITURES,SUPPLIES AND MATERIALS,SUBTOTAL,   ,   ,   ,   ,   ,   ,SUPPLIES AND MATERIALS TOTALS:,31995.78,2018
,2018 DEMOCRATIC CAUCUS,Q3,GENERAL EXPENDITURES,EQUIPMENT,DETAIL,2018-07-31,GL,MNT0080188, ,2018-07-01,2018-07-31,MAINTENANCE / REPAIRS,137,2018
,2018 DEMOCRATIC CAUCUS,Q3,GENERAL EXPENDITURES,EQUIPMENT,DETAIL,2018-08-31,GL,MNT0081088, ,2018-08-01,2018-08-31,MAINTENANCE / REPAIRS,137,2018
,2018 DEMOCRATIC CAUCUS,Q3,GENERAL EXPENDITURES,EQUIPMENT,SUBTOTAL,   ,   ,   ,   ,   ,   ,EQUIPMENT TOTALS:,274,2018
,2018 DEMOCRATIC CAUCUS,Q3,GENERAL EXPENDITURES,EQUIPMENT,SUBTOTAL,   ,   ,   ,   ,   ,   ,GENERAL EXPENDITURES TOTALS:,379165.11,2018
,2018 DEMOCRATIC CAUCUS,Q3,GENERAL EXPENDITURES,EQUIPMENT,GRAND TOTAL FOR ORGANIZATION,   ,   ,   ,   ,   ,   ,OFFICE TOTALS: ,379165.11,2018
,2018 REPUBLICAN CONFERENCE,Q3,GENERAL EXPENDITURES,PERSONNEL COMPENSATION,DETAIL,   ,   ,   ,BARKLEY RACHEL K,2018-07-01,2018-09-30,DIRECTOR OF OUTREACH,26249.99,2018
,2018 REPUBLICAN CONFERENCE,Q3,GENERAL EXPENDITURES,PERSONNEL COMPENSATION,DETAIL,   ,   ,   ,CAMERON MICHAEL T,2018-09-06,2018-09-30,STAFF ASSISTANT,2083.33,2018
,2018 REPUBLICAN CONFERENCE,Q3,GENERAL EXPENDITURES,PERSONNEL COMPENSATION,DETAIL,   ,   ,   ,CROCKER NICHOLAS L,2018-07-01,2018-09-30,MEMBER SERVICES COORDINATOR,15000,2018
,2018 REPUBLICAN CONFERENCE,Q3,GENERAL EXPENDITURES,PERSONNEL COMPENSATION,DETAIL,   ,   ,   ,DEUTSCH JEREMY,2018-07-01,2018-09-30,CHIEF OF STAFF,39312.51,2018
,2018 REPUBLICAN CONFERENCE,Q3,GENERAL EXPENDITURES,PERSONNEL COMPENSATION,DETAIL,   ,   ,   ,FINE GAVRIELA R,2018-07-01,2018-09-30,STAFF ASSIST/EXC ASSIST TO COS,10916.67,2018
,2018 REPUBLICAN CONFERENCE,Q3,GENERAL EXPENDITURES,PERSONNEL COMPENSATION,DETAIL,   ,   ,   ,HALL MIKAYLA M,2018-07-01,2018-09-30,SPEECH WRITER,15500.01,2018
,2018 REPUBLICAN CONFERENCE,Q3,GENERAL EXPENDITURES,PERSONNEL COMPENSATION,DETAIL,   ,   ,   ,HAUCK KARA,2018-07-01,2018-09-30,COMMUNICATIONS DIRECTOR,31250.01,2018
,2018 REPUBLICAN CONFERENCE,Q3,GENERAL EXPENDITURES,PERSONNEL COMPENSATION,DETAIL,   ,   ,   ,HNAT OLIVIA R,2018-07-01,2018-09-30,NATIONAL PRESS SECRETARY,18750,2018
,2018 REPUBLICAN CONFERENCE,Q3,GENERAL EXPENDITURES,PERSONNEL COMPENSATION,DETAIL,   ,   ,   ,HODSON NATHAN M,2018-07-01,2018-09-30,DEPUTY CHIEF OF STAFF,43125,2018
,2018 REPUBLICAN CONFERENCE,Q3,GENERAL EXPENDITURES,PERSONNEL COMPENSATION,DETAIL,   ,   ,   ,KING EMILY P,2018-07-01,2018-09-30,SCHEDULER,18750,2018
,2018 REPUBLICAN CONFERENCE,Q3,GENERAL EXPENDITURES,PERSONNEL COMPENSATION,DETAIL,   ,   ,   ,MILLER KAYLA R,2018-09-17,2018-09-30,STAFF ASSISTANT,1166.67,2018
,2018 REPUBLICAN CONFERENCE,Q3,GENERAL EXPENDITURES,PERSONNEL COMPENSATION,DETAIL,   ,   ,   ,OLIVER BROOKE B,2018-07-01,2018-09-30,SHARED EMPLOYEE,777.78,2018
,2018 REPUBLICAN CONFERENCE,Q3,GENERAL EXPENDITURES,PERSONNEL COMPENSATION,DETAIL,   ,   ,   ,PAQUETTE CHERIE L,2018-07-01,2018-08-31,MEDIA AFFAIRS & EVENTS MANAGER,14000,2018
,2018 REPUBLICAN CONFERENCE,Q3,GENERAL EXPENDITURES,PERSONNEL COMPENSATION,DETAIL,   ,   ,   ,PAQUETTE CHERIE L,2018-09-01,2018-09-30,DIRECTOR OF MEDIA AFFAIRS & EV,7966.66,2018
,2018 REPUBLICAN CONFERENCE,Q3,GENERAL EXPENDITURES,PERSONNEL COMPENSATION,DETAIL,   ,   ,   ,ROGERS SARAH E,2018-07-01,2018-09-30,DIRECTOR OF MEMBER SERVICES,34374.99,2018
,2018 REPUBLICAN CONFERENCE,Q3,GENERAL EXPENDITURES,PERSONNEL COMPENSATION,DETAIL,   ,   ,   ,ROOS AMBER E,2018-07-01,2018-09-30,FINANCE DIRECTOR,2725.09,2018
,2018 REPUBLICAN CONFERENCE,Q3,GENERAL EXPENDITURES,PERSONNEL COMPENSATION,DETAIL,   ,   ,   ,SMENTEK DAVID,2018-07-01,2018-09-30,POLICY COORDINATOR,7500,2018
,2018 REPUBLICAN CONFERENCE,Q3,GENERAL EXPENDITURES,PERSONNEL COMPENSATION,DETAIL,   ,   ,   ,STEELE SOPHIA A,2018-07-01,2018-09-30,SPECIAL ASSISTANT,7812.5,2018
,2018 REPUBLICAN CONFERENCE,Q3,GENERAL EXPENDITURES,PERSONNEL COMPENSATION,DETAIL,   ,   ,   ,THORNE DRAY A,2018-07-01,2018-09-30,SYSTEMS ADMINISTRATOR,22749.99,2018
,2018 REPUBLICAN CONFERENCE,Q3,GENERAL EXPENDITURES,PERSONNEL COMPENSATION,DETAIL,   ,   ,   ,VONENDE KYLE J,2018-07-01,2018-09-30,COMMUNICATIONS ASSISTANT,8000,2018
,2018 REPUBLICAN CONFERENCE,Q3,GENERAL EXPENDITURES,PERSONNEL COMPENSATION,SUBTOTAL,   ,   ,   ,   ,   ,   ,PERSONNEL COMPENSATION TOTALS:,328011.2,2018
,2018 REPUBLICAN CONFERENCE,Q3,GENERAL EXPENDITURES,TRAVEL,DETAIL,2018-07-20,AP,E0641394,CITIBANK GOV CARD SERVICE,2018-06-05,2018-06-05,TAXI/PARKING/TOLLS,19.42,2018
,2018 REPUBLICAN CONFERENCE,Q3,GENERAL EXPENDITURES,TRAVEL,DETAIL,2018-08-22,AP,E0649051,CITIBANK GOV CARD SERVICE,2018-07-11,2018-07-25,TAXI/PARKING/TOLLS,61.79,2018
,2018 REPUBLICAN CONFERENCE,Q3,GENERAL EXPENDITURES,TRAVEL,DETAIL,2018-08-27,AP,E0649943,BARKLEY RACHEL K.,2018-08-08,2018-08-11,COMMERCIAL TRANSPORTATION,310.4,2018
,2018 REPUBLICAN CONFERENCE,Q3,GENERAL EXPENDITURES,TRAVEL,DETAIL,2018-08-27,AP,E0649943,BARKLEY RACHEL K.,2018-08-11,2018-08-11,TAXI/PARKING/TOLLS,33.85,2018
,2018 REPUBLICAN CONFERENCE,Q3,GENERAL EXPENDITURES,TRAVEL,DETAIL,2018-09-21,AP,E0656597,PAQUETTE CHERIE L.,2018-08-28,2018-08-30,LODGING,54.44,2018
,2018 REPUBLICAN CONFERENCE,Q3,GENERAL EXPENDITURES,TRAVEL,DETAIL,2018-09-21,AP,E0656597,PAQUETTE CHERIE L.,2018-08-28,2018-08-30,MEALS,191.58,2018
,2018 REPUBLICAN CONFERENCE,Q3,GENERAL EXPENDITURES,TRAVEL,DETAIL,2018-09-21,AP,E0656597,PAQUETTE CHERIE L.,2018-08-28,2018-08-28,TAXI/PARKING/TOLLS,11.5,2018
,2018 REPUBLICAN CONFERENCE,Q3,GENERAL EXPENDITURES,TRAVEL,DETAIL,2018-09-21,AP,E0656597,PAQUETTE CHERIE L.,2018-08-28,2018-08-30,TAXI/PARKING/TOLLS,77.86,2018
,2018 REPUBLICAN CONFERENCE,Q3,GENERAL EXPENDITURES,TRAVEL,SUBTOTAL,   ,   ,   ,   ,   ,   ,TRAVEL TOTALS:,760.84,2018
,2018 REPUBLICAN CONFERENCE,Q3,GENERAL EXPENDITURES,RENT  COMMUNICATION  UTILITIES,DETAIL,2018-07-25,GL,GRP0080036, ,2018-07-01,2018-07-31,HIR GRAPHICS (TRANSFER),73,2018
,2018 REPUBLICAN CONFERENCE,Q3,GENERAL EXPENDITURES,RENT  COMMUNICATION  UTILITIES,DETAIL,2018-07-26,GL,EMS0080133, ,2018-06-01,2018-06-30,DC TELECOM EQUIP (TRANSFER),84,2018
,2018 REPUBLICAN CONFERENCE,Q3,GENERAL EXPENDITURES,RENT  COMMUNICATION  UTILITIES,DETAIL,2018-07-26,GL,EMS0080133, ,2018-06-01,2018-06-30,DC TELECOM SERV (TRANSFER),291.75,2018
,2018 REPUBLICAN CONFERENCE,Q3,GENERAL EXPENDITURES,RENT  COMMUNICATION  UTILITIES,DETAIL,2018-07-26,GL,EMS0080133, ,2018-06-01,2018-06-30,DC TELECOM TOLLS (TRANSFER),1830.14,2018
,2018 REPUBLICAN CONFERENCE,Q3,GENERAL EXPENDITURES,RENT  COMMUNICATION  UTILITIES,DETAIL,2018-08-17,AP,1010486,CITI PCARD-SPOTIFY USA,2018-06-29,2018-07-27,UTILITIES,9.99,2018
,2018 REPUBLICAN CONFERENCE,Q3,GENERAL EXPENDITURES,RENT  COMMUNICATION  UTILITIES,DETAIL,2018-08-27,GL,EMS0080878, ,2018-07-01,2018-07-31,DC TELECOM EQUIP (TRANSFER),180,2018
,2018 REPUBLICAN CONFERENCE,Q3,GENERAL EXPENDITURES,RENT  COMMUNICATION  UTILITIES,DETAIL,2018-08-27,GL,EMS0080878, ,2018-07-01,2018-07-31,DC TELECOM SERV (TRANSFER),291.75,2018
,2018 REPUBLICAN CONFERENCE,Q3,GENERAL EXPENDITURES,RENT  COMMUNICATION  UTILITIES,DETAIL,2018-08-27,GL,EMS0080878, ,2018-07-01,2018-07-31,DC TELECOM TOLLS (TRANSFER),2874.02,2018
,2018 REPUBLICAN CONFERENCE,Q3,GENERAL EXPENDITURES,RENT  COMMUNICATION  UTILITIES,DETAIL,2018-08-30,GL,GRP0081044, ,2018-08-01,2018-08-31,HIR GRAPHICS (TRANSFER),31,2018
,2018 REPUBLICAN CONFERENCE,Q3,GENERAL EXPENDITURES,RENT  COMMUNICATION  UTILITIES,DETAIL,2018-09-24,GL,GRP0081673, ,2018-09-01,2018-09-30,HIR GRAPHICS (TRANSFER),365,2018
,2018 REPUBLICAN CONFERENCE,Q3,GENERAL EXPENDITURES,RENT  COMMUNICATION  UTILITIES,DETAIL,2018-09-25,GL,EMS0081714, ,2018-08-01,2018-08-31,DC TELECOM EQUIP (TRANSFER),84,2018
,2018 REPUBLICAN CONFERENCE,Q3,GENERAL EXPENDITURES,RENT  COMMUNICATION  UTILITIES,DETAIL,2018-09-25,GL,EMS0081714, ,2018-08-01,2018-08-31,DC TELECOM SERV (TRANSFER),291.75,2018
,2018 REPUBLICAN CONFERENCE,Q3,GENERAL EXPENDITURES,RENT  COMMUNICATION  UTILITIES,DETAIL,2018-09-25,GL,EMS0081714, ,2018-08-01,2018-08-31,DC TELECOM TOLLS (TRANSFER),1954.99,2018
,2018 REPUBLICAN CONFERENCE,Q3,GENERAL EXPENDITURES,RENT  COMMUNICATION  UTILITIES,SUBTOTAL,   ,   ,   ,   ,   ,   ,RENT  COMMUNICATION  UTILITIES TOTALS:,8361.39,2018
,2018 REPUBLICAN CONFERENCE,Q3,GENERAL EXPENDITURES,PRINTING AND REPRODUCTION,DETAIL,2018-07-16,AP,E0641590,ACCURATE WORD LLC,2018-07-06,2018-07-06,PRINTING & REPRODUCTION,39.95,2018
,2018 REPUBLICAN CONFERENCE,Q3,GENERAL EXPENDITURES,PRINTING AND REPRODUCTION,DETAIL,2018-07-19,AP,1004523,CITI PCARD-FACEBK ZCCPJFJ2V,2018-05-29,2018-06-28,ADVERTISEMENTS,233.11,2018
,2018 REPUBLICAN CONFERENCE,Q3,GENERAL EXPENDITURES,PRINTING AND REPRODUCTION,DETAIL,2018-08-01,AP,E0644879,CROCKER NICHOLAS L.,2018-07-25,2018-07-25,PRINTING & REPRODUCTION,2671.4,2018
,2018 REPUBLICAN CONFERENCE,Q3,GENERAL EXPENDITURES,PRINTING AND REPRODUCTION,DETAIL,2018-08-14,AP,E0647469,ACCURATE WORD LLC,2018-07-26,2018-07-26,PRINTING & REPRODUCTION,109.85,2018
,2018 REPUBLICAN CONFERENCE,Q3,GENERAL EXPENDITURES,PRINTING AND REPRODUCTION,DETAIL,2018-08-17,AP,1010486,CITI PCARD-COLORGRAPHIC PRINTIN,2018-06-29,2018-07-27,PRINTING & REPRODUCTION,5000,2018
,2018 REPUBLICAN CONFERENCE,Q3,GENERAL EXPENDITURES,PRINTING AND REPRODUCTION,DETAIL,2018-08-17,AP,1010486,CITI PCARD-NPRINT GRAPHIX,2018-06-29,2018-07-27,PRINTING & REPRODUCTION,110,2018
,2018 REPUBLICAN CONFERENCE,Q3,GENERAL EXPENDITURES,PRINTING AND REPRODUCTION,DETAIL,2018-08-27,AP,E0651306,ACCURATE WORD LLC,2018-08-20,2018-08-20,PRINTING & REPRODUCTION,59.95,2018
,2018 REPUBLICAN CONFERENCE,Q3,GENERAL EXPENDITURES,PRINTING AND REPRODUCTION,DETAIL,2018-09-25,AP,1018154,ACCURATE WORD LLC,2018-09-13,2018-09-13,PRINTING & REPRODUCTION,59.9,2018
,2018 REPUBLICAN CONFERENCE,Q3,GENERAL EXPENDITURES,PRINTING AND REPRODUCTION,DETAIL,2018-09-26,AP,1018528,ACCURATE WORD LLC,2018-09-14,2018-09-14,PRINTING & REPRODUCTION,29.95,2018
,2018 REPUBLICAN CONFERENCE,Q3,GENERAL EXPENDITURES,PRINTING AND REPRODUCTION,DETAIL,2018-09-26,AP,1018532,SHARP BUSINESS SYSTEMS,2018-05-31,2018-08-31,PRINTING & REPRODUCTION,2124.9,2018
,2018 REPUBLICAN CONFERENCE,Q3,GENERAL EXPENDITURES,PRINTING AND REPRODUCTION,DETAIL,2018-09-26,AP,1019131,CITI PCARD-STK SHUTTERSTOCK INC.,2018-07-28,2018-08-28,PRINTING & REPRODUCTION,116,2018
,2018 REPUBLICAN CONFERENCE,Q3,GENERAL EXPENDITURES,PRINTING AND REPRODUCTION,SUBTOTAL,   ,   ,   ,   ,   ,   ,PRINTING AND REPRODUCTION TOTALS:,10555.01,2018
,2018 REPUBLICAN CONFERENCE,Q3,GENERAL EXPENDITURES,OTHER SERVICES,DETAIL,2018-07-16,AP,E0639962,ELEVEN11 GROUP LLC,2018-08-01,2018-08-31,WEB DEV HST EMAIL & RLTD SERV,2545,2018
,2018 REPUBLICAN CONFERENCE,Q3,GENERAL EXPENDITURES,OTHER SERVICES,DETAIL,2018-07-19,AP,1004523,CITI PCARD-101DOMAIN,2018-05-29,2018-06-28,WEB DEV HST EMAIL & RLTD SERV,73,2018
,2018 REPUBLICAN CONFERENCE,Q3,GENERAL EXPENDITURES,OTHER SERVICES,DETAIL,2018-07-19,AP,1004523,CITI PCARD-ENVOY.COM VISITOR REG,2018-05-29,2018-06-28,WEB DEV HST EMAIL & RLTD SERV,2988,2018
,2018 REPUBLICAN CONFERENCE,Q3,GENERAL EXPENDITURES,OTHER SERVICES,DETAIL,2018-07-19,AP,1004523,CITI PCARD-MAILCHIMP    MONTHLY,2018-05-29,2018-06-28,WEB DEV HST EMAIL & RLTD SERV,484.95,2018
,2018 REPUBLICAN CONFERENCE,Q3,GENERAL EXPENDITURES,OTHER SERVICES,DETAIL,2018-07-19,AP,1004523,CITI PCARD-PIXEL FILM STUDIOS,2018-05-29,2018-06-28,WEB DEV HST EMAIL & RLTD SERV,29.95,2018
,2018 REPUBLICAN CONFERENCE,Q3,GENERAL EXPENDITURES,OTHER SERVICES,DETAIL,2018-07-19,AP,1004523,CITI PCARD-SLACK,2018-05-29,2018-06-28,WEB DEV HST EMAIL & RLTD SERV,444.26,2018
,2018 REPUBLICAN CONFERENCE,Q3,GENERAL EXPENDITURES,OTHER SERVICES,DETAIL,2018-07-19,AP,1004523,CITI PCARD-SQUARESPACE INC.,2018-05-29,2018-06-28,WEB DEV HST EMAIL & RLTD SERV,288,2018
,2018 REPUBLICAN CONFERENCE,Q3,GENERAL EXPENDITURES,OTHER SERVICES,DETAIL,2018-07-20,AP,E0641589,EVAN JAMES WALKER,2018-07-01,2018-07-31,TECHNOLOGY SERVICE CONTRACTS,7042,2018
,2018 REPUBLICAN CONFERENCE,Q3,GENERAL EXPENDITURES,OTHER SERVICES,DETAIL,2018-07-24,AP,E0641588,ELEVEN11 GROUP LLC,2018-08-01,2018-08-31,WEB DEV HST EMAIL & RLTD SERV,11019.8,2018
,2018 REPUBLICAN CONFERENCE,Q3,GENERAL EXPENDITURES,OTHER SERVICES,DETAIL,2018-08-17,AP,1010486,CITI PCARD-CLASSICLEANERS-LONGWOR,2018-06-29,2018-07-27,JANITORIAL AND MAINT SERV,986.53,2018
,2018 REPUBLICAN CONFERENCE,Q3,GENERAL EXPENDITURES,OTHER SERVICES,DETAIL,2018-08-17,AP,1010486,CITI PCARD-HELLO  HELLOSIGN,2018-06-29,2018-07-27,WEB DEV HST EMAIL & RLTD SERV,480,2018
,2018 REPUBLICAN CONFERENCE,Q3,GENERAL EXPENDITURES,OTHER SERVICES,DETAIL,2018-08-17,AP,1010486,CITI PCARD-MAILCHIMP    MONTHLY,2018-06-29,2018-07-27,WEB DEV HST EMAIL & RLTD SERV,484.95,2018
,2018 REPUBLICAN CONFERENCE,Q3,GENERAL EXPENDITURES,OTHER SERVICES,DETAIL,2018-08-17,AP,1010486,CITI PCARD-PIXEL FILM STUDIOS,2018-06-29,2018-07-27,WEB DEV HST EMAIL & RLTD SERV,29.95,2018
,2018 REPUBLICAN CONFERENCE,Q3,GENERAL EXPENDITURES,OTHER SERVICES,DETAIL,2018-08-17,AP,1010486,CITI PCARD-SLACK,2018-06-29,2018-07-27,WEB DEV HST EMAIL & RLTD SERV,398.44,2018
,2018 REPUBLICAN CONFERENCE,Q3,GENERAL EXPENDITURES,OTHER SERVICES,DETAIL,2018-08-24,AP,E0649231,SATELLITE BLACK INC,2018-08-01,2018-08-31,TECHNOLOGY SERVICE CONTRACTS,7042,2018
,2018 REPUBLICAN CONFERENCE,Q3,GENERAL EXPENDITURES,OTHER SERVICES,DETAIL,2018-08-27,AP,E0649942,ELEVEN11 GROUP LLC,2018-09-01,2018-09-30,WEB DEV HST EMAIL & RLTD SERV,10332.04,2018
,2018 REPUBLICAN CONFERENCE,Q3,GENERAL EXPENDITURES,OTHER SERVICES,DETAIL,2018-08-27,AP,E0649943,BARKLEY RACHEL K.,2018-08-08,2018-08-08,TRAINING,625,2018
,2018 REPUBLICAN CONFERENCE,Q3,GENERAL EXPENDITURES,OTHER SERVICES,DETAIL,2018-08-30,AP,E0651627,ELEVEN11 GROUP LLC,2018-09-01,2018-09-30,WEB DEV HST EMAIL & RLTD SERV,2545,2018
,2018 REPUBLICAN CONFERENCE,Q3,GENERAL EXPENDITURES,OTHER SERVICES,DETAIL,2018-09-19,AP,E0655733,EVAN JAMES WALKER,2018-09-01,2018-09-30,TECHNOLOGY SERVICE CONTRACTS,7042,2018
,2018 REPUBLICAN CONFERENCE,Q3,GENERAL EXPENDITURES,OTHER SERVICES,DETAIL,2018-09-24,AP,E0656338,ELEVEN11 GROUP LLC,2018-10-01,2018-10-31,WEB DEV HST EMAIL & RLTD SERV,10601.16,2018
,2018 REPUBLICAN CONFERENCE,Q3,GENERAL EXPENDITURES,OTHER SERVICES,DETAIL,2018-09-24,AP,E0656514,ELEVEN11 GROUP LLC,2018-10-01,2018-10-31,WEB DEV HST EMAIL & RLTD SERV,2545,2018
,2018 REPUBLICAN CONFERENCE,Q3,GENERAL EXPENDITURES,OTHER SERVICES,DETAIL,2018-09-26,AP,1019131,CITI PCARD-CBI FLIPPINGBOOK LTD.,2018-07-28,2018-08-28,WEB DEV HST EMAIL & RLTD SERV,59,2018
,2018 REPUBLICAN CONFERENCE,Q3,GENERAL EXPENDITURES,OTHER SERVICES,DETAIL,2018-09-26,AP,1019131,CITI PCARD-CREATIVEMARKET.COM,2018-07-28,2018-08-28,WEB DEV HST EMAIL & RLTD SERV,10,2018
,2018 REPUBLICAN CONFERENCE,Q3,GENERAL EXPENDITURES,OTHER SERVICES,DETAIL,2018-09-26,AP,1019131,CITI PCARD-DRI VSCO.CO,2018-07-28,2018-08-28,WEB DEV HST EMAIL & RLTD SERV,62.39,2018
,2018 REPUBLICAN CONFERENCE,Q3,GENERAL EXPENDITURES,OTHER SERVICES,DETAIL,2018-09-26,AP,1019131,CITI PCARD-MAILCHIMP    MONTHLY,2018-07-28,2018-08-28,WEB DEV HST EMAIL & RLTD SERV,484.95,2018
,2018 REPUBLICAN CONFERENCE,Q3,GENERAL EXPENDITURES,OTHER SERVICES,DETAIL,2018-09-26,AP,1019131,CITI PCARD-SLACK,2018-07-28,2018-08-28,WEB DEV HST EMAIL & RLTD SERV,336.46,2018
,2018 REPUBLICAN CONFERENCE,Q3,GENERAL EXPENDITURES,OTHER SERVICES,DETAIL,2018-09-26,AP,1019131,CITI PCARD-SQUARESPACE INC.,2018-07-28,2018-08-28,WEB DEV HST EMAIL & RLTD SERV,170,2018
,2018 REPUBLICAN CONFERENCE,Q3,GENERAL EXPENDITURES,OTHER SERVICES,DETAIL,2018-09-26,AP,1019131,CITI PCARD-TYPEFORM S.L,2018-07-28,2018-08-28,WEB DEV HST EMAIL & RLTD SERV,700,2018
,2018 REPUBLICAN CONFERENCE,Q3,GENERAL EXPENDITURES,OTHER SERVICES,SUBTOTAL,   ,   ,   ,   ,   ,   ,OTHER SERVICES TOTALS:,69849.83,2018
,2018 REPUBLICAN CONFERENCE,Q3,GENERAL EXPENDITURES,SUPPLIES AND MATERIALS,DETAIL,2018-07-06,AP,E0638781,HAGUE QUALITY WATER OF MD INC,2018-07-01,2018-07-31,WATER,63,2018
,2018 REPUBLICAN CONFERENCE,Q3,GENERAL EXPENDITURES,SUPPLIES AND MATERIALS,DETAIL,2018-07-19,AP,1004523,CITI PCARD-ADOBE SYSTEMS INC,2018-05-29,2018-06-28,SOFTWARE  LESS THAN  $500,592.13,2018
,2018 REPUBLICAN CONFERENCE,Q3,GENERAL EXPENDITURES,SUPPLIES AND MATERIALS,DETAIL,2018-07-19,AP,1004523,CITI PCARD-AMAZON MKTPLACE PMTS,2018-05-29,2018-06-28,OFFICE SUPPLIES (OUTSIDE),1429.79,2018
,2018 REPUBLICAN CONFERENCE,Q3,GENERAL EXPENDITURES,SUPPLIES AND MATERIALS,DETAIL,2018-07-19,AP,1004523,CITI PCARD-AMAZON MKTPLACE PMTS W,2018-05-29,2018-06-28,OFFICE SUPPLIES (OUTSIDE),119.83,2018
,2018 REPUBLICAN CONFERENCE,Q3,GENERAL EXPENDITURES,SUPPLIES AND MATERIALS,DETAIL,2018-07-19,AP,1004523,CITI PCARD-AMAZON.COM,2018-05-29,2018-06-28,OFFICE SUPPLIES (OUTSIDE),24.78,2018
,2018 REPUBLICAN CONFERENCE,Q3,GENERAL EXPENDITURES,SUPPLIES AND MATERIALS,DETAIL,2018-07-19,AP,1004523,CITI PCARD-BOX BOX.NET BUS SRVCS,2018-05-29,2018-06-28,SOFTWARE  LESS THAN  $500,45,2018
,2018 REPUBLICAN CONFERENCE,Q3,GENERAL EXPENDITURES,SUPPLIES AND MATERIALS,DETAIL,2018-07-19,AP,1004523,CITI PCARD-CATERING AUBONPAIN,2018-05-29,2018-06-28,FOOD & BEVERAGE,1816.67,2018
,2018 REPUBLICAN CONFERENCE,Q3,GENERAL EXPENDITURES,SUPPLIES AND MATERIALS,DETAIL,2018-07-19,AP,1004523,CITI PCARD-CHICK-FIL-A,2018-05-29,2018-06-28,FOOD & BEVERAGE,6358.3,2018
,2018 REPUBLICAN CONFERENCE,Q3,GENERAL EXPENDITURES,SUPPLIES AND MATERIALS,DETAIL,2018-07-19,AP,1004523,CITI PCARD-CORNER BAKERY,2018-05-29,2018-06-28,FOOD & BEVERAGE,6897.2,2018
,2018 REPUBLICAN CONFERENCE,Q3,GENERAL EXPENDITURES,SUPPLIES AND MATERIALS,DETAIL,2018-07-19,AP,1004523,CITI PCARD-HARRIS TEETER,2018-05-29,2018-06-28,FOOD & BEVERAGE,61.26,2018
,2018 REPUBLICAN CONFERENCE,Q3,GENERAL EXPENDITURES,SUPPLIES AND MATERIALS,DETAIL,2018-07-19,AP,1004523,CITI PCARD-LEVELUP POTBELLY,2018-05-29,2018-06-28,FOOD & BEVERAGE,1305.65,2018
,2018 REPUBLICAN CONFERENCE,Q3,GENERAL EXPENDITURES,SUPPLIES AND MATERIALS,DETAIL,2018-07-19,AP,1004523,CITI PCARD-NPRINT GRAPHIX,2018-05-29,2018-06-28,OFFICE SUPPLIES (OUTSIDE),466.76,2018
,2018 REPUBLICAN CONFERENCE,Q3,GENERAL EXPENDITURES,SUPPLIES AND MATERIALS,DETAIL,2018-07-19,AP,1004523,CITI PCARD-PREMIUMBEAT.COM,2018-05-29,2018-06-28,OFFICE SUPPLIES (OUTSIDE),245,2018
,2018 REPUBLICAN CONFERENCE,Q3,GENERAL EXPENDITURES,SUPPLIES AND MATERIALS,DETAIL,2018-07-19,AP,1004523,CITI PCARD-QDOBA MEXICAN GRIL,2018-05-29,2018-06-28,FOOD & BEVERAGE,2423.53,2018
,2018 REPUBLICAN CONFERENCE,Q3,GENERAL EXPENDITURES,SUPPLIES AND MATERIALS,DETAIL,2018-07-19,AP,1004523,CITI PCARD-ROTI MEDITERRANEAN GRI,2018-05-29,2018-06-28,FOOD & BEVERAGE,375.45,2018
,2018 REPUBLICAN CONFERENCE,Q3,GENERAL EXPENDITURES,SUPPLIES AND MATERIALS,DETAIL,2018-07-19,AP,1004523,CITI PCARD-SCREENCLOUD,2018-05-29,2018-06-28,OFFICE SUPPLIES (OUTSIDE),100,2018
,2018 REPUBLICAN CONFERENCE,Q3,GENERAL EXPENDITURES,SUPPLIES AND MATERIALS,DETAIL,2018-07-19,AP,1004523,CITI PCARD-SPOTIFY USA,2018-05-29,2018-06-28,OFFICE SUPPLIES (OUTSIDE),9.99,2018
,2018 REPUBLICAN CONFERENCE,Q3,GENERAL EXPENDITURES,SUPPLIES AND MATERIALS,DETAIL,2018-07-19,AP,1004523,CITI PCARD-SQ  SQ  GREEK CATERING,2018-05-29,2018-06-28,FOOD & BEVERAGE,401.5,2018
,2018 REPUBLICAN CONFERENCE,Q3,GENERAL EXPENDITURES,SUPPLIES AND MATERIALS,DETAIL,2018-07-19,AP,1004523,CITI PCARD-STK SHUTTERSTOCK INC.,2018-05-29,2018-06-28,OFFICE SUPPLIES (OUTSIDE),87,2018
,2018 REPUBLICAN CONFERENCE,Q3,GENERAL EXPENDITURES,SUPPLIES AND MATERIALS,DETAIL,2018-07-19,AP,1004523,CITI PCARD-WE THE PIZZA,2018-05-29,2018-06-28,FOOD & BEVERAGE,350.34,2018
,2018 REPUBLICAN CONFERENCE,Q3,GENERAL EXPENDITURES,SUPPLIES AND MATERIALS,DETAIL,2018-07-19,AP,1004523,CITI PCARD-ZAPIER.COM/CHARGE,2018-05-29,2018-06-28,SOFTWARE  LESS THAN  $500,75,2018
,2018 REPUBLICAN CONFERENCE,Q3,GENERAL EXPENDITURES,SUPPLIES AND MATERIALS,DETAIL,2018-07-31,GL,RMS0080260, ,2018-07-01,2018-07-31,OFFICE SUPPLY (TRANSFER),727.49,2018
,2018 REPUBLICAN CONFERENCE,Q3,GENERAL EXPENDITURES,SUPPLIES AND MATERIALS,DETAIL,2018-08-01,AP,E0644879,CROCKER NICHOLAS L.,2018-07-23,2018-07-23,HABITATION EXPENSE,212,2018
,2018 REPUBLICAN CONFERENCE,Q3,GENERAL EXPENDITURES,SUPPLIES AND MATERIALS,DETAIL,2018-08-01,AP,E0644879,CROCKER NICHOLAS L.,2018-07-21,2018-07-21,OFFICE SUPPLIES (OUTSIDE),53.19,2018
,2018 REPUBLICAN CONFERENCE,Q3,GENERAL EXPENDITURES,SUPPLIES AND MATERIALS,DETAIL,2018-08-07,AP,1005924,DEER PARK,2018-06-30,2018-06-30,WATER,254.45,2018
,2018 REPUBLICAN CONFERENCE,Q3,GENERAL EXPENDITURES,SUPPLIES AND MATERIALS,DETAIL,2018-08-08,AP,E0645907,HAGUE QUALITY WATER OF MD INC,2018-08-01,2018-08-31,WATER,63,2018
,2018 REPUBLICAN CONFERENCE,Q3,GENERAL EXPENDITURES,SUPPLIES AND MATERIALS,DETAIL,2018-08-17,AP,1010486,CITI PCARD-ADOBE SYSTEMS INC,2018-06-29,2018-07-27,SOFTWARE  LESS THAN  $500,592.13,2018
,2018 REPUBLICAN CONFERENCE,Q3,GENERAL EXPENDITURES,SUPPLIES AND MATERIALS,DETAIL,2018-08-17,AP,1010486,CITI PCARD-AMAZON MKTPLACE PMTS,2018-06-29,2018-07-27,OFFICE SUPPLIES (OUTSIDE),1362.07,2018
,2018 REPUBLICAN CONFERENCE,Q3,GENERAL EXPENDITURES,SUPPLIES AND MATERIALS,DETAIL,2018-08-17,AP,1010486,CITI PCARD-AMAZON.COM,2018-06-29,2018-07-27,OFFICE SUPPLIES (OUTSIDE),924.83,2018
,2018 REPUBLICAN CONFERENCE,Q3,GENERAL EXPENDITURES,SUPPLIES AND MATERIALS,DETAIL,2018-08-17,AP,1010486,CITI PCARD-BETHESDA BAGELS - NAVY,2018-06-29,2018-07-27,FOOD & BEVERAGE,778.57,2018
,2018 REPUBLICAN CONFERENCE,Q3,GENERAL EXPENDITURES,SUPPLIES AND MATERIALS,DETAIL,2018-08-17,AP,1010486,CITI PCARD-BOX BOX.NET BUS SRVCS,2018-06-29,2018-07-27,SOFTWARE  LESS THAN  $500,45,2018
,2018 REPUBLICAN CONFERENCE,Q3,GENERAL EXPENDITURES,SUPPLIES AND MATERIALS,DETAIL,2018-08-17,AP,1010486,CITI PCARD-CAFE RIO FALLS CHURCH,2018-06-29,2018-07-27,FOOD & BEVERAGE,428.81,2018
,2018 REPUBLICAN CONFERENCE,Q3,GENERAL EXPENDITURES,SUPPLIES AND MATERIALS,DETAIL,2018-08-17,AP,1010486,CITI PCARD-CATERING AUBONPAIN,2018-06-29,2018-07-27,FOOD & BEVERAGE,2285.45,2018
,2018 REPUBLICAN CONFERENCE,Q3,GENERAL EXPENDITURES,SUPPLIES AND MATERIALS,DETAIL,2018-08-17,AP,1010486,CITI PCARD-CORNER BAKERY,2018-06-29,2018-07-27,FOOD & BEVERAGE,2008.6,2018
,2018 REPUBLICAN CONFERENCE,Q3,GENERAL EXPENDITURES,SUPPLIES AND MATERIALS,DETAIL,2018-08-17,AP,1010486,CITI PCARD-CREAMERY DD,2018-06-29,2018-07-27,FOOD & BEVERAGE,17,2018
,2018 REPUBLICAN CONFERENCE,Q3,GENERAL EXPENDITURES,SUPPLIES AND MATERIALS,DETAIL,2018-08-17,AP,1010486,CITI PCARD-DESIGN MASTERS ASSOCS,2018-06-29,2018-07-27,OFFICE SUPPLIES (OUTSIDE),590.55,2018
,2018 REPUBLICAN CONFERENCE,Q3,GENERAL EXPENDITURES,SUPPLIES AND MATERIALS,DETAIL,2018-08-17,AP,1010486,CITI PCARD-DT,2018-06-29,2018-07-27,FOOD & BEVERAGE,2090,2018
,2018 REPUBLICAN CONFERENCE,Q3,GENERAL EXPENDITURES,SUPPLIES AND MATERIALS,DETAIL,2018-08-17,AP,1010486,CITI PCARD-LEVELUP POTBELLY,2018-06-29,2018-07-27,FOOD & BEVERAGE,352.46,2018
,2018 REPUBLICAN CONFERENCE,Q3,GENERAL EXPENDITURES,SUPPLIES AND MATERIALS,DETAIL,2018-08-17,AP,1010486,CITI PCARD-PREMIUMBEAT.COM,2018-06-29,2018-07-27,OFFICE SUPPLIES (OUTSIDE),343,2018
,2018 REPUBLICAN CONFERENCE,Q3,GENERAL EXPENDITURES,SUPPLIES AND MATERIALS,DETAIL,2018-08-17,AP,1010486,CITI PCARD-ROTI MEDITERRANEAN GRI,2018-06-29,2018-07-27,FOOD & BEVERAGE,375.45,2018
,2018 REPUBLICAN CONFERENCE,Q3,GENERAL EXPENDITURES,SUPPLIES AND MATERIALS,DETAIL,2018-08-17,AP,1010486,CITI PCARD-SCREENCLOUD,2018-06-29,2018-07-27,OFFICE SUPPLIES (OUTSIDE),100,2018
,2018 REPUBLICAN CONFERENCE,Q3,GENERAL EXPENDITURES,SUPPLIES AND MATERIALS,DETAIL,2018-08-17,AP,1010486,CITI PCARD-SQ  SQ  GREEK CATERING,2018-06-29,2018-07-27,FOOD & BEVERAGE,432.85,2018
,2018 REPUBLICAN CONFERENCE,Q3,GENERAL EXPENDITURES,SUPPLIES AND MATERIALS,DETAIL,2018-08-17,AP,1010486,CITI PCARD-STK SHUTTERSTOCK INC.,2018-06-29,2018-07-27,PUBLICATIONS/REFERENCE MAT'L,29,2018
,2018 REPUBLICAN CONFERENCE,Q3,GENERAL EXPENDITURES,SUPPLIES AND MATERIALS,DETAIL,2018-08-17,AP,1010486,CITI PCARD-VERIZON WRLS D6248-,2018-06-29,2018-07-27,OFFICE SUPPLIES (OUTSIDE),329.88,2018
,2018 REPUBLICAN CONFERENCE,Q3,GENERAL EXPENDITURES,SUPPLIES AND MATERIALS,DETAIL,2018-08-17,AP,1010486,CITI PCARD-ZAPIER.COM/CHARGE,2018-06-29,2018-07-27,SOFTWARE  LESS THAN  $500,75,2018
,2018 REPUBLICAN CONFERENCE,Q3,GENERAL EXPENDITURES,SUPPLIES AND MATERIALS,DETAIL,2018-08-27,AP,1010982,DEER PARK,2018-07-31,2018-07-31,WATER,256.45,2018
,2018 REPUBLICAN CONFERENCE,Q3,GENERAL EXPENDITURES,SUPPLIES AND MATERIALS,DETAIL,2018-08-31,AP,1006235,OFFICE DEPOT INC,2018-07-05,2018-07-05,WATER,41.97,2018
,2018 REPUBLICAN CONFERENCE,Q3,GENERAL EXPENDITURES,SUPPLIES AND MATERIALS,DETAIL,2018-08-31,AP,1006235,OFFICE DEPOT INC,2018-07-10,2018-07-10,WATER,55.96,2018
,2018 REPUBLICAN CONFERENCE,Q3,GENERAL EXPENDITURES,SUPPLIES AND MATERIALS,DETAIL,2018-08-31,AP,1006235,OFFICE DEPOT INC,2018-07-10,2018-07-10,FOOD & BEVERAGE,763.62,2018
,2018 REPUBLICAN CONFERENCE,Q3,GENERAL EXPENDITURES,SUPPLIES AND MATERIALS,DETAIL,2018-08-31,AP,1006235,OFFICE DEPOT INC,2018-07-11,2018-07-11,FOOD & BEVERAGE,599.31,2018
,2018 REPUBLICAN CONFERENCE,Q3,GENERAL EXPENDITURES,SUPPLIES AND MATERIALS,DETAIL,2018-08-31,AP,1006235,OFFICE DEPOT INC,2018-07-14,2018-07-14,FOOD & BEVERAGE,72.21,2018
,2018 REPUBLICAN CONFERENCE,Q3,GENERAL EXPENDITURES,SUPPLIES AND MATERIALS,DETAIL,2018-08-31,AP,1006235,OFFICE DEPOT INC,2018-07-05,2018-07-05,OFFICE SUPPLIES (OUTSIDE),177,2018
,2018 REPUBLICAN CONFERENCE,Q3,GENERAL EXPENDITURES,SUPPLIES AND MATERIALS,DETAIL,2018-08-31,AP,1006235,OFFICE DEPOT INC,2018-07-10,2018-07-10,OFFICE SUPPLIES (OUTSIDE),143.7,2018
,2018 REPUBLICAN CONFERENCE,Q3,GENERAL EXPENDITURES,SUPPLIES AND MATERIALS,DETAIL,2018-08-31,AP,1010698,OFFICE DEPOT INC,2018-07-20,2018-07-20,WATER,33.5,2018
,2018 REPUBLICAN CONFERENCE,Q3,GENERAL EXPENDITURES,SUPPLIES AND MATERIALS,DETAIL,2018-08-31,AP,1010698,OFFICE DEPOT INC,2018-07-19,2018-07-19,FOOD & BEVERAGE,11.59,2018
,2018 REPUBLICAN CONFERENCE,Q3,GENERAL EXPENDITURES,SUPPLIES AND MATERIALS,DETAIL,2018-08-31,AP,1010698,OFFICE DEPOT INC,2018-07-20,2018-07-20,FOOD & BEVERAGE,224.64,2018
,2018 REPUBLICAN CONFERENCE,Q3,GENERAL EXPENDITURES,SUPPLIES AND MATERIALS,DETAIL,2018-08-31,AP,1010698,OFFICE DEPOT INC,2018-07-20,2018-07-20,OFFICE SUPPLIES (OUTSIDE),57.16,2018
,2018 REPUBLICAN CONFERENCE,Q3,GENERAL EXPENDITURES,SUPPLIES AND MATERIALS,DETAIL,2018-08-31,GL,RMS0081182, ,2018-08-01,2018-08-31,OFFICE SUPPLY (TRANSFER),55.11,2018
,2018 REPUBLICAN CONFERENCE,Q3,GENERAL EXPENDITURES,SUPPLIES AND MATERIALS,DETAIL,2018-09-10,AP,E0653066,CROCKER NICHOLAS L.,2018-08-22,2018-08-22,FOOD & BEVERAGE,410.34,2018
,2018 REPUBLICAN CONFERENCE,Q3,GENERAL EXPENDITURES,SUPPLIES AND MATERIALS,DETAIL,2018-09-10,AP,E0653066,CROCKER NICHOLAS L.,2018-08-22,2018-08-22,OFFICE SUPPLIES (OUTSIDE),62.13,2018
,2018 REPUBLICAN CONFERENCE,Q3,GENERAL EXPENDITURES,SUPPLIES AND MATERIALS,DETAIL,2018-09-10,AP,E0653581,HAGUE QUALITY WATER OF MD INC,2018-09-01,2018-09-30,WATER,63,2018
,2018 REPUBLICAN CONFERENCE,Q3,GENERAL EXPENDITURES,SUPPLIES AND MATERIALS,DETAIL,2018-09-19,AP,E0655732,ARAMARK REFRESHMENT SERVICES,2018-08-17,2018-08-17,FOOD & BEVERAGE,534.61,2018
,2018 REPUBLICAN CONFERENCE,Q3,GENERAL EXPENDITURES,SUPPLIES AND MATERIALS,DETAIL,2018-09-25,AP,1018853,OFFICE DEPOT INC,2018-08-24,2018-08-24,FOOD & BEVERAGE,164.82,2018
,2018 REPUBLICAN CONFERENCE,Q3,GENERAL EXPENDITURES,SUPPLIES AND MATERIALS,DETAIL,2018-09-25,AP,1018853,OFFICE DEPOT INC,2018-08-27,2018-08-27,FOOD & BEVERAGE,572.14,2018
,2018 REPUBLICAN CONFERENCE,Q3,GENERAL EXPENDITURES,SUPPLIES AND MATERIALS,DETAIL,2018-09-25,AP,1018853,OFFICE DEPOT INC,2018-08-28,2018-08-28,FOOD & BEVERAGE,72.21,2018
,2018 REPUBLICAN CONFERENCE,Q3,GENERAL EXPENDITURES,SUPPLIES AND MATERIALS,DETAIL,2018-09-25,AP,1018853,OFFICE DEPOT INC,2018-08-24,2018-08-24,OFFICE SUPPLIES (OUTSIDE),38.42,2018
,2018 REPUBLICAN CONFERENCE,Q3,GENERAL EXPENDITURES,SUPPLIES AND MATERIALS,DETAIL,2018-09-26,AP,1019131,CITI PCARD-ADOBE SYSTEMS INC,2018-07-28,2018-08-28,SOFTWARE  LESS THAN  $500,592.13,2018
,2018 REPUBLICAN CONFERENCE,Q3,GENERAL EXPENDITURES,SUPPLIES AND MATERIALS,DETAIL,2018-09-26,AP,1019131,CITI PCARD-AMZN MKTP US,2018-07-28,2018-08-28,OFFICE SUPPLIES (OUTSIDE),274.01,2018
,2018 REPUBLICAN CONFERENCE,Q3,GENERAL EXPENDITURES,SUPPLIES AND MATERIALS,DETAIL,2018-09-26,AP,1019131,CITI PCARD-AMZN MKTP US AMZN.COM/,2018-07-28,2018-08-28,OFFICE SUPPLIES (OUTSIDE),222.92,2018
,2018 REPUBLICAN CONFERENCE,Q3,GENERAL EXPENDITURES,SUPPLIES AND MATERIALS,DETAIL,2018-09-26,AP,1019131,CITI PCARD-BED BATH & BEYOND,2018-07-28,2018-08-28,OFFICE SUPPLIES (OUTSIDE),251.15,2018
,2018 REPUBLICAN CONFERENCE,Q3,GENERAL EXPENDITURES,SUPPLIES AND MATERIALS,DETAIL,2018-09-26,AP,1019131,CITI PCARD-BOX BOX.NET BUS SRVCS,2018-07-28,2018-08-28,SOFTWARE  LESS THAN  $500,45,2018
,2018 REPUBLICAN CONFERENCE,Q3,GENERAL EXPENDITURES,SUPPLIES AND MATERIALS,DETAIL,2018-09-26,AP,1019131,CITI PCARD-CHICK-FIL-A,2018-07-28,2018-08-28,FOOD & BEVERAGE,1020,2018
,2018 REPUBLICAN CONFERENCE,Q3,GENERAL EXPENDITURES,SUPPLIES AND MATERIALS,DETAIL,2018-09-26,AP,1019131,CITI PCARD-PREMIUMBEAT.COM,2018-07-28,2018-08-28,OFFICE SUPPLIES (OUTSIDE),98,2018
,2018 REPUBLICAN CONFERENCE,Q3,GENERAL EXPENDITURES,SUPPLIES AND MATERIALS,DETAIL,2018-09-26,AP,1019131,CITI PCARD-ROTI MEDITERRANEAN GRI,2018-07-28,2018-08-28,FOOD & BEVERAGE,302.42,2018
,2018 REPUBLICAN CONFERENCE,Q3,GENERAL EXPENDITURES,SUPPLIES AND MATERIALS,DETAIL,2018-09-26,AP,1019131,CITI PCARD-SCREENCLOUD,2018-07-28,2018-08-28,SOFTWARE  LESS THAN  $500,100,2018
,2018 REPUBLICAN CONFERENCE,Q3,GENERAL EXPENDITURES,SUPPLIES AND MATERIALS,DETAIL,2018-09-26,AP,1019131,CITI PCARD-SPOTIFY USA,2018-07-28,2018-08-28,PUBLICATIONS/REFERENCE MAT'L,9.99,2018
,2018 REPUBLICAN CONFERENCE,Q3,GENERAL EXPENDITURES,SUPPLIES AND MATERIALS,DETAIL,2018-09-26,AP,1019131,CITI PCARD-TARGET,2018-07-28,2018-08-28,FOOD & BEVERAGE,44.37,2018
,2018 REPUBLICAN CONFERENCE,Q3,GENERAL EXPENDITURES,SUPPLIES AND MATERIALS,DETAIL,2018-09-26,AP,1019131,CITI PCARD-TARGET,2018-07-28,2018-08-28,OFFICE SUPPLIES (OUTSIDE),372.74,2018
,2018 REPUBLICAN CONFERENCE,Q3,GENERAL EXPENDITURES,SUPPLIES AND MATERIALS,DETAIL,2018-09-26,AP,1019131,CITI PCARD-TRELLO.COM ATLASSIAN,2018-07-28,2018-08-28,SOFTWARE  LESS THAN  $500,1354.06,2018
,2018 REPUBLICAN CONFERENCE,Q3,GENERAL EXPENDITURES,SUPPLIES AND MATERIALS,DETAIL,2018-09-26,AP,1019131,CITI PCARD-ZAPIER.COM/CHARGE,2018-07-28,2018-08-28,SOFTWARE  LESS THAN  $500,75,2018
,2018 REPUBLICAN CONFERENCE,Q3,GENERAL EXPENDITURES,SUPPLIES AND MATERIALS,DETAIL,2018-09-28,GL,RMS0082045, ,2018-09-01,2018-09-30,OFFICE SUPPLY (TRANSFER),486.48,2018
,2018 REPUBLICAN CONFERENCE,Q3,GENERAL EXPENDITURES,SUPPLIES AND MATERIALS,SUBTOTAL,   ,   ,   ,   ,   ,   ,SUPPLIES AND MATERIALS TOTALS:,47377.12,2018
,2018 REPUBLICAN CONFERENCE,Q3,GENERAL EXPENDITURES,EQUIPMENT,DETAIL,2018-07-16,AP,E0639958,WHISPIR INC,2018-06-26,2018-07-25,COMPUTER SOFTW PURCH  LESS THAN $10 000,3497.33,2018
